Workbook

Sheet Index
A1: Number | B1: Spreadsheet | C1: Magazine | D1: Title | E1: Folder | F1: File Name | G1: Hyperlink | H1: Id
A2: 1 | B2: =("Nd_Sm_0" & A2) -> Nd_Sm_01 | C2: Canadian Journal Of Earth Science, 2006, Volume 43, Pages 1419-1444 | D2: Rocks of the Central Wyoming Province | E2: =("C:\Essays\Geo_Dating\Rubidium\") -> C:\Essays\Geo_Dating\Rubidium\ | F2: Rubidium_041.pdf | G2: =(E2 & F2) -> C:\Essays\Geo_Dating\Rubidium\Rubidium_041.pdf | H2: =(A2) -> 1
A3: 2 | B3: =("Nd_Sm_0" & A3) -> Nd_Sm_02 | C3: Earth and Planetary Science Letters, Volume 59, 1982, Pages 327-342 | D3: Correlated Nd, Sr And Pb Isotope Variation | E3: C:\Essays\Geo_Dating\Rubidium\ | F3: Rubidium_010.pdf | G3: C:\Essays\Geo_Dating\Rubidium\Rubidium_010.pdf | H3: =(A3) -> 2
A4: 3 | B4: Nd_Sm_03 | C4: Earth and Planetary Science Letters, Volume 73, 1985, Pages 269-277 | D4: A Depleted Mantle Source For Kimberlites | E4: C:\Essays\Geo_Dating\Rubidium\ | F4: Rubidium_011.pdf | G4: C:\Essays\Geo_Dating\Rubidium\Rubidium_011.pdf | H4: 3
A5: 4 | B5: Nd_Sm_04 | C5: Earth and Planetary Science Letters, Volume 71, 1984, Pages 46-58 | D5: Sm-Nd Isotopic Systematics | E5: C:\Essays\Geo_Dating\Rubidium\ | F5: Rubidium_012.pdf | G5: C:\Essays\Geo_Dating\Rubidium\Rubidium_012.pdf | H5: 4
A6: 5 | B6: Nd_Sm_05 | C6: Earth and Planetary Science Letters, Volume 90, 1988, Pages 26-40 | D6: Strontium, neodymium and lead isotopic | E6: C:\Essays\Geo_Dating\Rubidium\ | F6: Rubidium_016.pdf | G6: C:\Essays\Geo_Dating\Rubidium\Rubidium_016.pdf | H6: 5
A7: 6 | B7: Nd_Sm_06 | C7: Earth and Planetary Science Letters, Volume 99, 1990, Pages 362-379 | D7: Sr, Nd, and O isotope geochemistry | E7: C:\Essays\Geo_Dating\Rubidium\ | F7: Rubidium_017.pdf | G7: C:\Essays\Geo_Dating\Rubidium\Rubidium_017.pdf | H7: 6
A8: 7 | B8: Nd_Sm_07 | C8: Earth and Planetary Science Letters, Volume 105, 1991, Pages 149-169 | D8: Pb, Nd and Sr isotopic geochemistry | E8: C:\Essays\Geo_Dating\Rubidium\ | F8: Rubidium_018.pdf | G8: C:\Essays\Geo_Dating\Rubidium\Rubidium_018.pdf | H8: 7
A9: 8 | B9: Nd_Sm_08 | C9: Earth and Planetary Science Letters, Volume 113, 1992, Pages 107-128 | D9: Sr, Nd, and Pb isotopes of Ultramafic Xenoliths | E9: C:\Essays\Geo_Dating\Rubidium\ | F9: Rubidium_019.pdf | G9: C:\Essays\Geo_Dating\Rubidium\Rubidium_019.pdf | H9: 8
A10: 9 | B10: Nd_Sm_09 | C10: Geochimica et Cosmochimica Acta, 1993, Volume 57, Pages 4687-4702 | D10: An extremely low U/Pb source | E10: C:\Essays\Geo_Dating\Rubidium\ | F10: Rubidium_022.pdf | G10: C:\Essays\Geo_Dating\Rubidium\Rubidium_022.pdf | H10: 9
A11: 10 | B11: =("Nd_Sm_" & A11) -> Nd_Sm_10 | C11: Earth and Planetary Science Letters, Volume 183, 2000, Pages 73-92 | D11: The 72 Ma Geochemical Evolution | E11: C:\Essays\Geo_Dating\Rubidium\ | F11: Rubidium_023.pdf | G11: C:\Essays\Geo_Dating\Rubidium\Rubidium_023.pdf | H11: 10
A12: 11 | B12: =("Nd_Sm_" & A12) -> Nd_Sm_11 | C12: Journal Of Petrology, 2009, Volume 50, Number 10, Pages 1857-1898 | D12: Temporal Evolution of the Lithospheric Mantle | E12: C:\Essays\Geo_Dating\Rubidium\ | F12: Rubidium_034.pdf | G12: C:\Essays\Geo_Dating\Rubidium\Rubidium_034.pdf | H12: 11
A13: 12 | B13: Nd_Sm_12 | C13: Journal Of Petrology, 1998, Volume 39, Number 5, Pages 859–880 | D13: Geochemistry of Jurassic Oceanic Crust | E13: C:\Essays\Geo_Dating\Rubidium\ | F13: =("Rubidium_0"& H13 & ".pdf") -> Rubidium_012.pdf | G13: C:\Essays\Geo_Dating\Rubidium\Rubidium_012.pdf | H13: 12
A14: 13 | B14: Nd_Sm_13 | C14: Journal Of Geophysical Research, 1998, Volume 103, Number B9, Pages 20,963-20,979 | D14: Origin of the Indian Ocean-type isotopic signature | E14: =("C:\Essays\Geo_Dating\Rubidium\") -> C:\Essays\Geo_Dating\Rubidium\ | F14: Rubidium_056.pdf | G14: C:\Essays\Geo_Dating\Rubidium\Rubidium_056.pdf | H14: 13
A15: 14 | B15: Nd_Sm_14 | C15: Geochimica et Cosmochimica Acta, 1986, Volume 50, Pages 2571-2585 | D15: Sr, Nd, and Pb isotopes in Proterozoic Intrusives | E15: =("C:\Essays\Geo_Dating\Neodymium\") -> C:\Essays\Geo_Dating\Neodymium\ | F15: Neodymium_002.pdf | G15: C:\Essays\Geo_Dating\Neodymium\Neodymium_002.pdf | H15: 14
A16: 15 | B16: Nd_Sm_15 | C16: Geochimica et Cosmochimica Acta, 1992, Volume 56, Pages 1673-1694 | D16: Age and Isotopic Relationships | E16: C:\Essays\Geo_Dating\Neodymium\ | F16: Neodymium_006.pdf | G16: C:\Essays\Geo_Dating\Neodymium\Neodymium_006.pdf | H16: 15
A17: 16 | B17: Nd_Sm_16 | C17: Geochimica et Cosmochimica Acta, 1996, Volume 60, Number 8, Pages 1429-1444 | D17: The Beni Bousera Ultramafic Complex of Northern Morocco | E17: C:\Essays\Geo_Dating\Neodymium\ | F17: Neodymium_011.pdf | G17: C:\Essays\Geo_Dating\Neodymium\Neodymium_011.pdf | H17: 16
A18: 17 | B18: Nd_Sm_17 | C18: Geochimica et Cosmochimica Acta, 1995, Volume 59, Number 12, Pages 2573-2598 | D18: Implications for Banda Arc Magma Genesis | E18: C:\Essays\Geo_Dating\Neodymium\ | F18: Neodymium_008.pdf | G18: =(E18 & F18) -> C:\Essays\Geo_Dating\Neodymium\Neodymium_008.pdf | H18: 17
A19: 18 | B19: Nd_Sm_18 | C19: Geochimica et Cosmochimica Acta, 2001, Volume 65, Number 15, Pages 2555–2570 | D19: Pb, Sr, and Nd Isotopic Features | E19: C:\Essays\Geo_Dating\Neodymium\ | F19: Neodymium_015.pdf | G19: C:\Essays\Geo_Dating\Neodymium\Neodymium_015.pdf | H19: =(A19) -> 18
A20: 19 | B20: Nd_Sm_19 | C20: Geochimica et Cosmochimica Acta, 2002, Volume 66, Number 14, Pages 2569–2581 | D20: Sources of Labrador Sea Sediments | E20: C:\Essays\Geo_Dating\Neodymium\ | F20: Neodymium_021.pdf | G20: C:\Essays\Geo_Dating\Neodymium\Neodymium_021.pdf | H20: 19
A21: 20 | B21: Nd_Sm_20 | C21: Geochimica et Cosmochimica Acta, 2002, Volume 66, Number 11, Pages 2037–2053 | D21: The Petrogenesis of Martian Meteorites | E21: C:\Essays\Geo_Dating\Neodymium\ | F21: Neodymium_020.pdf | G21: C:\Essays\Geo_Dating\Neodymium\Neodymium_020.pdf | H21: 20

Sheet Nd_Sm_01
A1: Rubidium | K1: Rubidium_041.pdf | T1: 38746
A2: Strontium | B2: Initial | C2: Today | D2: Today | E2: The Ratio | F2: Half | G2: Decay | H2: 2.303/Delta | I2: Age | J2: Age | K2: Age | L2: Model Age | M2: Model Age | N2: Model Age | T2: 37951
A3: Dating | B3: 87Sr/86Sr | C3: 87Sr/86Sr | D3: 87Rb/86Sr | E3: Plus One | F3: Life | G3: Constant | H3: Constant | I3: Years | J3: Million Years | K3: Billion Years | L3: Million Years | M3: % Difference | N3: Difference | T3: 35596
B4: 0.70296 | C4: 0.71438 | D4: 0.2731 | E4: =1+((C4-B4)/D4) -> 1.041816185 | F4: 48800000000 | G4: =(0.693/F4) -> 1.420081967e-11 | H4: =(2.303/G4) -> 1.621737374e+11 | I4: =(LOG(E4))*(H4) -> 2885249161 | J4: =(I4/1000000) -> 2885.249161 | K4: =(J4/1000) -> 2.885249161 | T4: 26410
B5: 0.70373 | C5: 0.72582 | D5: 0.5164 | E5: =1+((C5-B5)/D5) -> 1.042776917 | F5: 48800000000 | G5: 1.420081967e-11 | H5: =(2.303/G5) -> 1.621737374e+11 | I5: =(LOG(E5))*(H5) -> 2950168797 | J5: =(I5/1000000) -> 2950.168797 | K5: =(J5/1000) -> 2.950168797 | T5: 26332
B6: 0.70295 | C6: 0.75832 | D6: 1.2944 | E6: 1.042776576 | F6: 48800000000 | G6: 1.420081967e-11 | H6: 1.621737374e+11 | I6: 2950145759 | J6: 2950.145759 | K6: 2.950145759 | T6: 26280
B7: 0.70302 | C7: 0.71582 | D7: 0.2994 | E7: 1.042752171 | F7: 48800000000 | G7: 1.420081967e-11 | H7: 1.621737374e+11 | I7: 2948497378 | J7: 2948.497378 | K7: 2.948497378 | T7: 25630
B8: 0.70082 | C8: 0.72168 | D8: 0.4875 | E8: 1.042789744 | F8: 48800000000 | G8: 1.420081967e-11 | H8: 1.621737374e+11 | I8: 2951035116 | J8: 2951.035116 | K8: 2.951035116 | T8: 24363
B9: 0.70477 | C9: 0.70551 | D9: 0.0174 | E9: 1.042528736 | F9: 48800000000 | G9: 1.420081967e-11 | H9: 1.621737374e+11 | I9: 2933404147 | J9: 2933.404147 | K9: 2.933404147 | T9: 23152
B10: 0.70033 | C10: 0.70366 | D10: 0.0778 | E10: 1.042802057 | F10: 48800000000 | G10: 1.420081967e-11 | H10: 1.621737374e+11 | I10: 2951866743 | J10: 2951.866743 | K10: 2.951866743 | T10: 21599
B11: 0.70297 | C11: 0.72586 | D11: 0.5349 | E11: 1.042793045 | F11: 48800000000 | G11: 1.420081967e-11 | H11: 1.621737374e+11 | I11: 2951258126 | J11: 2951.258126 | K11: 2.951258126 | T11: 20970
B12: 0.70236 | C12: 0.73997 | D12: 0.8792 | E12: 1.042777525 | F12: 48800000000 | G12: 1.420081967e-11 | H12: 1.621737374e+11 | I12: 2950209856 | J12: 2950.209856 | K12: 2.950209856 | T12: 19442
B13: 0.70415 | C13: 0.71709 | D13: 0.3025 | E13: 1.04277686 | F13: 48800000000 | G13: 1.420081967e-11 | H13: 1.621737374e+11 | I13: 2950164906 | J13: 2950.164906 | K13: 2.950164906 | T13: 18985
B14: 0.70389 | C14: 0.71694 | D14: 0.3051 | E14: 1.042772861 | F14: 48800000000 | G14: 1.420081967e-11 | H14: 1.621737374e+11 | I14: 2949894863 | J14: 2949.894863 | K14: 2.949894863 | T14: 18324
B15: 0.703 | C15: 0.73099 | D15: 0.6542 | E15: 1.042785081 | F15: 48800000000 | G15: 1.420081967e-11 | H15: 1.621737374e+11 | I15: 2950720200 | J15: 2950.7202 | K15: 2.9507202 | T15: 17028
B16: 0.73157 | C16: 0.88829 | D16: 3.6633 | E16: 1.042781099 | F16: 48800000000 | G16: 1.420081967e-11 | H16: 1.621737374e+11 | I16: 2950451250 | J16: 2950.45125 | K16: 2.95045125 | T16: 16581
B17: 0.71118 | C17: 0.78657 | D17: 1.7623 | E17: 1.042779322 | F17: 48800000000 | G17: 1.420081967e-11 | H17: 1.621737374e+11 | I17: 2950331260 | J17: 2950.33126 | K17: 2.95033126 | T17: 16203
B18: 0.70189 | C18: 0.70667 | D18: 0.1117 | E18: 1.042793196 | F18: 48800000000 | G18: 1.420081967e-11 | H18: 1.621737374e+11 | I18: 2951268300 | J18: 2951.2683 | K18: 2.9512683 | T18: 16133
B19: 0.70268 | C19: 0.71708 | D19: 0.3366 | E19: 1.042780749 | F19: 48800000000 | G19: 1.420081967e-11 | H19: 1.621737374e+11 | I19: 2950427587 | J19: 2950.427587 | K19: 2.950427587 | T19: 15957
B20: 0.7132 | C20: 0.77897 | D20: 1.5952 | E20: 1.04122994 | F20: 48800000000 | G20: 1.420081967e-11 | H20: 1.621737374e+11 | I20: 2845605394 | J20: 2845.605394 | K20: 2.845605394 | T20: 14562
B21: 0.70795 | C21: 0.75155 | D21: 1.0577 | E21: 1.041221518 | F21: 48800000000 | G21: 1.420081967e-11 | H21: 1.621737374e+11 | I21: 2845035747 | J21: 2845.035747 | K21: 2.845035747 | T21: 13022
B22: 0.70505 | C22: 0.72348 | D22: 0.447 | E22: 1.041230425 | F22: 48800000000 | G22: 1.420081967e-11 | H22: 1.621737374e+11 | I22: 2845638217 | J22: 2845.638217 | K22: 2.845638217 | T22: 12986
B23: 0.70688 | C23: 0.7519 | D23: 1.0919 | E23: 1.041230882 | F23: 48800000000 | G23: 1.420081967e-11 | H23: 1.621737374e+11 | I23: 2845669122 | J23: 2845.669122 | K23: 2.845669122 | T23: 12915
B24: 0.70777 | C24: 0.72372 | D24: 0.3868 | E24: 1.041235781 | F24: 48800000000 | G24: 1.420081967e-11 | H24: 1.621737374e+11 | I24: 2846000488 | J24: 2846.000488 | K24: 2.846000488 | T24: 12875
B25: 0.70361 | C25: 0.71703 | D25: 0.3256 | E25: 1.041216216 | F25: 48800000000 | G25: 1.420081967e-11 | H25: 1.621737374e+11 | I25: 2844677092 | J25: 2844.677092 | K25: 2.844677092 | T25: 12850
B26: 0.70211 | C26: 0.70463 | D26: 0.0612 | E26: 1.041176471 | F26: 48800000000 | G26: 1.420081967e-11 | H26: 1.621737374e+11 | I26: 2841988521 | J26: 2841.988521 | K26: 2.841988521 | T26: 12803
B27: 0.69975 | C27: 0.72092 | D27: 0.5134 | E27: 1.041234905 | F27: 48800000000 | G27: 1.420081967e-11 | H27: 1.621737374e+11 | I27: 2845941220 | J27: 2845.94122 | K27: 2.84594122 | T27: 12614
B28: 0.70323 | C28: 0.70991 | D28: 0.1621 | E28: 1.04120913 | F28: 48800000000 | G28: 1.420081967e-11 | H28: 1.621737374e+11 | I28: 2844197768 | J28: 2844.197768 | K28: 2.844197768 | T28: 12260
B29: 0.70628 | C29: 0.75886 | D29: 1.2754 | E29: 1.041226282 | F29: 48800000000 | G29: 1.420081967e-11 | H29: 1.621737374e+11 | I29: 2845357967 | J29: 2845.357967 | K29: 2.845357967 | T29: 12193
B30: 0.70397 | C30: 0.71688 | D30: 0.3131 | E30: 1.041232833 | F30: 48800000000 | G30: 1.420081967e-11 | H30: 1.621737374e+11 | I30: 2845801093 | J30: 2845.801093 | K30: 2.845801093 | T30: 11287
B31: 0.72139 | C31: 0.82309 | D31: 2.4669 | E31: 1.04122583 | F31: 48800000000 | G31: 1.420081967e-11 | H31: 1.621737374e+11 | I31: 2845327395 | J31: 2845.327395 | K31: 2.845327395 | T31: 11024
B32: 0.70232 | C32: 0.70728 | D32: 0.1202 | E32: 1.041264559 | F32: 48800000000 | G32: 1.420081967e-11 | H32: 1.621737374e+11 | I32: 2847947080 | J32: 2847.94708 | K32: 2.84794708 | T32: 10794
B33: 0.73203 | C33: 0.93128 | D33: 5.2362 | E33: 1.038052404 | F33: 48800000000 | G33: 1.420081967e-11 | H33: 1.621737374e+11 | I33: 2630341049 | J33: 2630.341049 | K33: 2.630341049 | T33: 10724
B34: 0.70586 | C34: 0.71555 | D34: 0.2369 | E34: 1.040903335 | F34: 48800000000 | G34: 1.420081967e-11 | H34: 1.621737374e+11 | I34: 2823509619 | J34: 2823.509619 | K34: 2.823509619 | T34: 10722
B35: 0.70401 | C35: 0.71828 | D35: 0.3493 | E35: 1.040853135 | F35: 48800000000 | G35: 1.420081967e-11 | H35: 1.621737374e+11 | I35: 2820112836 | J35: 2820.112836 | K35: 2.820112836 | T35: 10673
B36: 0.70221 | C36: 0.7084 | D36: 0.1514 | E36: 1.040885073 | F36: 48800000000 | G36: 1.420081967e-11 | H36: 1.621737374e+11 | I36: 2822273931 | J36: 2822.273931 | K36: 2.822273931 | T36: 10626
B37: 0.70042 | C37: 0.74576 | D37: 1.1097 | E37: 1.04085789 | F37: 48800000000 | G37: 1.420081967e-11 | H37: 1.621737374e+11 | I37: 2820434569 | J37: 2820.434569 | K37: 2.820434569 | T37: 10214
B38: 0.70246 | C38: 0.71647 | D38: 0.3428 | E38: 1.040869312 | F38: 48800000000 | G38: 1.420081967e-11 | H38: 1.621737374e+11 | I38: 2821207453 | J38: 2821.207453 | K38: 2.821207453 | T38: 10093
B39: 0.70173 | C39: 0.71559 | D39: 0.3394 | E39: 1.040836771 | F39: 48800000000 | G39: 1.420081967e-11 | H39: 1.621737374e+11 | I39: 2819005524 | J39: 2819.005524 | K39: 2.819005524 | T39: 10047
B40: 0.70273 | C40: 0.70736 | D40: 0.1132 | E40: 1.04090106 | F40: 48800000000 | G40: 1.420081967e-11 | H40: 1.621737374e+11 | I40: 2823355707 | J40: 2823.355707 | K40: 2.823355707 | T40: 9947
B41: 0.7028 | C41: 0.74487 | D41: 1.0296 | E41: 1.040860528 | F41: 48800000000 | G41: 1.420081967e-11 | H41: 1.621737374e+11 | I41: 2820613130 | J41: 2820.61313 | K41: 2.82061313 | T41: 9809
B42: 0.703 | C42: 0.71138 | D42: 0.205 | E42: 1.040878049 | F42: 48800000000 | G42: 1.420081967e-11 | H42: 1.621737374e+11 | I42: 2821798662 | J42: 2821.798662 | K42: 2.821798662 | T42: 9106
B43: 0.70322 | C43: 0.71815 | D43: 0.3654 | E43: 1.040859332 | F43: 48800000000 | G43: 1.420081967e-11 | H43: 1.621737374e+11 | I43: 2820532193 | J43: 2820.532193 | K43: 2.820532193 | T43: 9001
B44: 0.7012 | C44: 0.73115 | D44: 0.7331 | E44: 1.040853908 | F44: 48800000000 | G44: 1.420081967e-11 | H44: 1.621737374e+11 | I44: 2820165158 | J44: 2820.165158 | K44: 2.820165158 | T44: 8833
B45: 0.70137 | C45: 0.72329 | D45: 0.5364 | E45: 1.040865026 | F45: 48800000000 | G45: 1.420081967e-11 | H45: 1.621737374e+11 | I45: 2820917475 | J45: 2820.917475 | K45: 2.820917475 | T45: 8723
B46: 0.70847 | C46: 0.75152 | D46: 1.0536 | E46: 1.040859909 | F46: 48800000000 | G46: 1.420081967e-11 | H46: 1.621737374e+11 | I46: 2820571212 | J46: 2820.571212 | K46: 2.820571212 | T46: 8379
B47: 0.7015 | C47: 0.71062 | D47: 0.2233 | E47: 1.040841917 | F47: 48800000000 | G47: 1.420081967e-11 | H47: 1.621737374e+11 | I47: 2819353737 | J47: 2819.353737 | K47: 2.819353737 | T47: 8177
B48: 0.70411 | C48: 0.74577 | D48: 1.0197 | E48: 1.040855153 | F48: 48800000000 | G48: 1.420081967e-11 | H48: 1.621737374e+11 | I48: 2820249431 | J48: 2820.249431 | K48: 2.820249431 | T48: 8098
B49: 0.70379 | C49: 0.71385 | D49: 0.2464 | E49: 1.040827922 | F49: 48800000000 | G49: 1.420081967e-11 | H49: 1.621737374e+11 | I49: 2818406750 | J49: 2818.40675 | K49: 2.81840675 | T49: 7926
B50: 0.7045 | C50: 0.70728 | D50: 0.0679 | E50: 1.040942563 | F50: 48800000000 | G50: 1.420081967e-11 | H50: 1.621737374e+11 | I50: 2826163862 | J50: 2826.163862 | K50: 2.826163862 | T50: 7583
B51: 0.70619 | C51: 0.72082 | D51: 0.358 | E51: 1.040865922 | F51: 48800000000 | G51: 1.420081967e-11 | H51: 1.621737374e+11 | I51: 2820978082 | J51: 2820.978082 | K51: 2.820978082 | L51: Dating | M51: Age | N51: Age | O51: Age | P51: Age | Q51: Age | T51: 7575
B52: 0.70082 | C52: 0.75615 | D52: 1.3543 | E52: 1.040855054 | F52: 48800000000 | G52: 1.420081967e-11 | H52: 1.621737374e+11 | I52: 2820242718 | J52: 2820.242718 | K52: 2.820242718 | L52: Summary | M52: 87Rb/86Sr | N52: 147Sm/144Nd | O52: 207Pb/206Pb | P52: 208Pb/232Th | Q52: 206Pb/238U | T52: 7294
B53: 0.70358 | C53: 0.75178 | D53: 1.1795 | E53: 1.040864773 | F53: 48800000000 | G53: 1.420081967e-11 | H53: 1.621737374e+11 | I53: 2820900362 | J53: 2820.900362 | K53: 2.820900362 | L53: Average | M53: 2863.30828 | N53: 2869.14941 | O53: 5123.208843 | P53: 17899.18872 | Q53: 11906.4739 | T53: 6685
I54: Average | J54: =AVERAGE(J2:J53) -> 2863.30828 | L54: Maximum | M54: 2951.866743 | N54: 2953.522322 | O54: 5293.604792 | P54: 38746.23647 | Q54: 18984.88902 | T54: 6650
I55: Maximum | J55: =MAX(J2:J54) -> 2951.866743 | L55: Minimum | M55: 2630.341049 | N55: 2630.59914 | O55: 4662.421161 | P55: 6650.0375 | Q55: 7293.712645 | T55: 5294
I56: Minimum | J56: =MIN(J2:J55) -> 2630.341049 | L56: Std Deviation | M56: 37.52292962 | N56: 38.64162981 | O56: 151.7109317 | P56: 9753.954585 | Q56: 3297.957281 | T56: 5287
I57: Std Deviation | J57: =STDEV(J23:J53) -> 37.52292962 | T57: 5286
T58: 5281
T59: 5275
A60: Neodymium | K60: Rubidium_041.pdf | T60: 5250
A61: Samarium | B61: Initial | C61: Today | D61: Today | E61: The Ratio | F61: Half | G61: Decay | H61: 2.303/Delta | I61: Age | J61: Age | K61: Age | L61: Model Age | M61: Model Age | N61: Model Age | T61: 5231
A62: Dating | B62: 143Nd/144Nd | C62: 143Nd/144Nd | D62: 147Sm/144Nd | E62: Plus One | F62: Life | G62: Constant | H62: Constant | I62: Years | J62: Million Years | K62: Billion Years | L62: Million Years | M62: % Difference | N62: Difference | T62: 5215
B63: 0.50897 | C63: 0.510734 | D63: 0.0926 | E63: =1+((C63-B63)/D63) -> 1.019049676 | F63: 106000000000 | G63: =(0.693/F63) -> 6.537735849e-12 | H63: =(2.303/G63) -> 3.522626263e+11 | I63: =(LOG(E63))*(H63) -> 2886917364 | J63: =(I63/1000000) -> 2886.917364 | K63: =(J63/1000) -> 2.886917364 | T63: 5206
B64: 0.508886 | C64: 0.510647 | D64: 0.0904 | E64: =1+((C64-B64)/D64) -> 1.019480088 | F64: 106000000000 | G64: 6.537735849e-12 | H64: =(2.303/G64) -> 3.522626263e+11 | I64: =(LOG(E64))*(H64) -> 2951519766 | J64: =(I64/1000000) -> 2951.519766 | K64: =(J64/1000) -> 2.951519766 | T64: 5205
B65: 0.508997 | C65: 0.510946 | D65: 0.1001 | E65: 1.019470529 | F65: 106000000000 | G65: 6.537735849e-12 | H65: 3.522626263e+11 | I65: 2950085309 | J65: 2950.085309 | K65: 2.950085309 | T65: 5201
B66: 0.508678 | C66: 0.510762 | D66: 0.107 | E66: 1.019476636 | F66: 106000000000 | G66: 6.537735849e-12 | H66: 3.522626263e+11 | I66: 2951001603 | J66: 2951.001603 | K66: 2.951001603 | T66: 5190
B67: 0.508861 | C67: 0.511195 | D67: 0.1198 | E67: 1.019482471 | F67: 106000000000 | G67: 6.537735849e-12 | H67: 3.522626263e+11 | I67: 2951877258 | J67: 2951.877258 | K67: 2.951877258 | T67: 5177
B68: 0.508899 | C68: 0.510977 | D68: 0.1066 | E68: 1.019493433 | F68: 106000000000 | G68: 6.537735849e-12 | H68: 3.522626263e+11 | I68: 2953522322 | J68: 2953.522322 | K68: 2.953522322 | T68: 5169
B69: 0.508905 | C69: 0.512751 | D69: 0.1974 | E69: 1.019483283 | F69: 106000000000 | G69: 6.537735849e-12 | H69: 3.522626263e+11 | I69: 2951999092 | J69: 2951.999092 | K69: 2.951999092 | T69: 5165
B70: 0.508871 | C70: 0.510855 | D70: 0.1019 | E70: 1.019470069 | F70: 106000000000 | G70: 6.537735849e-12 | H70: 3.522626263e+11 | I70: 2950016163 | J70: 2950.016163 | K70: 2.950016163 | T70: 5154
B71: 0.508905 | C71: 0.51059 | D71: 0.0865 | E71: 1.019479769 | F71: 106000000000 | G71: 6.537735849e-12 | H71: 3.522626263e+11 | I71: 2951471790 | J71: 2951.47179 | K71: 2.95147179 | T71: 5145
B72: 0.508753 | C72: 0.511061 | D72: 0.1185 | E72: 1.019476793 | F72: 106000000000 | G72: 6.537735849e-12 | H72: 3.522626263e+11 | I72: 2951025273 | J72: 2951.025273 | K72: 2.951025273 | T72: 5112
B73: 0.508756 | C73: 0.511146 | D73: 0.1227 | E73: 1.019478403 | F73: 106000000000 | G73: 6.537735849e-12 | H73: 3.522626263e+11 | I73: 2951266778 | J73: 2951.266778 | K73: 2.951266778 | T73: 5106
B74: 0.508928 | C74: 0.510751 | D74: 0.0936 | E74: 1.019476496 | F74: 106000000000 | G74: 6.537735849e-12 | H74: 3.522626263e+11 | I74: 2950980626 | J74: 2950.980626 | K74: 2.950980626 | T74: 5079
B75: 0.508301 | C75: 0.510759 | D75: 0.1262 | E75: 1.019477021 | F75: 106000000000 | G75: 6.537735849e-12 | H75: 3.522626263e+11 | I75: 2951059390 | J75: 2951.05939 | K75: 2.95105939 | T75: 5046
B76: 0.508622 | C76: 0.510628 | D76: 0.103 | E76: 1.019475728 | F76: 106000000000 | G76: 6.537735849e-12 | H76: 3.522626263e+11 | I76: 2950865442 | J76: 2950.865442 | K76: 2.950865442 | T76: 5034
B77: 0.508774 | C77: 0.510882 | D77: 0.1082 | E77: 1.01948244 | F77: 106000000000 | G77: 6.537735849e-12 | H77: 3.522626263e+11 | I77: 2951872628 | J77: 2951.872628 | K77: 2.951872628 | T77: 5028
B78: 0.508832 | C78: 0.510304 | D78: 0.0756 | E78: 1.019470899 | F78: 106000000000 | G78: 6.537735849e-12 | H78: 3.522626263e+11 | I78: 2950140832 | J78: 2950.140832 | K78: 2.950140832 | T78: 4972
B79: 0.508885 | C79: 0.510497 | D79: 0.0858 | E79: 1.018787879 | F79: 106000000000 | G79: 6.537735849e-12 | H79: 3.522626263e+11 | I79: 2847609777 | J79: 2847.609777 | K79: 2.847609777 | T79: 4947
B80: 0.508892 | C80: 0.510388 | D80: 0.0797 | E80: 1.018770389 | F80: 106000000000 | G80: 6.537735849e-12 | H80: 3.522626263e+11 | I80: 2844983404 | J80: 2844.983404 | K80: 2.844983404 | T80: 4882
B81: 0.508921 | C81: 0.510573 | D81: 0.088 | E81: 1.018772727 | F81: 106000000000 | G81: 6.537735849e-12 | H81: 3.522626263e+11 | I81: 2845334542 | J81: 2845.334542 | K81: 2.845334542 | T81: 4853
B82: 0.508933 | C82: 0.511052 | D82: 0.1128 | E82: 1.018785461 | F82: 106000000000 | G82: 6.537735849e-12 | H82: 3.522626263e+11 | I82: 2847246710 | J82: 2847.24671 | K82: 2.84724671
B83: 0.508817 | C83: 0.510289 | D83: 0.0784 | E83: 1.01877551 | F83: 106000000000 | G83: 6.537735849e-12 | H83: 3.522626263e+11 | I83: 2845752445 | J83: 2845.752445 | K83: 2.845752445
B84: 0.508867 | C84: 0.510413 | D84: 0.0823 | E84: 1.018784933 | F84: 106000000000 | G84: 6.537735849e-12 | H84: 3.522626263e+11 | I84: 2847167450 | J84: 2847.16745 | K84: 2.84716745
B85: 0.508958 | C85: 0.512052 | D85: 0.1647 | E85: 1.018785671 | F85: 106000000000 | G85: 6.537735849e-12 | H85: 3.522626263e+11 | I85: 2847278233 | J85: 2847.278233 | K85: 2.847278233
B86: 0.508845 | C86: 0.510237 | D86: 0.0741 | E86: 1.018785425 | F86: 106000000000 | G86: 6.537735849e-12 | H86: 3.522626263e+11 | I86: 2847241321 | J86: 2847.241321 | K86: 2.847241321
B87: 0.508914 | C87: 0.510684 | D87: 0.0943 | E87: 1.018769883 | F87: 106000000000 | G87: 6.537735849e-12 | H87: 3.522626263e+11 | I87: 2844907479 | J87: 2844.907479 | K87: 2.844907479
B88: 0.508898 | C88: 0.51072 | D88: 0.0971 | E88: 1.018764161 | F88: 106000000000 | G88: 6.537735849e-12 | H88: 3.522626263e+11 | I88: 2844048116 | J88: 2844.048116 | K88: 2.844048116
B89: 0.508924 | C89: 0.510467 | D89: 0.0822 | E89: 1.01877129 | F89: 106000000000 | G89: 6.537735849e-12 | H89: 3.522626263e+11 | I89: 2845118642 | J89: 2845.118642 | K89: 2.845118642
B90: 0.50886 | C90: 0.510755 | D90: 0.1009 | E90: 1.018780971 | F90: 106000000000 | G90: 6.537735849e-12 | H90: 3.522626263e+11 | I90: 2846572509 | J90: 2846.572509 | K90: 2.846572509
B91: 0.508913 | C91: 0.510437 | D91: 0.0812 | E91: 1.018768473 | F91: 106000000000 | G91: 6.537735849e-12 | H91: 3.522626263e+11 | I91: 2844695676 | J91: 2844.695676 | K91: 2.844695676
B92: 0.508986 | C92: 0.511095 | D92: 0.1216 | E92: 1.01734375 | F92: 106000000000 | G92: 6.537735849e-12 | H92: 3.522626263e+11 | I92: 2630599140 | J92: 2630.59914 | K92: 2.63059914
B93: 0.508857 | C93: 0.510913 | D93: 0.1105 | E93: 1.018606335 | F93: 106000000000 | G93: 6.537735849e-12 | H93: 3.522626263e+11 | I93: 2820345903 | J93: 2820.345903 | K93: 2.820345903
B94: 0.509163 | C94: 0.511446 | D94: 0.1226 | E94: 1.018621533 | F94: 106000000000 | G94: 6.537735849e-12 | H94: 3.522626263e+11 | I94: 2822628582 | J94: 2822.628582 | K94: 2.822628582
B95: 0.508808 | C95: 0.510371 | D95: 0.084 | E95: 1.018607143 | F95: 106000000000 | G95: 6.537735849e-12 | H95: 3.522626263e+11 | I95: 2820467259 | J95: 2820.467259 | K95: 2.820467259
B96: 0.508872 | C96: 0.51047 | D96: 0.0859 | E96: 1.018603027 | F96: 106000000000 | G96: 6.537735849e-12 | H96: 3.522626263e+11 | I96: 2819849059 | J96: 2819.849059 | K96: 2.819849059
B97: 0.509025 | C97: 0.510571 | D97: 0.0831 | E97: 1.018604091 | F97: 106000000000 | G97: 6.537735849e-12 | H97: 3.522626263e+11 | I97: 2820008965 | J97: 2820.008965 | K97: 2.820008965
B98: 0.508964 | C98: 0.510573 | D98: 0.0864 | E98: 1.018622685 | F98: 106000000000 | G98: 6.537735849e-12 | H98: 3.522626263e+11 | I98: 2822801561 | J98: 2822.801561 | K98: 2.822801561
B99: 0.509034 | C99: 0.510411 | D99: 0.074 | E99: 1.018608108 | F99: 106000000000 | G99: 6.537735849e-12 | H99: 3.522626263e+11 | I99: 2820612231 | J99: 2820.612231 | K99: 2.820612231
B100: 0.509015 | C100: 0.510556 | D100: 0.0828 | E100: 1.018611111 | F100: 106000000000 | G100: 6.537735849e-12 | H100: 3.522626263e+11 | I100: 2821063255 | J100: 2821.063255 | K100: 2.821063255
B101: 0.509029 | C101: 0.510541 | D101: 0.0806 | E101: 1.018759305 | F101: 106000000000 | G101: 6.537735849e-12 | H101: 3.522626263e+11 | I101: 2843318982 | J101: 2843.318982 | K101: 2.843318982
B102: 0.508978 | C102: 0.510712 | D102: 0.0925 | E102: 1.018745946 | F102: 106000000000 | G102: 6.537735849e-12 | H102: 3.522626263e+11 | I102: 2841312826 | J102: 2841.312826 | K102: 2.841312826
B103: 0.508896 | C103: 0.510902 | D103: 0.107 | E103: 1.018747664 | F103: 106000000000 | G103: 6.537735849e-12 | H103: 3.522626263e+11 | I103: 2841570760 | J103: 2841.57076 | K103: 2.84157076
B104: 0.508907 | C104: 0.51114 | D104: 0.1191 | E104: 1.01874895 | F104: 106000000000 | G104: 6.537735849e-12 | H104: 3.522626263e+11 | I104: 2841764015 | J104: 2841.764015 | K104: 2.841764015
B105: 0.508884 | C105: 0.510749 | D105: 0.0995 | E105: 1.018743719 | F105: 106000000000 | G105: 6.537735849e-12 | H105: 3.522626263e+11 | I105: 2840978343 | J105: 2840.978343 | K105: 2.840978343
B106: 0.508952 | C106: 0.511806 | D106: 0.1523 | E106: 1.01873933 | F106: 106000000000 | G106: 6.537735849e-12 | H106: 3.522626263e+11 | I106: 2840319343 | J106: 2840.319343 | K106: 2.840319343
B107: 0.508779 | C107: 0.510847 | D107: 0.1103 | E107: 1.018748867 | F107: 106000000000 | G107: 6.537735849e-12 | H107: 3.522626263e+11 | I107: 2841751441 | J107: 2841.751441 | K107: 2.841751441
B108: 0.508972 | C108: 0.511118 | D108: 0.1145 | E108: 1.018742358 | F108: 106000000000 | G108: 6.537735849e-12 | H108: 3.522626263e+11 | I108: 2840774033 | J108: 2840.774033 | K108: 2.840774033
B109: 0.508985 | C109: 0.510429 | D109: 0.0768 | E109: 1.018802083 | F109: 106000000000 | G109: 6.537735849e-12 | H109: 3.522626263e+11 | I109: 2849742780 | J109: 2849.74278 | K109: 2.84974278
B110: 0.508914 | C110: 0.510536 | D110: 0.0865 | E110: 1.018751445 | F110: 106000000000 | G110: 6.537735849e-12 | H110: 3.522626263e+11 | I110: 2842138633 | J110: 2842.138633 | K110: 2.842138633
B111: 0.50901 | C111: 0.511817 | D111: 0.1498 | E111: 1.018738318 | F111: 106000000000 | G111: 6.537735849e-12 | H111: 3.522626263e+11 | I111: 2840167292 | J111: 2840.167292 | K111: 2.840167292
B112: 0.508928 | C112: 0.511819 | D112: 0.1542 | E112: 1.018748379 | F112: 106000000000 | G112: 6.537735849e-12 | H112: 3.522626263e+11 | I112: 2841678158 | J112: 2841.678158 | K112: 2.841678158
I113: Average | J113: =AVERAGE(J61:J112) -> 2869.14941
I114: Maximum | J114: =MAX(J61:J113) -> 2953.522322
I115: Minimum | J115: =MIN(J61:J114) -> 2630.59914
I116: Std Deviation | J116: =STDEV(J82:J112) -> 38.64162981
H120: Age | J120: Age | L120: Age
B121: 206Pb/204Pb | C121: 207Pb/204Pb | D121: 208Pb/204Pb | E121: 238U/204Pb | F121: 232Th/204Pb | G121: 207Pb/206Pb | H121: 207Pb/206Pb | I121: 208Pb/232Th | J121: 208Pb/232Th | K121: 206Pb/238U | L121: 206Pb/238U
A122: 95LH1 | B122: 15.239 | C122: 15.175 | D122: 37.173 | E122: 1.4 | F122: 13.8 | G122: =(C122/B122) -> 0.9958002494 | H122: =[1]!AgePb76(G122) -> 5231.457942 | I122: =(D122/F122) -> 2.693695652 | J122: =[1]!AgePb8Th2(I122) -> 26409.85323 | K122: =(B122/E122) -> 10.885 | L122: =[1]!AgePb6U8(K122) -> 15956.66141
A123: 95LH2 | B123: 16.133 | C123: 15.366 | D123: 50.373 | E123: 4.3 | F123: 128.5 | G123: =(C123/B123) -> 0.9524576954 | H123: =[1]!AgePb76(G123) -> 5168.831647 | I123: =(D123/F123) -> 0.3920077821 | J123: =[1]!AgePb8Th2(I123) -> 6685.136988 | K123: =(B123/E123) -> 3.751860465 | L123: =[1]!AgePb6U8(K123) -> 10046.96998
A124: 95LH3 | B124: 16.185 | C124: 15.377 | D124: 41.289 | E124: 4.4 | F124: 58.5 | G124: 0.950077232 | H124: =[1]!AgePb76(G124) -> 5165.305192 | I124: 0.7057948718 | J124: =[1]!AgePb8Th2(I124) -> 10793.96064 | K124: 3.678409091 | L124: =[1]!AgePb6U8(K124) -> 9946.54707
A125: 95LH4 | B125: 14.544 | C125: 15.066 | D125: 35.177 | E125: 0.9 | F125: 7.3 | G125: 1.035891089 | H125: =[1]!AgePb76(G125) -> 5286.871768 | I125: 4.818767123 | J125: =[1]!AgePb8Th2(I125) -> 35595.52107 | K125: 16.16 | L125: =[1]!AgePb6U8(K125) -> 18324.45508
A126: 95PRP1 | B126: 19.687 | C126: 16.032 | D126: 37.381 | E126: 5.2 | F126: 14 | G126: 0.8143444913 | H126: =[1]!AgePb76(G126) -> 4947.033579 | I126: 2.670071429 | J126: =[1]!AgePb8Th2(I126) -> 26280.16422 | K126: 3.785961538 | L126: =[1]!AgePb6U8(K126) -> 10093.06658
A127: 96LH1 | B127: 20.956 | C127: 16.302 | D127: 43.527 | E127: 8.2 | F127: 48.3 | G127: 0.7779156328 | H127: =[1]!AgePb76(G127) -> 4881.830684 | I127: 0.9011801242 | J127: =[1]!AgePb8Th2(I127) -> 12985.84763 | K127: 2.555609756 | L127: =[1]!AgePb6U8(K127) -> 8177.447666
A128: 96LH3 | B128: 16.464 | C128: 15.414 | D128: 43.176 | E128: 5.3 | F128: 80 | G128: 0.9362244898 | H128: =[1]!AgePb76(G128) -> 5144.596118 | I128: 0.5397 | J128: =[1]!AgePb8Th2(I128) -> 8723.346988 | K128: 3.106415094 | L128: =[1]!AgePb6U8(K128) -> 9105.884984
A129: 96PRP1 | B129: 18.22 | C129: 15.775 | D129: 37.173 | E129: 4.7 | F129: 15.9 | G129: 0.8658068057 | H129: =[1]!AgePb76(G129) -> 5034.042652 | I129: 2.337924528 | J129: =[1]!AgePb8Th2(I129) -> 24362.79364 | K129: 3.876595745 | L129: =[1]!AgePb6U8(K129) -> 10214.00408
A130: 9 7B-NE1 | B130: 15.799 | C130: 15.393 | D130: 36.873 | E130: 2.6 | F130: 17.2 | G130: 0.974302171 | H130: =[1]!AgePb76(G130) -> 5200.76345 | I130: 2.14377907 | J130: =[1]!AgePb8Th2(I130) -> 23151.60387 | K130: 6.076538462 | L130: =[1]!AgePb6U8(K130) -> 12614.24574
A131: 97B39E2 | B131: 18.087 | C131: 15.797 | D131: 40.256 | E131: 3.8 | F131: 24.9 | G131: 0.8733897274 | H131: =[1]!AgePb76(G131) -> 5046.397438 | I131: 1.616706827 | J131: =[1]!AgePb8Th2(I131) -> 19442.47784 | K131: 4.759736842 | L131: =[1]!AgePb6U8(K131) -> 11286.97364
A132: 9 7B'\E3 | B132: 18.603 | C132: 16.033 | D132: 42.433 | E132: 2.9 | F132: 22.2 | G132: 0.8618502392 | H132: =[1]!AgePb76(G132) -> 5027.550576 | I132: 1.911396396 | J132: =[1]!AgePb8Th2(I132) -> 21599.45078 | K132: 6.414827586 | L132: =[1]!AgePb6U8(K132) -> 12915.27299
A133: 97BYE5 | B133: 15.641 | C133: 15.397 | D133: 35.962 | E133: 1.2 | F133: 6.2 | G133: 0.9843999744 | H133: =[1]!AgePb76(G133) -> 5215.269139 | I133: 5.800322581 | J133: =[1]!AgePb8Th2(I133) -> 38746.23647 | K133: 13.03416667 | L133: =[1]!AgePb6U8(K133) -> 17028.16975
A134: 97BYE6 | B134: 17.663 | C134: 15.781 | D134: 44.585 | E134: 3.1 | F134: 36.5 | G134: 0.8934495839 | H134: =[1]!AgePb76(G134) -> 5078.53978 | I134: 1.221506849 | J134: =[1]!AgePb8Th2(I134) -> 16133.11221 | K134: 5.697741935 | L134: =[1]!AgePb6U8(K134) -> 12259.59997
A135: 97BNE7 | B135: 15.718 | C135: 15.374 | D135: 45.763 | E135: 2.5 | F135: 65.4 | G135: 0.9781142639 | H135: =[1]!AgePb76(G135) -> 5206.258198 | I135: 0.6997400612 | J135: =[1]!AgePb8Th2(I135) -> 10722.08861 | K135: 6.2872 | L135: =[1]!AgePb6U8(K135) -> 12803.34817
A136: 96BH1 | B136: 17.08 | C136: 15.556 | D136: 46.027 | E136: 6.4 | F136: 101.1 | G136: 0.9107728337 | H136: =[1]!AgePb76(G136) -> 5105.687303 | I136: 0.4552621167 | J136: =[1]!AgePb8Th2(I136) -> 7583.345798 | K136: 2.66875 | L136: =[1]!AgePb6U8(K136) -> 8379.377951
A137: 96BH2 | B137: 26.125 | C137: 17.44 | D137: 61.03 | E137: 10.4 | F137: 97.7 | G137: 0.6675598086 | H137: =[1]!AgePb76(G137) -> 4662.421161 | I137: 0.624667349 | J137: =[1]!AgePb8Th2(I137) -> 9809.056827 | K137: 2.512019231 | L137: =[1]!AgePb6U8(K137) -> 8097.928454
A138: 96BH3 | B138: 15.853 | C138: 15.323 | D138: 36.443 | E138: 3.5 | F138: 20 | G138: 0.966567842 | H138: =[1]!AgePb76(G138) -> 5189.544976 | I138: 1.82215 | J138: =[1]!AgePb8Th2(I138) -> 20970.16687 | K138: 4.529428571 | L138: =[1]!AgePb6U8(K138) -> 11023.91283
A139: 96BH4 | B139: 19.321 | C139: 16.008 | D139: 42.365 | E139: 9.2 | F139: 60.9 | G139: 0.8285285441 | H139: =[1]!AgePb76(G139) -> 4971.585927 | I139: 0.6956486043 | J139: =[1]!AgePb8Th2(I139) -> 10673.37696 | K139: 2.100108696 | L139: =[1]!AgePb6U8(K139) -> 7293.712645
A140: 96BH5 | B140: 16.346 | C140: 15.406 | D140: 41.916 | E140: 2.5 | F140: 34.1 | G140: 0.9424935764 | H140: =[1]!AgePb76(G140) -> 5154.007964 | I140: 1.229208211 | J140: =[1]!AgePb8Th2(I140) -> 16203.06135 | K140: 6.5384 | L140: =[1]!AgePb6U8(K140) -> 13021.82084
A141: 96BH6 | B141: 15.049 | C141: 15.184 | D141: 41.745 | E141: 555 | G141: 1.008970696 | H141: =[1]!AgePb76(G141) -> 5249.918293 | I141: 0 | K141: 0
A142: 96BH7 | B142: 17.03 | C142: 15.577 | D142: 35.498 | E142: 5.8 | F142: 13.9 | G142: 0.9146799765 | H142: =[1]!AgePb76(G142) -> 5111.734594 | I142: 2.55381295 | J142: =[1]!AgePb8Th2(I142) -> 25629.53203 | K142: 2.936206897 | L142: =[1]!AgePb6U8(K142) -> 8832.989802
A143: 96BH8 | B143: 14.647 | C143: 15.046 | D143: 41.678 | E143: 2.3 | F143: 86.8 | G143: 1.027241073 | H143: =[1]!AgePb76(G143) -> 5275.109646 | I143: 0.4801612903 | J143: =[1]!AgePb8Th2(I143) -> 7926.246827 | K143: 6.36826087 | L143: =[1]!AgePb6U8(K143) -> 12874.66046
A144: 96BH9 | B144: 14.409 | C144: 14.998 | D144: 36.174 | E144: 0.8 | F144: 13.5 | G144: 1.04087723 | H144: =[1]!AgePb76(G144) -> 5293.604792 | I144: 2.679555556 | J144: =[1]!AgePb8Th2(I144) -> 26332.32889 | K144: 18.01125 | L144: =[1]!AgePb6U8(K144) -> 18984.88902
A145: 9 7BH2 | B145: 14.573 | C145: 15.028 | D145: 42.414 | E145: 1.7 | F145: 75.6 | G145: 1.031222123 | H145: =[1]!AgePb76(G145) -> 5280.53594 | I145: 0.561031746 | J145: =[1]!AgePb8Th2(I145) -> 9001.454842 | K145: 8.572352941 | L145: =[1]!AgePb6U8(K145) -> 14561.66989
A146: 9713113 | B146: 15.953 | C146: 15.287 | D146: 52.595 | E146: 3.8 | F146: 135 | G146: 0.9582523663 | H146: =[1]!AgePb76(G146) -> 5177.377116 | I146: 0.3895925926 | J146: =[1]!AgePb8Th2(I146) -> 6650.0375 | K146: 4.198157895 | L146: =[1]!AgePb6U8(K146) -> 10625.65229
A147: 97BH5 | B147: 21.711 | C147: 16.553 | D147: 46.541 | E147: 9.7 | F147: 66.5 | G147: 0.7624245774 | H147: =[1]!AgePb76(G147) -> 4853.11197 | I147: 0.6998646617 | J147: =[1]!AgePb8Th2(I147) -> 10723.57023 | K147: 2.238247423 | L147: =[1]!AgePb6U8(K147) -> 7574.744654
A148: 9713116 | B148: 14.513 | C148: 15.02 | D148: 41.073 | E148: 1.2 | F148: 49.6 | G148: 1.034934197 | H148: =[1]!AgePb76(G148) -> 5285.575717 | I148: 0.8280846774 | J148: =[1]!AgePb8Th2(I148) -> 12193.40666 | K148: 12.09416667 | L148: =[1]!AgePb6U8(K148) -> 16581.25279
A149: 9-B\E4 | B149: 15.849 | C149: 15.487 | D149: 34.889 | E149: 2.5 | F149: 6.3 | G149: 0.9771594422 | H149: =[1]!AgePb76(G149) -> 5204.884047 | I149: 5.537936508 | J149: =[1]!AgePb8Th2(I149) -> 37950.91656 | K149: 6.3396 | L149: =[1]!AgePb6U8(K149) -> 12849.53647
G150: Average | H150: =AVERAGE(H122:H149) -> 5123.208843 | J150: =AVERAGE(J122:J149) -> 17899.18872 | L150: =AVERAGE(L122:L149) -> 11906.4739
G151: Maximum | H151: =MAX(H122:H150) -> 5293.604792 | J151: =MAX(J122:J150) -> 38746.23647 | L151: =MAX(L122:L150) -> 18984.88902
G152: Minimum | H152: =MIN(H122:H151) -> 4662.421161 | J152: =MIN(J122:J151) -> 6650.0375 | L152: =MIN(L122:L151) -> 7293.712645
G153: Std Deviation | H153: =STDEV(H120:H149) -> 151.7109317 | J153: =STDEV(J120:J149) -> 9753.954585 | L153: =STDEV(L120:L149) -> 3297.957281

Sheet Nd_Sm_02
A1: Rubidium | B1: TABLE 1. | K1: Rubidium_010.pdf
A2: Strontium | B2: Initial | C2: Today | D2: Today | E2: The Ratio | F2: Half | G2: Decay | H2: 2.303/Delta | I2: Age | J2: Age | K2: Age | L2: Model Age | M2: Model Age | N2: Model Age
A3: Dating | B3: 87Sr/86Sr | C3: 87Sr/86Sr | D3: 87Rb/86Sr | E3: Plus One | F3: Life | G3: Constant | H3: Constant | I3: Years | J3: Million Years | K3: Billion Years | L3: Million Years | M3: % Difference | N3: Difference
A4: TABLE 1 | B4: 0.70496 | C4: 0.70498 | D4: 0.0152 | E4: =1+((C4-B4)/D4) -> 1.001315789 | F4: 48800000000 | G4: =(0.693/F4) -> 1.420081967e-11 | H4: =(2.303/G4) -> 1.621737374e+11 | I4: =(LOG(E4))*(H4) -> 92611662.59 | J4: =(I4/1000000) -> 92.61166259 | K4: =(J4/1000) -> 0.09261166259 | L4: 65
B5: 0.70486 | C5: 0.705 | D5: 0.1443 | E5: 1.000970201 | F5: 48800000000 | G5: 1.420081967e-11 | H5: 1.621737374e+11 | I5: 68299252.39 | J5: 68.29925239 | K5: 0.06829925239
B6: 0.70472 | C6: 0.70486 | D6: 0.1451 | E6: 1.000964852 | F6: 48800000000 | G6: 1.420081967e-11 | H6: 1.621737374e+11 | I6: 67922870.15 | J6: 67.92287015 | K6: 0.06792287015
B7: 0.70505 | C7: 0.70512 | D7: 0.0742 | E7: 1.000943396 | F7: 48800000000 | G7: 1.420081967e-11 | H7: 1.621737374e+11 | I7: 66413167.82 | J7: 66.41316782 | K7: 0.06641316782
B8: 0.70507 | C8: 0.70511 | D8: 0.0422 | E8: 1.000947867 | F8: 48800000000 | G8: 1.420081967e-11 | H8: 1.621737374e+11 | I8: 66727773.11 | J8: 66.72777311 | K8: 0.06672777311
B9: 0.70461 | C9: 0.70498 | D9: 0.3764 | E9: 1.000982997 | F9: 48800000000 | G9: 1.420081967e-11 | H9: 1.621737374e+11 | I9: 69199599.08 | J9: 69.19959908 | K9: 0.06919959908
B10: 0.70415 | C10: 0.70423 | D10: 0.0779 | E10: 1.001026958 | F10: 48800000000 | G10: 1.420081967e-11 | H10: 1.621737374e+11 | I10: 72292702.52 | J10: 72.29270252 | K10: 0.07229270252
B11: 0.70426 | C11: 0.70444 | D11: 0.1858 | E11: 1.000968784 | F11: 48800000000 | G11: 1.420081967e-11 | H11: 1.621737374e+11 | I11: 68199524.75 | J11: 68.19952475 | K11: 0.06819952475
B12: 0.70414 | C12: 0.70417 | D12: 0.0341 | E12: 1.000879765 | F12: 48800000000 | G12: 1.420081967e-11 | H12: 1.621737374e+11 | I12: 61935656.27 | J12: 61.93565627 | K12: 0.06193565627
B13: 0.70391 | C13: 0.70391 | D13: 0.0011 | E13: 1 | F13: 48800000000 | G13: 1.420081967e-11 | H13: 1.621737374e+11 | I13: 0 | J13: 0 | K13: 0
B14: 0.70437 | C14: 0.70455 | D14: 0.1776 | E14: 1.001013514 | F14: 48800000000 | G14: 1.420081967e-11 | H14: 1.621737374e+11 | I14: 71346782.31 | J14: 71.34678231 | K14: 0.07134678231
I15: Average | J15: =AVERAGE(J4:J14) -> 64.08627191 | K15: =AVERAGE(K4:K14) -> 0.06408627191
I16: Maximum | J16: =MAX(J4:J15) -> 92.61166259 | K16: =MAX(K4:K15) -> 0.09261166259
A17: TABLE 2 | B17: Pb206/Pb204 | C17: Pb207/Pb204 | D17: Pb207/Pb206 | E17: Age | I17: Minimum | J17: =MIN(J4:J16) -> 0 | K17: =MIN(K4:K16) -> 0
B18: 17.648 | C18: 15.472 | D18: =(C18/B18) -> 0.8766999093 | E18: =[1]!AgePb76($D$18) -> 5051.755039 | I18: Difference | J18: =(J16+ABS(J17)) -> 92.61166259 | K18: =(K16+ABS(K17)) -> 0.09261166259
B19: 17.641 | C19: 15.477 | D19: =(C19/B19) -> 0.8773312171 | E19: =[1]!AgePb76($D$19) -> 5052.774387
B20: 17.65 | C20: 15.483 | D20: 0.877223796 | E20: =[1]!AgePb76($D$20) -> 5052.600994
B21: 17.535 | C21: 15.471 | D21: 0.8822925577 | E21: =[1]!AgePb76($D$21) -> 5060.758281
B22: 18.029 | C22: 15.491 | D22: 0.8592268013 | E22: =[1]!AgePb76($D$22) -> 5023.228476
B23: 18.18 | C23: 15.508 | D23: 0.8530253025 | E23: =[1]!AgePb76($D$23) -> 5012.955582
B24: 18.07 | C24: 15.494 | D24: 0.8574432761 | E24: =[1]!AgePb76($D$24) -> 5020.282121
B25: 18.315 | C25: 15.524 | D25: 0.8476112476 | E25: =[1]!AgePb76($D$25) -> 5003.922048
B26: 18.16 | C26: 15.507 | D26: 0.8539096916 | E26: =[1]!AgePb76($D$26) -> 5014.425428 | G26: Summary | H26: Pb207/Pb206 | I26: 147Sm/144Nd | J26: 87Rb/86Sr
D27: Average | E27: =AVERAGE(E16:E26) -> 5032.522484 | G27: Average | H27: 5032.522484 | I27: 70.07868764 | J27: 64.08627191
D28: Maximum | E28: =MAX(E16:E27) -> 5060.758281 | G28: Maximum | H28: 5060.758281 | I28: 70.48924499 | J28: 92.61166259
D29: Minimum | E29: =MIN(E16:E28) -> 5003.922048 | G29: Minimum | H29: 5003.922048 | I29: 69.46873152 | J29: 0
D30: Difference | E30: =(E28-ABS(E29)) -> 56.83623276 | G30: Difference | H30: 56.83623276 | I30: 139.9579765 | J30: 92.61166259
A36: Neodymium | K36: Rubidium_010.pdf
A37: Samarium | B37: Initial | C37: Today | D37: Today | E37: The Ratio | F37: Half | G37: Decay | H37: 2.303/Delta | I37: Age | J37: Age | K37: Age | L37: Model Age | M37: Model Age | N37: Model Age
A38: Dating | B38: 143Nd/144Nd | C38: 143Nd/144Nd | D38: 147Sm/144Nd | E38: Plus One | F38: Life | G38: Constant | H38: Constant | I38: Years | J38: Million Years | K38: Billion Years | L38: Million Years | M38: % Difference | N38: Difference
B39: 0.512398 | C39: 0.512461 | D39: 0.1367 | E39: =1+((C39-B39)/D39) -> 1.000460863 | F39: 106000000000 | G39: =(0.693/F39) -> 6.537735849e-12 | H39: =(2.303/G39) -> 3.522626263e+11 | I39: =(LOG(E39))*(H39) -> 70489244.99 | J39: =(I39/1000000) -> 70.48924499 | K39: =(J39/1000) -> 0.07048924499
B40: 0.512403 | C40: 0.512466 | D40: 0.1369 | E40: =1+((C40-B40)/D40) -> 1.00046019 | F40: 106000000000 | G40: 6.537735849e-12 | H40: =(2.303/G40) -> 3.522626263e+11 | I40: =(LOG(E40))*(H40) -> 70386289.5 | J40: =(I40/1000000) -> 70.3862895 | K40: =(J40/1000) -> 0.0703862895
B41: 0.512394 | C41: 0.512456 | D41: 0.1356 | E41: 1.000457227 | F41: 106000000000 | G41: 6.537735849e-12 | H41: 3.522626263e+11 | I41: 69933234.15 | J41: 69.93323415 | K41: 0.06993323415
B42: 0.512317 | C42: 0.512376 | D42: 0.1283 | E42: 1.00045986 | F42: 106000000000 | G42: 6.537735849e-12 | H42: 3.522626263e+11 | I42: 70335794.42 | J42: 70.33579442 | K42: 0.07033579442
B43: 0.512321 | C43: 0.512379 | D43: 0.1277 | E43: 1.00045419 | F43: 106000000000 | G43: 6.537735849e-12 | H43: 3.522626263e+11 | I43: 69468731.52 | J43: 69.46873152 | K43: 0.06946873152
B44: 0.512499 | C44: 0.512555 | D44: 0.1217 | E44: 1.000460148 | F44: 106000000000 | G44: 6.537735849e-12 | H44: 3.522626263e+11 | I44: 70379864.76 | J44: 70.37986476 | K44: 0.07037986476
B45: 0.512624 | C45: 0.512699 | D45: 0.1637 | E45: 1.000458155 | F45: 106000000000 | G45: 6.537735849e-12 | H45: 3.522626263e+11 | I45: 70075143.5 | J45: 70.0751435 | K45: 0.0700751435
B46: 0.512617 | C46: 0.512682 | D46: 0.142 | E46: 1.000457746 | F46: 106000000000 | G46: 6.537735849e-12 | H46: 3.522626263e+11 | I46: 70012649.45 | J46: 70.01264945 | K46: 0.07001264945
B47: 0.512612 | C47: 0.512694 | D47: 0.18 | E47: 1.000455556 | F47: 106000000000 | G47: 6.537735849e-12 | H47: 3.522626263e+11 | I47: 69677622.47 | J47: 69.67762247 | K47: 0.06967762247
B48: 0.512503 | C48: 0.512566 | D48: 0.1376 | E48: 1.000457849 | F48: 106000000000 | G48: 6.537735849e-12 | H48: 3.522626263e+11 | I48: 70028301.65 | J48: 70.02830165 | K48: 0.07002830165
I49: Average | J49: =AVERAGE(J38:J48) -> 70.07868764
I50: Maximum | J50: =MAX(J38:J49) -> 70.48924499
I51: Minimum | J51: =MIN(J38:J50) -> 69.46873152
I52: Difference | J52: =(J50+ABS(J51)) -> 139.9579765

Sheet Nd_Sm_03
A1: Rubidium | B1: TABLE 1. | K1: Rubidium_011.pdf
A2: Strontium | B2: Initial | C2: Today | D2: Today | E2: The Ratio | F2: Half | G2: Decay | H2: 2.303/Delta | I2: Age | J2: Age | K2: Age | L2: Model Age | M2: Model Age | N2: Model Age
A3: Dating | B3: 87Sr/86Sr | C3: 87Sr/86Sr | D3: 87Rb/86Sr | E3: Plus One | F3: Life | G3: Constant | H3: Constant | I3: Years | J3: Million Years | K3: Billion Years | L3: Million Years | M3: % Difference | N3: Difference
A4: TABLE 1 | B4: 0.7041 | C4: 0.70429 | D4: 0.1152 | E4: =1+((C4-B4)/D4) -> 1.001649306 | F4: 48800000000 | G4: =(0.693/F4) -> 1.420081967e-11 | H4: =(2.303/G4) -> 1.621737374e+11 | I4: =(LOG(E4))*(H4) -> 116066813.7 | J4: =(I4/1000000) -> 116.0668137 | K4: =(J4/1000) -> 0.1160668137 | L4: 71
B5: 0.7041 | C5: 0.7042 | D5: 0.083 | E5: 1.001204819 | F5: 48800000000 | G5: 1.420081967e-11 | H5: 1.621737374e+11 | I5: 84805740.83 | J5: 84.80574083 | K5: 0.08480574083
B6: 0.7099 | C6: 0.711 | D6: 1.136 | E6: 1.00096831 | F6: 48800000000 | G6: 1.420081967e-11 | H6: 1.621737374e+11 | I6: 68166188.22 | J6: 68.16618822 | K6: 0.06816618822
B7: 0.7045 | C7: 0.7062 | D7: 1.523 | E7: 1.001116218 | F7: 48800000000 | G7: 1.420081967e-11 | H7: 1.621737374e+11 | I7: 78572683.1 | J7: 78.5726831 | K7: 0.0785726831
B8: 0.7045 | C8: 0.70467 | D8: 0.1104 | E8: 1.001539855 | F8: 48800000000 | G8: 1.420081967e-11 | H8: 1.621737374e+11 | I8: 108370361.9 | J8: 108.3703619 | K8: 0.1083703619
B9: 0.7044 | C9: 0.7045 | D9: 0.083 | E9: 1.001204819 | F9: 48800000000 | G9: 1.420081967e-11 | H9: 1.621737374e+11 | I9: 84805740.83 | J9: 84.80574083 | K9: 0.08480574083
B10: 0.7044 | C10: 0.70446 | D10: 0.083 | E10: 1.000722892 | F10: 48800000000 | G10: 1.420081967e-11 | H10: 1.621737374e+11 | I10: 50895697.21 | J10: 50.89569721 | K10: 0.05089569721
B11: 0.7041 | C11: 0.70416 | D11: 0.0546 | E11: 1.001098901 | F11: 48800000000 | G11: 1.420081967e-11 | H11: 1.621737374e+11 | I11: 77354383.67 | J11: 77.35438367 | K11: 0.07735438367
B12: 0.709 | C12: 0.71017 | D12: 1.113 | E12: 1.001051213 | F12: 48800000000 | G12: 1.420081967e-11 | H12: 1.621737374e+11 | I12: 73999258.17 | J12: 73.99925817 | K12: 0.07399925817
B13: 0.704 | C13: 0.70404 | D13: 0.0219 | E13: 1.001826484 | F13: 48800000000 | G13: 1.420081967e-11 | H13: 1.621737374e+11 | I13: 128524048.9 | J13: 128.5240489 | K13: 0.1285240489
B14: 0.7043 | C14: 0.70455 | D14: 0.261 | E14: 1.000957854 | F14: 48800000000 | G14: 1.420081967e-11 | H14: 1.621737374e+11 | I14: 67430507.07 | J14: 67.43050707 | K14: 0.06743050707
B15: 0.7078 | C15: 0.70828 | D15: 0.4285 | E15: 1.001120187 | F15: 48800000000 | G15: 1.420081967e-11 | H15: 1.621737374e+11 | I15: 78851891.52 | J15: 78.85189152 | K15: 0.07885189152
B16: 0.7038 | C16: 0.70395 | D16: 0.2097 | E16: 1.000715308 | F16: 48800000000 | G16: 1.420081967e-11 | H16: 1.621737374e+11 | I16: 50361932.25 | J16: 50.36193225 | K16: 0.05036193225
B17: 0.7042 | C17: 0.70435 | D17: 0.1403 | E17: 1.001069138 | F17: 48800000000 | G17: 1.420081967e-11 | H17: 1.621737374e+11 | I17: 75260373.24 | J17: 75.26037324 | K17: 0.07526037324
B18: 0.704 | C18: 0.70404 | D18: 0.0281 | E18: 1.001423488 | F18: 48800000000 | G18: 1.420081967e-11 | H18: 1.621737374e+11 | I18: 100186587.7 | J18: 100.1865877 | K18: 0.1001865877
B19: 0.7044 | C19: 0.70447 | D19: 0.0338 | E19: 1.002071006 | F19: 48800000000 | G19: 1.420081967e-11 | H19: 1.621737374e+11 | I19: 145712513.8 | J19: 145.7125138 | K19: 0.1457125138
B20: 0.7046 | C20: 0.70463 | D20: 0.0261 | E20: 1.001149425 | F20: 48800000000 | G20: 1.420081967e-11 | H20: 1.621737374e+11 | I20: 80908865.02 | J20: 80.90886502 | K20: 0.08090886502
I21: Average | J21: =AVERAGE(J4:J20) -> 86.4866816 | K21: =AVERAGE(K4:K20) -> 0.0864866816
I22: Maximum | J22: =MAX(J4:J21) -> 145.7125138 | K22: =MAX(K4:K21) -> 0.1457125138
I23: Minimum | J23: =MIN(J4:J22) -> 50.36193225 | K23: =MIN(K4:K22) -> 0.05036193225
I24: Difference | J24: =(J22+ABS(J23)) -> 196.0744461 | K24: =(K22+ABS(K23)) -> 0.1960744461
F27: 207Pb/206Pb | I27: 206Pb/238U
A28: TABLE 2 | B28: 208 pb/ 204 pb | C28: 207 pb/ 204 pb | D28: 206 pb/ 204 pb | E28: 207 pb/ 206 pb | F28: Age | G28: 238 u/ 204 pb | H28: 206 pb / 238 u | I28: Age
B29: 38.527 | C29: 15.592 | D29: 18.386 | E29: =(C29/D29) -> 0.8480365495 | F29: =[1]!AgePb76($E$29) -> 5004.633894 | G29: 4.18 | H29: =(D29/G29) -> 4.398564593 | I29: =[1]!AgePb6U8(H29) -> 10869.51234
B30: 38.791 | C30: 15.558 | D30: 18.598 | E30: =(C30/D30) -> 0.8365415636 | F30: =[1]!AgePb76($E$30) -> 4985.259596 | G30: 8.16 | H30: =(D30/G30) -> 2.279166667 | I30: =[1]!AgePb6U8(H30) -> 7655.692668
B31: 38.619 | C31: 15.584 | D31: 18.426 | E31: 0.8457614241 | F31: =[1]!AgePb76($E$31) -> 5000.821501 | G31: 13.93 | H31: 1.32275664 | I31: =[1]!AgePb6U8(H31) -> 5432.745769
B32: 38.667 | C32: 15.589 | D32: 18.476 | E32: 0.8437432345 | F32: =[1]!AgePb76($E$32) -> 4997.430524
B33: 38.694 | C33: 15.573 | D33: 18.385 | E33: 0.8470492249 | F33: =[1]!AgePb76($E$33) -> 5002.980785
B34: 39.083 | C34: 15.507 | D34: 18.128 | E34: 0.8554170344 | F34: =[1]!AgePb76($E$34) -> 5016.926895
B35: 38.256 | C35: 15.605 | D35: 18.315 | E35: 0.852033852 | F35: =[1]!AgePb76($E$35) -> 5011.305876 | G35: 20.4 | H35: 0.8977941176 | I35: =[1]!AgePb6U8(H35) -> 4130.16742
B36: 39.815 | C36: 15.688 | D36: 19.792 | E36: 0.7926434923 | F36: =[1]!AgePb76($E$36) -> 4908.5752 | G36: 49.22 | H36: 0.4021129622 | I36: =[1]!AgePb6U8(H36) -> 2178.76137
B37: 39.558 | C37: 15.674 | D37: 19.711 | E37: 0.7951905028 | F37: =[1]!AgePb76($E$37) -> 4913.146656 | G37: 81.82 | H37: 0.2409068687 | I37: =[1]!AgePb6U8(H37) -> 1391.409883
B38: 39.51 | C38: 15.668 | D38: 19.425 | E38: 0.8065894466 | F38: =[1]!AgePb76($E$38) -> 4933.416696 | G38: 52.96 | H38: 0.3667862538 | I38: =[1]!AgePb6U8(H38) -> 2014.260654
E39: Average | F39: =AVERAGE(F29:F38) -> 4977.449762 | I39: =AVERAGE(I29:I38) -> 4810.364301
E40: Maximum | F40: =MAX(F29:F39) -> 5016.926895 | I40: =MAX(I29:I39) -> 10869.51234
E41: Minimum | F41: =MIN(F29:F40) -> 4908.5752 | I41: =MIN(I29:I40) -> 1391.409883
E42: Difference | F42: =(F40-ABS(F41)) -> 108.3516949 | I42: =(I40-ABS(I41)) -> 9478.10246
E45: Summary | F45: 207Pb/206Pb | G45: 206Pb/238U | H45: 87Rb/86Sr | I45: 147Sm/144Nd
E46: Average | F46: 4977.449762 | G46: 4810.364301 | H46: 86.4866816 | I46: 72.31606565
E47: Maximum | F47: 5016.926895 | G47: 10869.51234 | H47: 145.7125138 | I47: 80.07627232 | K47: =(5017/146) -> 34.3630137 | L47: =(10870/80) -> 135.875
E48: Minimum | F48: 4908.5752 | G48: 1391.409883 | H48: 50.36193225 | I48: 62.98115203 | L48: =(10870/147) -> 73.94557823
E49: Difference | F49: 108.3516949 | G49: 9478.10246 | H49: 196.0744461 | I49: 17.09512029
A55: Neodymium | K55: Rubidium_010.pdf
A56: Samarium | B56: Initial | C56: Today | D56: Today | E56: The Ratio | F56: Half | G56: Decay | H56: 2.303/Delta | I56: Age | J56: Age | K56: Age | L56: Model Age | M56: Model Age | N56: Model Age
A57: Dating | B57: 143Nd/144Nd | C57: 143Nd/144Nd | D57: 147Sm/144Nd | E57: Plus One | F57: Life | G57: Constant | H57: Constant | I57: Years | J57: Million Years | K57: Billion Years | L57: Million Years | M57: % Difference | N57: Difference
B58: 0.51269 | C58: 0.512732 | D58: 0.0852 | E58: =1+((C58-B58)/D58) -> 1.000492958 | F58: 106000000000 | G58: =(0.693/F58) -> 6.537735849e-12 | H58: =(2.303/G58) -> 3.522626263e+11 | I58: =(LOG(E58))*(H58) -> 75396910.98 | J58: =(I58/1000000) -> 75.39691098 | K58: =(J58/1000) -> 0.07539691098
B59: 0.51285 | C59: 0.512888 | D59: 0.0857 | E59: =1+((C59-B59)/D59) -> 1.000443407 | F59: 106000000000 | G59: 6.537735849e-12 | H59: =(2.303/G59) -> 3.522626263e+11 | I59: =(LOG(E59))*(H59) -> 67819937.89 | J59: =(I59/1000000) -> 67.81993789 | K59: =(J59/1000) -> 0.06781993789
B60: 0.51264 | C60: 0.51268 | D60: 0.0764 | E60: 1.00052356 | F60: 106000000000 | G60: 6.537735849e-12 | H60: 3.522626263e+11 | I60: 80076272.32 | J60: 80.07627232 | K60: 0.08007627232
B61: 0.51272 | C61: 0.51276 | D61: 0.08 | E61: 1.0005 | F61: 106000000000 | G61: 6.537735849e-12 | H61: 3.522626263e+11 | I61: 76473740.54 | J61: 76.47374054 | K61: 0.07647374054
B62: 0.51264 | C62: 0.512678 | D62: 0.0755 | E62: 1.000503311 | F62: 106000000000 | G62: 6.537735849e-12 | H62: 3.522626263e+11 | I62: 76980061.76 | J62: 76.98006176 | K62: 0.07698006176
B63: 0.51272 | C63: 0.512767 | D63: 0.1102 | E63: 1.000426497 | F63: 106000000000 | G63: 6.537735849e-12 | H63: 3.522626263e+11 | I63: 65234080.78 | J63: 65.23408078 | K63: 0.06523408078
B64: 0.51287 | C64: 0.512929 | D64: 0.1296 | E64: 1.000455247 | F64: 106000000000 | G64: 6.537735849e-12 | H64: 3.522626263e+11 | I64: 69630426.15 | J64: 69.63042615 | K64: 0.06963042615
B65: 0.5129 | C65: 0.512967 | D65: 0.1445 | E65: 1.000463668 | F65: 106000000000 | G65: 6.537735849e-12 | H65: 3.522626263e+11 | I65: 70918112.91 | J65: 70.91811291 | K65: 0.07091811291
B66: 0.51278 | C66: 0.512813 | D66: 0.065 | E66: 1.000507692 | F66: 106000000000 | G66: 6.537735849e-12 | H66: 3.522626263e+11 | I66: 77649961.1 | J66: 77.6499611 | K66: 0.0776499611
B67: 0.5128 | C67: 0.512828 | D67: 0.068 | E67: 1.000411765 | F67: 106000000000 | G67: 6.537735849e-12 | H67: 3.522626263e+11 | I67: 62981152.03 | J67: 62.98115203 | K67: 0.06298115203
I68: Average | J68: =AVERAGE(J58:J67) -> 72.31606565
I69: Maximum | J69: =MAX(J58:J68) -> 80.07627232
I70: Minimum | J70: =MIN(J58:J69) -> 62.98115203
I71: Difference | J71: =(J69-ABS(J70)) -> 17.09512029

Sheet Nd_Sm_04
A1: Rubidium | B1: TABLE 1. | K1: Rubidium_012.pdf
A2: Strontium | B2: Initial | C2: Today | D2: Today | E2: The Ratio | F2: Half | G2: Decay | H2: 2.303/Delta | I2: Age | J2: Age | K2: Age | L2: Model Age | M2: Model Age | N2: Model Age
A3: Dating | B3: 87Sr/86Sr | C3: 87Sr/86Sr | D3: 87Rb/86Sr | E3: Plus One | F3: Life | G3: Constant | H3: Constant | I3: Years | J3: Million Years | K3: Billion Years | L3: Million Years | M3: % Difference | N3: Difference
A4: TABLE 1 | B4: 0.725 | C4: 0.79991 | D4: 1.667 | E4: =1+((C4-B4)/D4) -> 1.044937013 | F4: 48800000000 | G4: =(0.693/F4) -> 1.420081967e-11 | H4: =(2.303/G4) -> 1.621737374e+11 | I4: =(LOG(E4))*(H4) -> 3095914899 | J4: =(I4/1000000) -> 3095.914899 | K4: =(J4/1000) -> 3.095914899 | L4: 3120 | M4: =(L4/J4) * 100 -> 100.7779639 | N4: =(L4-J4) -> 24.0851014
B5: 0.725 | C5: 0.83517 | D5: 2.47 | E5: 1.044603239 | F5: 48800000000 | G5: 1.420081967e-11 | H5: 1.621737374e+11 | I5: 3073414187 | J5: 3073.414187 | K5: 3.073414187 | L5: 3120 | M5: =(L5/J5) * 100 -> 101.5157675 | N5: =(L5-J5) -> 46.58581273
B6: 0.734 | C6: 0.74362 | D6: 0.259 | E6: 1.037142857 | F6: 48800000000 | G6: 1.420081967e-11 | H6: 1.621737374e+11 | I6: 2568601825 | J6: 2568.601825 | K6: 2.568601825 | L6: 2460 | M6: 95.77194786 | N6: =(J6-L6) -> 108.6018245
B7: 0.734 | C7: 0.83196 | D7: 2.74 | E7: 1.035751825 | F7: 48800000000 | G7: 1.420081967e-11 | H7: 1.621737374e+11 | I7: 2474075041 | J7: 2474.075041 | K7: 2.474075041 | L7: 2460 | M7: 99.43109888 | N7: =(J7-L7) -> 14.07504051
B8: 0.706 | C8: 0.77116 | D8: 1.494 | E8: 1.043614458 | F8: 48800000000 | G8: 1.420081967e-11 | H8: 1.621737374e+11 | I8: 3006715203 | J8: 3006.715203 | K8: 3.006715203 | L8: 3060 | M8: 101.772193 | N8: =(L8-J8) -> 53.2847971
B9: 0.706 | C9: 0.73648 | D9: 0.689 | E9: 1.044238026 | F9: 48800000000 | G9: 1.420081967e-11 | H9: 1.621737374e+11 | I9: 3048785837 | J9: 3048.785837 | K9: 3.048785837 | L9: 3060 | M9: 100.3678239 | N9: =(L9-J9) -> 11.21416287
B10: 0.706 | C10: 0.76422 | D10: 1.486 | E10: 1.039179004 | F10: 48800000000 | G10: 1.420081967e-11 | H10: 1.621737374e+11 | I10: 2706738628 | J10: 2706.738628 | K10: 2.706738628 | L10: 3060 | M10: 113.0511815 | N10: =(L10-J10) -> 353.2613723
B11: 0.706 | C11: 0.70884 | D11: 0.056 | E11: 1.050714286 | F11: 48800000000 | G11: 1.420081967e-11 | H11: 1.621737374e+11 | I11: 3484243886 | J11: 3484.243886 | K11: 3.484243886 | L11: 2300 | M11: 66.01145256 | N11: 1184.243886
B12: 0.706 | C12: 0.70565 | D12: 0.025 | E12: 0.986 | F12: 48800000000 | G12: 1.420081967e-11 | H12: 1.621737374e+11 | I12: -993003588.2 | J12: -993.0035882 | K12: -0.9930035882 | L12: 2300 | M12: -231.6205125 | N12: =(L12-J12) -> 3293.003588
B13: 0.706 | C13: 0.70534 | D13: 0.011 | E13: 0.94 | F13: 48800000000 | G13: 1.420081967e-11 | H13: 1.621737374e+11 | I13: -4357956413 | J13: -4357.956413 | K13: -4.357956413 | L13: 2300 | M13: -52.77703084 | N13: 6657.956413
B14: 0.706 | C14: 0.70601 | D14: 0.031 | E14: 1.000322581 | F14: 48800000000 | G14: 1.420081967e-11 | H14: 1.621737374e+11 | I14: 22716065.11 | J14: 22.71606511 | K14: 0.02271606511 | L14: 2300 | M14: 10124.99299 | N14: 2277.283935
B15: 0.706 | C15: 0.7054 | D15: 0.002 | E15: 0.7 | F15: 48800000000 | G15: 1.420081967e-11 | H15: 1.621737374e+11 | I15: -2.512102978e+10 | J15: -25121.02978 | K15: -25.12102978 | L15: 2300 | M15: -9.155675625 | N15: 27421.02978
B16: 0.706 | C16: 0.70654 | D16: 0.04 | E16: 1.0135 | F16: 48800000000 | G16: 1.420081967e-11 | H16: 1.621737374e+11 | I16: 944459794.3 | J16: 944.4597943 | K16: 0.9444597943 | L16: 2300 | M16: 243.5254538 | N16: 1355.540206
B17: 0.706 | C17: 0.70656 | D17: 0.029 | E17: 1.019310345 | F17: 48800000000 | G17: 1.420081967e-11 | H17: 1.621737374e+11 | I17: 1347085093 | J17: 1347.085093 | K17: 1.347085093 | L17: 2300 | M17: 170.7390284 | N17: 952.9149069
B18: 0.706 | C18: 0.70579 | D18: 0.014 | E18: 0.985 | F18: 48800000000 | G18: 1.420081967e-11 | H18: 1.621737374e+11 | I18: -1064471031 | J18: -1064.471031 | K18: -1.064471031 | L18: 2300 | M18: -216.0697597 | N18: 3364.471031
B19: 0.706 | C19: 0.70578 | D19: 0.002 | E19: 0.89 | F19: 48800000000 | G19: 1.420081967e-11 | H19: 1.621737374e+11 | I19: -8207611771 | J19: -8207.611771 | K19: -8.207611771 | L19: 2300 | M19: -28.02276794 | N19: 10507.61177
I20: Average | J20: =AVERAGE(J4:J19) -> -873.2076327 | K20: =AVERAGE(K4:K19) -> -0.8732076327
I21: Maximum | J21: =MAX(J4:J20) -> 3484.243886 | K21: =MAX(K4:K20) -> 3.484243886
I22: Minimum | J22: =MIN(J4:J21) -> -25121.02978 | K22: =MIN(K4:K21) -> -25.12102978
I23: Difference | J23: =(J21+ABS(J22)) -> 28605.27366 | K23: =(K21+ABS(K22)) -> 28.60527366

Sheet Nd_Sm_05
A1: Rubidium | B1: TABLE 1. | K1: Rubidium_016.pdf
A2: Strontium | B2: Initial | C2: Today | D2: Today | E2: The Ratio | F2: Half | G2: Decay | H2: 2.303/Delta | I2: Age | J2: Age | K2: Age | L2: Model Age | M2: Model Age | N2: Model Age
A3: Dating | B3: 87Sr/86Sr | C3: 87Sr/86Sr | D3: 87Rb/86Sr | E3: Plus One | F3: Life | G3: Constant | H3: Constant | I3: Years | J3: Million Years | K3: Billion Years | L3: Million Years | M3: % Difference | N3: Difference
B6: Pb206/Pb204 | C6: Pb207/Pb204 | D6: Pb207/Pb204 | E6: Age | G6: Age | H6: Age
A7: TABLE 2 | B7: 19.327 | C7: 15.586 | D7: =(C7/B7) -> 0.8064365913 | E7: =[1]!AgePb76($D$7) -> 4933.146904 | G7: 4933.146904 | H7: 4928.037331
B8: 18.917 | C8: 15.554 | D8: =(C8/B8) -> 0.8222233969 | E8: =[1]!AgePb76($D$8) -> 4960.727441 | G8: 4960.727441 | H8: 4955.533839
B9: 19.033 | C9: 15.559 | D9: 0.817474912 | E9: =[1]!AgePb76($D$9) -> 4952.491176 | G9: 4952.491176 | H9: 4947.058974
B10: 19.041 | C10: 15.565 | D10: 0.8174465627 | E10: =[1]!AgePb76($D$10) -> 4952.441852 | G10: 4952.441852 | H10: 4957.226814
B11: 19.225 | C11: 15.596 | D11: 0.8112353706 | E11: =[1]!AgePb76($D$11) -> 4941.590986 | G11: 4941.590986 | H11: 4927.207748
B12: 18.665 | C12: 15.529 | D12: 0.8319849987 | E12: =[1]!AgePb76($D$12) -> 4977.501292 | G12: 4977.501292 | H12: 4951.794251
B13: 19.203 | C13: 15.56 | D13: 0.8102900588 | E13: =[1]!AgePb76($D$13) -> 4939.931796 | G13: 4939.931796 | H13: 4954.10971
B14: 19.137 | C14: 15.589 | D14: 0.8145999895 | E14: =[1]!AgePb76($D$14) -> 4947.479852 | G14: 4947.479852
B15: 19.394 | C15: 15.584 | D15: 0.8035474889 | E15: =[1]!AgePb76($D$15) -> 4928.037331 | G15: 4928.037331
B16: 18.985 | C16: 15.553 | D16: 0.8192257045 | E16: =[1]!AgePb76($D$16) -> 4955.533839 | G16: 4955.533839
B17: 19.096 | C17: 15.551 | D17: 0.8143590281 | E17: =[1]!AgePb76($D$17) -> 4947.058974 | G17: 4947.058974
B18: 18.949 | C18: 15.542 | D18: 0.8202015938 | E18: =[1]!AgePb76($D$18) -> 4957.226814 | G18: 4957.226814
B19: 19.419 | C19: 15.595 | D19: 0.8030794583 | E19: =[1]!AgePb76($D$19) -> 4927.207748 | G19: 4927.207748
B20: 19.046 | C20: 15.562 | D20: 0.8170744513 | E20: =[1]!AgePb76($D$20) -> 4951.794251 | G20: 4951.794251
B21: 19.081 | C21: 15.616 | D21: 0.8184057439 | E21: =[1]!AgePb76($D$21) -> 4954.10971 | G21: 4954.10971

Sheet Nd_Sm_06
A1: Rubidium | B1: TABLE 1. | K1: Rubidium_017.pdf
A2: Strontium | B2: Initial | C2: Today | D2: Today | E2: The Ratio | F2: Half | G2: Decay | H2: 2.303/Delta | I2: Age | J2: Age | K2: Age | L2: Model Age | M2: Model Age | N2: Model Age
A3: Dating | B3: 87Sr/86Sr | C3: 87Sr/86Sr | D3: 87Rb/86Sr | E3: Plus One | F3: Life | G3: Constant | H3: Constant | I3: Years | J3: Million Years | K3: Billion Years | L3: Million Years | M3: % Difference | N3: Difference
A4: TABLE 3 | B4: 0.7042 | C4: 0.7042 | D4: 0.00014 | E4: =1+((C4-B4)/D4) -> 1 | F4: 48800000000 | G4: =(0.693/F4) -> 1.420081967e-11 | H4: =(2.303/G4) -> 1.621737374e+11 | I4: =(LOG(E4))*(H4) -> 0 | J4: =(I4/1000000) -> 0 | K4: =(J4/1000) -> 0 | L4: 1500 | M4: =(J4/L4) * 100 -> 0 | N4: =(J4-L4) -> -1500
B5: 0.70455 | C5: 0.70455 | D5: 0.00394 | E5: 1 | F5: 48800000000 | G5: 1.420081967e-11 | H5: 1.621737374e+11 | I5: 0 | J5: 0 | K5: 0 | L5: 1500 | M5: =(J5/L5) * 100 -> 0 | N5: -1500
B6: 0.70935 | C6: 0.70936 | D6: 0.00064 | E6: 1.015625 | F6: 48800000000 | G6: 1.420081967e-11 | H6: 1.621737374e+11 | I6: 1091977831 | J6: 1091.977831 | K6: 1.091977831 | L6: 1500 | M6: 72.79852206 | N6: -408.022169
B7: 0.70901 | C7: 0.70924 | D7: 0.04041 | E7: 1.00569166 | F7: 48800000000 | G7: 1.420081967e-11 | H7: 1.621737374e+11 | I7: 399733747.3 | J7: 399.7337473 | K7: 0.3997337473 | L7: 1500 | M7: 26.64891649 | N7: -1100.266253
B8: 0.71002 | C8: 0.71002 | D8: 0.00023 | E8: 1 | F8: 48800000000 | G8: 1.420081967e-11 | H8: 1.621737374e+11 | I8: 0 | J8: 0 | K8: 0 | L8: 1500 | M8: 0 | N8: -1500
B9: 0.70864 | C9: 0.70874 | D9: 0.05972 | E9: 1.001674481 | F9: 48800000000 | G9: 1.420081967e-11 | H9: 1.621737374e+11 | I9: 117837001.3 | J9: 117.8370013 | K9: 0.1178370013 | L9: 1500 | M9: 7.855800087 | N9: -1382.162999
B10: 0.70832 | C10: 0.70857 | D10: 0.04513 | E10: 1.005539552 | F10: 48800000000 | G10: 1.420081967e-11 | H10: 1.621737374e+11 | I10: 389080424.1 | J10: 389.0804241 | K10: 0.3890804241 | L10: 1500 | M10: 25.93869494 | N10: -1110.919576
B11: 0.70998 | C11: 0.71027 | D11: 0.05111 | E11: 1.005674036 | F11: 48800000000 | G11: 1.420081967e-11 | H11: 1.621737374e+11 | I11: 398499476.6 | J11: 398.4994766 | K11: 0.3984994766 | L11: 1500 | M11: 26.56663177 | N11: -1101.500523
B12: 0.71006 | C12: 0.71032 | D12: 0.04653 | E12: 1.005587793 | F12: 48800000000 | G12: 1.420081967e-11 | H12: 1.621737374e+11 | I12: 392459253.9 | J12: 392.4592539 | K12: 0.3924592539 | L12: 1500 | M12: 26.16395026 | N12: -1107.540746
I13: Average | J13: =AVERAGE(J4:J12) -> 309.9541927
I14: Maximum | J14: =MAX(J4:J13) -> 1091.977831
I15: Minimum | J15: =MIN(J4:J14) -> 0
I16: Difference | J16: =(J14+ABS(J15)) -> 1091.977831
K18: Rubidium_017.pdf
A19: TABLE 1 | B19: 0.7042 | C19: 0.7042 | D19: 0.0001 | E19: =1+((C19-B19)/D19) -> 1 | F19: 48800000000 | G19: =(0.693/F19) -> 1.420081967e-11 | H19: =(2.303/G19) -> 1.621737374e+11 | I19: =(LOG(E19))*(H19) -> 0 | J19: =(I19/1000000) -> 0 | K19: =(J19/1000) -> 0 | L19: 1500 | M19: =(J19/L19) * 100 -> 0 | N19: =(J19-L19) -> -1500
B20: 0.70374 | C20: 0.70375 | D20: 0.0034 | E20: 1.002941176 | F20: 48800000000 | G20: 1.420081967e-11 | H20: 1.621737374e+11 | I20: 206846431.3 | J20: 206.8464313 | K20: 0.2068464313 | L20: 1500 | M20: 13.78976209 | N20: -1293.153569
B21: 0.70936 | C21: 0.70936 | D21: 0.0005 | E21: 1 | F21: 48800000000 | G21: 1.420081967e-11 | H21: 1.621737374e+11 | I21: 0 | J21: 0 | K21: 0 | L21: 1500 | M21: 0 | N21: -1500
B22: 0.70906 | C22: 0.70907 | D22: 0.0058 | E22: 1.001724138 | F22: 48800000000 | G22: 1.420081967e-11 | H22: 1.621737374e+11 | I22: 121328469.7 | J22: 121.3284697 | K22: 0.1213284697 | L22: 1500 | M22: 8.088564647 | N22: -1378.67153
B23: 0.71002 | C23: 0.71002 | D23: 0.0002 | E23: 1 | F23: 48800000000 | G23: 1.420081967e-11 | H23: 1.621737374e+11 | I23: 0 | J23: 0 | K23: 0 | L23: 1500 | M23: 0 | N23: -1500
B24: 0.71098 | C24: 0.71106 | D24: 0.0434 | E24: 1.001843318 | F24: 48800000000 | G24: 1.420081967e-11 | H24: 1.621737374e+11 | I24: 129707512.3 | J24: 129.7075123 | K24: 0.1297075123 | L24: 1500 | M24: 8.647167484 | N24: -1370.292488
B25: 0.70614 | C25: 0.70617 | D25: 0.0152 | E25: 1.001973684 | F25: 48800000000 | G25: 1.420081967e-11 | H25: 1.621737374e+11 | I25: 138871867.4 | J25: 138.8718674 | K25: 0.1388718674 | L25: 1500 | M25: 9.258124492 | N25: -1361.128133
B26: 0.70995 | C26: 0.70998 | D26: 0.0178 | E26: 1.001685393 | F26: 48800000000 | G26: 1.420081967e-11 | H26: 1.621737374e+11 | I26: 118604281.6 | J26: 118.6042816 | K26: 0.1186042816 | L26: 1500 | M26: 7.906952107 | N26: -1381.395718
B27: 0.71024 | C27: 0.71032 | D27: 0.045 | E27: 1.001777778 | F27: 48800000000 | G27: 1.420081967e-11 | H27: 1.621737374e+11 | I27: 125099782.9 | J27: 125.0997829 | K27: 0.1250997829 | L27: 1500 | M27: 8.339985526 | N27: -1374.900217
B28: 0.70631 | C28: 0.70711 | D28: 0.469 | E28: 1.001705757 | F28: 48800000000 | G28: 1.420081967e-11 | H28: 1.621737374e+11 | I28: 120036090.8 | J28: 120.0360908 | K28: 0.1200360908 | L28: 1500 | M28: 8.002406056 | N28: -1379.963909
B29: 0.70824 | C29: 0.70935 | D29: 0.6487 | E29: 1.001711115 | F29: 48800000000 | G29: 1.420081967e-11 | H29: 1.621737374e+11 | I29: 120412789.8 | J29: 120.4127898 | K29: 0.1204127898 | L29: 1500 | M29: 8.027519317 | N29: -1379.58721
B30: 0.7058 | C30: 0.70758 | D30: 1.0451 | E30: 1.001703186 | F30: 48800000000 | G30: 1.420081967e-11 | H30: 1.621737374e+11 | I30: 119855346.3 | J30: 119.8553463 | K30: 0.1198553463 | L30: 1500 | M30: 7.990356423 | N30: -1380.144654
B31: 0.70953 | C31: 0.71018 | D31: 0.3753 | E31: 1.001731948 | F31: 48800000000 | G31: 1.420081967e-11 | H31: 1.621737374e+11 | I31: 121877577.2 | J31: 121.8775772 | K31: 0.1218775772 | L31: 1500 | M31: 8.125171814 | N31: -1378.122423
B32: 0.70972 | C32: 0.71039 | D32: 0.3955 | E32: 1.001694058 | F32: 48800000000 | G32: 1.420081967e-11 | H32: 1.621737374e+11 | I32: 119213530.8 | J32: 119.2135308 | K32: 0.1192135308 | L32: 1500 | M32: 7.94756872 | N32: -1380.786469
I33: Average | J33: =AVERAGE(J19:J32) -> 102.9895486
I34: Maximum | J34: =MAX(J19:J33) -> 206.8464313
I35: Minimum | J35: =MIN(J19:J34) -> 0
I36: Difference | J36: =(J34+ABS(J35)) -> 206.8464313
G38: Summary | H38: 87Rb/86Sr | I38: 87Rb/86Sr | J38: 147Sm/144Nd | K38: 147Sm/144Nd
G39: Average | H39: 309.9541927 | I39: 102.9895486 | J39: 120.4392921 | K39: 159.1162377
G40: Maximum | H40: 1091.977831 | I40: 206.8464313 | J40: 123.0968588 | K40: 400.2996303
G41: Minimum | H41: 0 | I41: 0 | J41: 119.8496456 | K41: 118.8213678
G42: Difference | H42: 1091.977831 | I42: 206.8464313 | J42: 3.247213224 | K42: 281.4782625
A45: Neodymium | K45: Rubidium_017.pdf
A46: Samarium | B46: Initial | C46: Today | D46: Today | E46: The Ratio | F46: Half | G46: Decay | H46: 2.303/Delta | I46: Age | J46: Age | K46: Age
A47: Dating | B47: 143Nd/144Nd | C47: 143Nd/144Nd | D47: 147Sm/144Nd | E47: Plus One | F47: Life | G47: Constant | H47: Constant | I47: Years | J47: Million Years | K47: Billion Years
B48: 0.511562 | C48: 0.511594 | D48: 0.0402 | E48: =1+((C48-B48)/D48) -> 1.00079602 | F48: 106000000000 | G48: =(0.693/F48) -> 6.537735849e-12 | H48: =(2.303/G48) -> 3.522626263e+11 | I48: =(LOG(E48))*(H48) -> 121731229.6 | J48: =(I48/1000000) -> 121.7312296 | K48: =(J48/1000) -> 0.1217312296
B49: 0.511539 | C49: 0.511565 | D49: 0.0323 | E49: =1+((C49-B49)/D49) -> 1.000804954 | F49: 106000000000 | G49: 6.537735849e-12 | H49: =(2.303/G49) -> 3.522626263e+11 | I49: =(LOG(E49))*(H49) -> 123096858.8 | J49: =(I49/1000000) -> 123.0968588 | K49: =(J49/1000) -> 0.1230968588
B50: 0.518521 | C50: 0.518733 | D50: 0.2696 | E50: 1.00078635 | F50: 106000000000 | G50: 6.537735849e-12 | H50: 3.522626263e+11 | I50: 120253065.2 | J50: 120.2530652 | K50: 0.1202530652
B51: 0.51571 | C51: 0.515833 | D51: 0.156 | E51: 1.000788462 | F51: 106000000000 | G51: 6.537735849e-12 | H51: 3.522626263e+11 | I51: 120575823.6 | J51: 120.5758236 | K51: 0.1205758236
B52: 0.523877 | C52: 0.524274 | D52: 0.5057 | E52: 1.00078505 | F52: 106000000000 | G52: 6.537735849e-12 | H52: 3.522626263e+11 | I52: 120054382.2 | J52: 120.0543822 | K52: 0.1200543822
B53: 0.514044 | C53: 0.514121 | D53: 0.0976 | E53: 1.000788934 | F53: 106000000000 | G53: 6.537735849e-12 | H53: 3.522626263e+11 | I53: 120648111.6 | J53: 120.6481116 | K53: 0.1206481116
B54: 0.516441 | C54: 0.516525 | D54: 0.1068 | E54: 1.000786517 | F54: 106000000000 | G54: 6.537735849e-12 | H54: 3.522626263e+11 | I54: 120278548.7 | J54: 120.2785487 | K54: 0.1202785487
B55: 0.514631 | C55: 0.514756 | D55: 0.1592 | E55: 1.000785176 | F55: 106000000000 | G55: 6.537735849e-12 | H55: 3.522626263e+11 | I55: 120073559.9 | J55: 120.0735599 | K55: 0.1200735599
B56: 0.515492 | C56: 0.515575 | D56: 0.1054 | E56: 1.000787476 | F56: 106000000000 | G56: 6.537735849e-12 | H56: 3.522626263e+11 | I56: 120425211.9 | J56: 120.4252119 | K56: 0.1204252119
B57: 0.511804 | C57: 0.512008 | D57: 0.2603 | E57: 1.000783711 | F57: 106000000000 | G57: 6.537735849e-12 | H57: 3.522626263e+11 | I57: 119849645.6 | J57: 119.8496456 | K57: 0.1198496456
B58: 0.511862 | C58: 0.512052 | D58: 0.2418 | E58: 1.000785773 | F58: 106000000000 | G58: 6.537735849e-12 | H58: 3.522626263e+11 | I58: 120164895.1 | J58: 120.1648951 | K58: 0.1201648951
B59: 0.518005 | C59: 0.518923 | D59: 1.1697 | E59: 1.000784817 | F59: 106000000000 | G59: 6.537735849e-12 | H59: 3.522626263e+11 | I59: 120018641.4 | J59: 120.0186414 | K59: 0.1200186414
B60: 0.514864 | C60: 0.515339 | D60: 0.6051 | E60: 1.000784994 | F60: 106000000000 | G60: 6.537735849e-12 | H60: 3.522626263e+11 | I60: 120045789.7 | J60: 120.0457897 | K60: 0.1200457897
B61: 0.523601 | C61: 0.525428 | D61: 2.3273 | E61: 1.00078503 | F61: 106000000000 | G61: 6.537735849e-12 | H61: 3.522626263e+11 | I61: 120051239 | J61: 120.051239 | K61: 0.120051239
B62: 0.514707 | C62: 0.514928 | D62: 0.281 | E62: 1.000786477 | F62: 106000000000 | G62: 6.537735849e-12 | H62: 3.522626263e+11 | I62: 120272436.3 | J62: 120.2724363 | K62: 0.1202724363
B63: 0.519272 | C63: 0.519583 | D63: 0.396 | E63: 1.000785354 | F63: 106000000000 | G63: 6.537735849e-12 | H63: 3.522626263e+11 | I63: 120100717.4 | J63: 120.1007174 | K63: 0.1201007174
B64: 0.514952 | C64: 0.515129 | D64: 0.2251 | E64: 1.000786317 | F64: 106000000000 | G64: 6.537735849e-12 | H64: 3.522626263e+11 | I64: 120248027.4 | J64: 120.2480274 | K64: 0.1202480274
B65: 0.517311 | C65: 0.517737 | D65: 0.5428 | E65: 1.000784819 | F65: 106000000000 | G65: 6.537735849e-12 | H65: 3.522626263e+11 | I65: 120019074.7 | J65: 120.0190747 | K65: 0.1200190747
I66: Average | J66: =AVERAGE(J48:J65) -> 120.4392921
I67: Maximum | J67: =MAX(J48:J66) -> 123.0968588
I68: Minimum | J68: =MIN(J48:J67) -> 119.8496456
I69: Difference | J69: =(J67-ABS(J68)) -> 3.247213224
A72: Neodymium | K72: Rubidium_017.pdf
A73: Samarium | B73: Initial | C73: Today | D73: Today | E73: The Ratio | F73: Half | G73: Decay | H73: 2.303/Delta | I73: Age | J73: Age | K73: Age
A74: Dating | B74: 143Nd/144Nd | C74: 143Nd/144Nd | D74: 147Sm/144Nd | E74: Plus One | F74: Life | G74: Constant | H74: Constant | I74: Years | J74: Million Years | K74: Billion Years
B75: 0.511764 | C75: 0.511801 | D75: 0.04762 | E75: =1+((C75-B75)/D75) -> 1.000776984 | F75: 106000000000 | G75: =(0.693/F75) -> 6.537735849e-12 | H75: =(2.303/G75) -> 3.522626263e+11 | I75: =(LOG(E75))*(H75) -> 118821367.8 | J75: =(I75/1000000) -> 118.8213678 | K75: =(J75/1000) -> 0.1188213678
B76: 0.511655 | C76: 0.511682 | D76: 0.0346 | E76: =1+((C76-B76)/D76) -> 1.000780347 | F76: 106000000000 | G76: 6.537735849e-12 | H76: =(2.303/G76) -> 3.522626263e+11 | I76: =(LOG(E76))*(H76) -> 119335360.7 | J76: =(I76/1000000) -> 119.3353607 | K76: =(J76/1000) -> 0.1193353607
B77: 0.518432 | C77: 0.518848 | D77: 0.53016 | E77: 1.000784669 | F77: 106000000000 | G77: 6.537735849e-12 | H77: 3.522626263e+11 | I77: 119996041.6 | J77: 119.9960416 | K77: 0.1199960416
B78: 0.51481 | C78: 0.515531 | D78: 0.27519 | E78: 1.002620008 | F78: 106000000000 | G78: 6.537735849e-12 | H78: 3.522626263e+11 | I78: 400299630.3 | J78: 400.2996303 | K78: 0.4002996303
B79: 0.523751 | C79: 0.524993 | D79: 0.98017 | E79: 1.001267127 | F79: 106000000000 | G79: 6.537735849e-12 | H79: 3.522626263e+11 | I79: 193729635.7 | J79: 193.7296357 | K79: 0.1937296357
B80: 0.514525 | C80: 0.514659 | D80: 0.17106 | E80: 1.000783351 | F80: 106000000000 | G80: 6.537735849e-12 | H80: 3.522626263e+11 | I80: 119794578.4 | J80: 119.7945784 | K80: 0.1197945784
B81: 0.518116 | C81: 0.51836 | D81: 0.31118 | E81: 1.000784112 | F81: 106000000000 | G81: 6.537735849e-12 | H81: 3.522626263e+11 | I81: 119910942.8 | J81: 119.9109428 | K81: 0.1199109428
B82: 0.514848 | C82: 0.515017 | D82: 0.21486 | E82: 1.000786559 | F82: 106000000000 | G82: 6.537735849e-12 | H82: 3.522626263e+11 | I82: 120284943.9 | J82: 120.2849439 | K82: 0.1202849439
B83: 0.516495 | C83: 0.516764 | D83: 0.34317 | E83: 1.000783868 | F83: 106000000000 | G83: 6.537735849e-12 | H83: 3.522626263e+11 | I83: 119873638.1 | J83: 119.8736381 | K83: 0.1198736381
I84: Average | J84: =AVERAGE(J75:J83) -> 159.1162377
I85: Maximum | J85: =MAX(J75:J84) -> 400.2996303
I86: Minimum | J86: =MIN(J75:J85) -> 118.8213678
I87: Difference | J87: =(J85-ABS(J86)) -> 281.4782625

Sheet Nd_Sm_07
A1: Strontium | B1: Initial | C1: Today | D1: Today | E1: The Ratio | F1: Half | G1: Decay | H1: 2.303/Delta | I1: Age | J1: Age | K1: Age | L1: Model Age | M1: Model Age | N1: Model Age | Q1: 15343
A2: Dating | B2: 87Sr/86Sr | C2: 87Sr/86Sr | D2: 87Rb/86Sr | E2: Plus One | F2: Life | G2: Constant | H2: Constant | I2: Years | J2: Million Years | K2: Billion Years | L2: Million Years | M2: % Difference | N2: Difference | Q2: 15299
A3: TABLE 2 | B3: 0.70753 | C3: 0.70473 | D3: 0.0657 | E3: =1+((C3-B3)/D3) -> 0.9573820396 | F3: 48800000000 | G3: =(0.693/F3) -> 1.420081967e-11 | H3: =(2.303/G3) -> 1.621737374e+11 | I3: =(LOG(E3))*(H3) -> -3067471501 | J3: =(I3/1000000) -> -3067.471501 | K3: =(J3/1000) -> -3.067471501 | Q3: 15136
B4: 0.70753 | C4: 0.7038 | D4: 0.2004 | E4: 0.9813872255 | F4: 48800000000 | G4: 1.420081967e-11 | H4: 1.621737374e+11 | I4: -1323272732 | J4: -1323.272732 | K4: -1.323272732 | Q4: 15054
B5: 0.70753 | C5: 0.70514 | D5: 6.5099 | E5: 0.9996328669 | F5: 48800000000 | G5: 1.420081967e-11 | H5: 1.621737374e+11 | I5: -25862360.1 | J5: -25.8623601 | K5: -0.0258623601 | Q5: 13476
B6: 0.70753 | C6: 0.7054 | D6: 200.745 | E6: 0.9999893895 | F6: 48800000000 | G6: 1.420081967e-11 | H6: 1.621737374e+11 | I6: -747312.0879 | J6: -0.7473120879 | K6: -0.0007473120879 | Q6: 13322
B7: 0.70753 | C7: 0.71039 | D7: 502.002 | E7: 1.000005697 | F7: 48800000000 | G7: 1.420081967e-11 | H7: 1.621737374e+11 | I7: 401258.4445 | J7: 0.4012584445 | K7: 0.0004012584445 | Q7: 13202
B8: 0.70753 | C8: 0.70513 | D8: 41.069 | E8: 0.9999415618 | F8: 48800000000 | G8: 1.420081967e-11 | H8: 1.621737374e+11 | I8: -4115993.12 | J8: -4.11599312 | K8: -0.00411599312 | Q8: 13001
B9: 0.70753 | C9: 0.7052 | D9: 0.22 | E9: 0.9894090909 | F9: 48800000000 | G9: 1.420081967e-11 | H9: 1.621737374e+11 | I9: -749908156.3 | J9: -749.9081563 | K9: -0.7499081563 | Q9: 11119
B10: 0.70753 | C10: 0.70513 | D10: 0.3074 | E10: 0.992192583 | F10: 48800000000 | G10: 1.420081967e-11 | H10: 1.621737374e+11 | I10: -552043264.5 | J10: -552.0432645 | K10: -0.5520432645 | Q10: 10873
B11: 0.70753 | C11: 0.70495 | D11: 0.0961 | E11: 0.9731529657 | F11: 48800000000 | G11: 1.420081967e-11 | H11: 1.621737374e+11 | I11: -1916713484 | J11: -1916.713484 | K11: -1.916713484 | Q11: 10758
B12: 0.70753 | C12: 0.70495 | D12: 0.3794 | E12: 0.9931997891 | F12: 48800000000 | G12: 1.420081967e-11 | H12: 1.621737374e+11 | I12: -480582623.8 | J12: -480.5826238 | K12: -0.4805826238 | Q12: 9737
B13: 0.70753 | C13: 0.70544 | D13: 0.1208 | E13: 0.9826986755 | F13: 48800000000 | G13: 1.420081967e-11 | H13: 1.621737374e+11 | I13: -1229216811 | J13: -1229.216811 | K13: -1.229216811 | Q13: 9707
B14: 0.70753 | C14: 0.70527 | D14: 0.2121 | E14: 0.9893446488 | F14: 48800000000 | G14: 1.420081967e-11 | H14: 1.621737374e+11 | I14: -754495625.5 | J14: -754.4956255 | K14: -0.7544956255 | Q14: 9049
B15: 0.70753 | C15: 0.7051 | D15: 0.1859 | E15: 0.9869284562 | F15: 48800000000 | G15: 1.420081967e-11 | H15: 1.621737374e+11 | I15: -926714059.9 | J15: -926.7140599 | K15: -0.9267140599 | Q15: 8584
B16: 0.70753 | C16: 0.70443 | D16: 0.1769 | E16: 0.9824759751 | F16: 48800000000 | G16: 1.420081967e-11 | H16: 1.621737374e+11 | I16: -1245179815 | J16: -1245.179815 | K16: -1.245179815 | Q16: 8420
B17: 0.70753 | C17: 0.70474 | D17: 0.1448 | E17: 0.9807320442 | F17: 48800000000 | G17: 1.420081967e-11 | H17: 1.621737374e+11 | I17: -1370308796 | J17: -1370.308796 | K17: -1.370308796 | Q17: 8419
B18: 0.70753 | C18: 0.70453 | D18: 0.1425 | E18: 0.9789473684 | F18: 48800000000 | G18: 1.420081967e-11 | H18: 1.621737374e+11 | I18: -1498591838 | J18: -1498.591838 | K18: -1.498591838 | Q18: 8368
B19: 0.70753 | C19: 0.7047 | D19: 0.1049 | E19: 0.9730219256 | F19: 48800000000 | G19: 1.420081967e-11 | H19: 1.621737374e+11 | I19: -1926198038 | J19: -1926.198038 | K19: -1.926198038 | Q19: 7975
B20: 0.70753 | C20: 0.70417 | D20: 0.1486 | E20: 0.9773889637 | F20: 48800000000 | G20: 1.420081967e-11 | H20: 1.621737374e+11 | I20: -1610801866 | J20: -1610.801866 | K20: -1.610801866 | Q20: 7968
B21: 0.70753 | C21: 0.70417 | D21: 0.0783 | E21: 0.9570881226 | F21: 48800000000 | G21: 1.420081967e-11 | H21: 1.621737374e+11 | I21: -3089097237 | J21: -3089.097237 | K21: -3.089097237 | Q21: 7830
B22: 0.70753 | C22: 0.70382 | D22: 0.0746 | E22: 0.9502680965 | F22: 48800000000 | G22: 1.420081967e-11 | H22: 1.621737374e+11 | I22: -3592772833 | J22: -3592.772833 | K22: -3.592772833 | Q22: 7314
B23: 0.70753 | C23: 0.70417 | D23: 0.1171 | E23: 0.9713065756 | F23: 48800000000 | G23: 1.420081967e-11 | H23: 1.621737374e+11 | I23: -2050471406 | J23: -2050.471406 | K23: -2.050471406 | Q23: 7250
B24: 0.70753 | C24: 0.70497 | D24: 0.0571 | E24: 0.9551663748 | F24: 48800000000 | G24: 1.420081967e-11 | H24: 1.621737374e+11 | I24: -3230658910 | J24: -3230.65891 | K24: -3.23065891 | Q24: 7184
B25: 0.70753 | C25: 0.70494 | D25: 0.0625 | E25: 0.95856 | F25: 48800000000 | G25: 1.420081967e-11 | H25: 1.621737374e+11 | I25: -2980866450 | J25: -2980.86645 | K25: -2.98086645 | Q25: 6972
B26: 0.70753 | C26: 0.70408 | D26: 0.0909 | E26: 0.9620462046 | F26: 48800000000 | G26: 1.420081967e-11 | H26: 1.621737374e+11 | I26: -2725178739 | J26: -2725.178739 | K26: -2.725178739 | Q26: 6861
B27: 0.70753 | C27: 0.70357 | D27: 0.2355 | E27: 0.9831847134 | F27: 48800000000 | G27: 1.420081967e-11 | H27: 1.621737374e+11 | I27: -1194390522 | J27: -1194.390522 | K27: -1.194390522 | Q27: 6656
I28: Average | J28: =AVERAGE(J3:J27) -> -1501.810365 | Q28: 6654
I29: Maximum | J29: =MAX(J3:J28) -> 0.4012584445 | Q29: 6628
I30: Minimum | J30: =MIN(J3:J29) -> -3592.772833 | Q30: 6577
I31: Difference | J31: =(J29+ABS(J30)) -> 3593.174092 | Q31: 6518
Q32: 6448
Q33: 5758
B34: 206Pb | C34: 207Pb | D34: 208Pb | E34: 238U | F34: 232Th | G34: 207Pb | H34: 207Pb/206Pb | I34: 206Pb | J34: 206Pb/238U | K34: 208Pb | L34: 208Pb | M34: 208Pb/232Th | Q34: 5576
B35: 204Pb | C35: 204Pb | D35: 204Pb | E35: 204Pb | F35: 238U | G35: 206Pb | H35: Age | I35: 238U | J35: Age | K35: 238U | L35: 232Th | M35: Age | Q35: 5520
B36: 17.403 | C36: 15.417 | D36: 37.292 | E36: 13.7 | F36: 4.82 | G36: =(C36/B36) -> 0.8858817445 | H36: =[1]!AgePb76(G36) -> 5066.504442 | I36: =(B36/E36) -> 1.270291971 | J36: =[1]!AgePb6U8(I36) -> 5285.469426 | K36: =+(D36/E36) -> 2.722043796 | L36: =+(K36/F36) -> 0.5647393767 | M36: =[1]!AgePb8Th2(L36) -> 9049.404298 | Q36: 5285
B37: 17.948 | C37: 15.41 | D37: 37.938 | E37: 23.9 | F37: 4.09 | G37: =(C37/B37) -> 0.8585914865 | H37: =[1]!AgePb76(G37) -> 5022.179691 | I37: =(B37/E37) -> 0.7509623431 | J37: =[1]!AgePb6U8(I37) -> 3611.059127 | K37: =+(D37/E37) -> 1.587364017 | L37: =+(K37/F37) -> 0.3881085615 | M37: =[1]!AgePb8Th2(L37) -> 6628.440089 | Q37: 5159
B38: 17.473 | C38: 15.471 | D38: 37.682 | E38: 12.9 | F38: 4.72 | G38: 0.8854232244 | H38: =[1]!AgePb76(G38) -> 5065.771744 | I38: 1.354496124 | J38: =[1]!AgePb6U8(I38) -> 5520.23687 | K38: 2.921085271 | L38: 0.6188739982 | M38: =[1]!AgePb8Th2(L38) -> 9736.85386 | Q38: 5120
B39: 17.298 | C39: 15.325 | D39: 37.565 | E39: 15.7 | F39: 4.63 | G39: 0.8859405712 | H39: =[1]!AgePb76(G39) -> 5066.598415 | I39: 1.101783439 | J39: =[1]!AgePb6U8(I39) -> 4788.30776 | K39: 2.392675159 | L39: 0.5167764923 | M39: =[1]!AgePb8Th2(L39) -> 8420.15875 | Q39: 5109
B40: 17.46 | C40: 15.447 | D40: 37.606 | E40: 0 | F40: 0 | G40: 0.8847079038 | H40: =[1]!AgePb76(G40) -> 5064.627886 | I40: 0 | K40: 0 | Q40: 5099
B41: 17.711 | C41: 15.51 | D41: 37.938 | E41: 9.8 | F41: 3.5 | G41: 0.8757269494 | H41: =[1]!AgePb76(G41) -> 5050.182513 | I41: 1.807244898 | J41: =[1]!AgePb6U8(I41) -> 6654.011533 | K41: 3.87122449 | L41: 1.10606414 | M41: =[1]!AgePb8Th2(L41) -> 15054.48952 | Q41: 5097
B42: 17.464 | C42: 15.465 | D42: 37.739 | E42: 12.7 | F42: 4.82 | G42: 0.8855359597 | H42: =[1]!AgePb76(G42) -> 5065.951928 | I42: 1.37511811 | J42: =[1]!AgePb6U8(I42) -> 5576.452325 | K42: 2.971574803 | L42: 0.6165092953 | M42: =[1]!AgePb8Th2(L42) -> 9707.308103 | Q42: 5077
B43: 17.511 | C43: 15.521 | D43: 37.759 | E43: 8.3 | F43: 5.04 | G43: 0.8863571469 | H43: =[1]!AgePb76(G43) -> 5067.263691 | I43: 2.109759036 | J43: =[1]!AgePb6U8(I43) -> 7313.748544 | K43: 4.549277108 | L43: 0.9026343469 | M43: =[1]!AgePb8Th2(L43) -> 13001.30216 | Q43: 5067
B44: 17.486 | C44: 15.303 | D44: 37.574 | E44: 10 | F44: 3.32 | G44: 0.8751572687 | H44: =[1]!AgePb76(G44) -> 5049.260918 | I44: 1.7486 | J44: =[1]!AgePb6U8(I44) -> 6517.915817 | K44: 3.7574 | L44: 1.131746988 | M44: =[1]!AgePb8Th2(L44) -> 15299.48107 | Q44: 5067
B45: 17.534 | C45: 15.46 | D45: 37.704 | E45: 10.2 | F45: 5.04 | G45: 0.8817155241 | H45: =[1]!AgePb76(G45) -> 5059.832157 | I45: 1.719019608 | J45: =[1]!AgePb6U8(I45) -> 6448.163591 | K45: 3.696470588 | L45: 0.733426704 | M45: =[1]!AgePb8Th2(L45) -> 11118.75095 | Q45: 5067
B46: 18.082 | C46: 15.438 | D46: 37.954 | E46: 10 | F46: 3.34 | G46: 0.853777237 | H46: =[1]!AgePb76(G46) -> 5014.205392 | I46: 1.8082 | J46: =[1]!AgePb6U8(I46) -> 6656.204407 | K46: 3.7954 | L46: 1.136347305 | M46: =[1]!AgePb8Th2(L46) -> 15343.05213 | Q46: 5066
B47: 16.723 | C47: 15.382 | D47: 36.542 | E47: 6 | F47: 4.55 | G47: 0.9198110387 | H47: =[1]!AgePb76(G47) -> 5119.634763 | I47: 2.787166667 | J47: =[1]!AgePb6U8(I47) -> 8584.16218 | K47: 6.090333333 | L47: 1.338534799 | M47: =[1]!AgePb8Th2(L47) -> 17170.78482 | Q47: 5066
B48: 16.874 | C48: 15.407 | D48: 36.761 | E48: 6.9 | F48: 4.78 | G48: 0.9130615148 | H48: =[1]!AgePb76(G48) -> 5109.232943 | I48: 2.445507246 | J48: =[1]!AgePb6U8(I48) -> 7974.672909 | K48: 5.327681159 | L48: 1.114577648 | M48: =[1]!AgePb8Th2(L48) -> 15136.0303 | Q48: 5065
B49: 16.996 | C49: 15.382 | D49: 36.948 | E49: 8.3 | F49: 4.83 | G49: 0.9050364792 | H49: =[1]!AgePb76(G49) -> 5096.758843 | I49: 2.047710843 | J49: =[1]!AgePb6U8(I49) -> 7183.824436 | K49: 4.451566265 | L49: 0.9216493302 | M49: =[1]!AgePb8Th2(L49) -> 13202.30103 | Q49: 5062
B50: 17.626 | C50: 15.432 | D50: 37.691 | E50: 19.5 | F50: 4 | G50: 0.8755247929 | H50: =[1]!AgePb76(G50) -> 5049.855549 | I50: 0.9038974359 | J50: =[1]!AgePb6U8(I50) -> 4150.865864 | K50: 1.932871795 | L50: 0.4832179487 | M50: =[1]!AgePb8Th2(L50) -> 7967.943751 | Q50: 5060
B51: 17.668 | C51: 15.411 | D51: 37.645 | E51: 20.4 | F51: 3.9 | G51: 0.8722549242 | H51: =[1]!AgePb76(G51) -> 5044.555773 | I51: 0.8660784314 | J51: =[1]!AgePb6U8(I51) -> 4021.525437 | K51: 1.845343137 | L51: 0.473164907 | M51: =[1]!AgePb8Th2(L51) -> 7830.481746 | Q51: 5060
B52: 17.628 | C52: 15.433 | D52: 37.711 | E52: 19.4 | F52: 3.79 | G52: 0.8754821874 | H52: =[1]!AgePb76(G52) -> 5049.78663 | I52: 0.9086597938 | J52: =[1]!AgePb6U8(I52) -> 4166.970618 | K52: 1.943865979 | L52: 0.5128933983 | M52: =[1]!AgePb8Th2(L52) -> 8368.347147 | Q52: 5059
B53: 17.599 | C53: 15.421 | D53: 37.716 | E53: 14.6 | F53: 5 | G53: 0.8762429684 | H53: =[1]!AgePb76(G53) -> 5051.016749 | I53: 1.205410959 | J53: =[1]!AgePb6U8(I53) -> 5098.558372 | K53: 2.583287671 | L53: 0.5166575342 | M53: =[1]!AgePb8Th2(L53) -> 8418.57348 | Q53: 5051
B54: 17.671 | C54: 15.404 | D54: 37.621 | E54: 21.8 | F54: 4 | G54: 0.8717107125 | H54: =[1]!AgePb76(G54) -> 5043.671673 | I54: 0.8105963303 | J54: =[1]!AgePb6U8(I54) -> 3826.954103 | K54: 1.725733945 | L54: 0.4314334862 | M54: =[1]!AgePb8Th2(L54) -> 7249.648916 | Q54: 5050
B55: 17.471 | C55: 15.407 | D55: 37.512 | E55: 9.2 | F55: 4.37 | G55: 0.8818613703 | H55: =[1]!AgePb76(G55) -> 5060.066297 | I55: 1.899021739 | J55: =[1]!AgePb6U8(I55) -> 6861.39145 | K55: 4.077391304 | L55: 0.9330414884 | M55: =[1]!AgePb8Th2(L55) -> 13321.77187 | Q55: 5050
B56: 17.4 | C56: 15.365 | D56: 37.442 | E56: 90.3 | F56: 0.59 | G56: 0.883045977 | H56: =[1]!AgePb76(G56) -> 5061.966532 | I56: 0.1926910299 | J56: =[1]!AgePb6U8(I56) -> 1135.936334 | K56: 0.4146400886 | L56: 0.7027798112 | M56: =[1]!AgePb8Th2(L56) -> 10758.20311 | Q56: 5050
B57: 17.655 | C57: 15.391 | D57: 37.51 | E57: 19.5 | F57: 4.67 | G57: 0.8717643727 | H57: =[1]!AgePb76(G57) -> 5043.758873 | I57: 0.9053846154 | J57: =[1]!AgePb6U8(I57) -> 4155.899346 | K57: 1.923589744 | L57: 0.4119035854 | M57: =[1]!AgePb8Th2(L57) -> 6971.982909 | Q57: 5049
B58: 17.173 | C58: 15.322 | D58: 37.111 | E58: 11.9 | F58: 3.29 | G58: 0.8922145228 | H58: =[1]!AgePb76(G58) -> 5076.583029 | I58: 1.443109244 | J58: =[1]!AgePb6U8(I58) -> 5758.39812 | K58: 3.118571429 | L58: 0.9478940512 | M58: =[1]!AgePb8Th2(L58) -> 13476.47934 | Q58: 5045
B59: 17.414 | C59: 15.341 | D59: 37.333 | E59: 14.2 | F59: 3.69 | G59: 0.88095785 | H59: =[1]!AgePb76(G59) -> 5058.615134 | I59: 1.226338028 | J59: =[1]!AgePb6U8(I59) -> 5159.43978 | K59: 2.629084507 | L59: 0.7124890263 | M59: =[1]!AgePb8Th2(L59) -> 10873.12548 | Q59: 5044
B60: 17.849 | C60: 15.439 | D60: 37.769 | E60: 26.4 | F60: 3.72 | G60: 0.8649784302 | H60: =[1]!AgePb76(G60) -> 5032.686034 | I60: 0.6760984848 | J60: =[1]!AgePb6U8(I60) -> 3329.371553 | K60: 1.430643939 | L60: 0.3845817041 | M60: =[1]!AgePb8Th2(L60) -> 6577.020219 | Q60: 5044
B61: 18.243 | C61: 15.437 | D61: 38.092 | E61: 36.3 | F61: 4.74 | G61: 0.8461875788 | H61: =[1]!AgePb76(G61) -> 5001.536431 | I61: 0.5025619835 | J61: =[1]!AgePb6U8(I61) -> 2624.797036 | K61: 1.049366391 | L61: 0.2213853146 | M61: =[1]!AgePb8Th2(L61) -> 4042.157015 | Q61: 5033
G62: Average | H62: =AVERAGE(H36:H61) -> 5057.388617 | J62: =AVERAGE(J36:J61) -> 5296.173477 | M62: =AVERAGE(M36:M61) -> 10588.96368 | Q62: 5022
G63: Maximum | H63: =MAX(H36:H62) -> 5119.634763 | J63: =MAX(J36:J62) -> 8584.16218 | M63: =MAX(M36:M62) -> 17170.78482 | Q63: 5014
G64: Minimum | H64: =MIN(H36:H63) -> 5001.536431 | J64: =MIN(J36:J63) -> 1135.936334 | M64: =MIN(M36:M63) -> 4042.157015 | Q64: 5002
G65: Difference | H65: =(H63-H64) -> 118.0983319 | J65: =(J63-J64) -> 7448.225846 | M65: =(M63-M64) -> 13128.6278
M67: 208Pb/232Th
M68: Age | N68: Age | O68: Age | P68: Age
M69: 17170.78482 | N69: 13321.77187 | O69: 9736.85386 | P69: 7967.943751
M70: 15343.05213 | N70: 13202.30103 | O70: 9707.308103 | P70: 7830.481746
F71: Table | G71: 207Pb/206Pb | H71: 206Pb/238U | I71: 208Pb/232Th | J71: 87Rb/86Sr | M71: 15299.48107 | N71: 13001.30216 | O71: 9049.404298 | P71: 7249.648916
F72: Summaries | G72: Age | H72: Age | I72: Age | J72: Age | M72: 15136.0303 | N72: 11118.75095 | O72: 8420.15875 | P72: 6971.982909
F73: Average | G73: 5057.388617 | H73: 5296 | I73: 10589 | J73: -1501.810365 | M73: 15054.48952 | N73: 10873.12548 | O73: 8418.57348 | P73: 6628.440089
F74: Maximum | G74: 5119.634763 | H74: 8584.16218 | I74: 17170.78482 | J74: 0.4012584445 | M74: 13476.47934 | N74: 10758.20311 | O74: 8368.347147 | P74: 6577.020219
F75: Minimum | G75: 5001.536431 | H75: 1136 | I75: 4042 | J75: -3592.772833
F76: Difference | G76: 118.0983319 | H76: 7448 | I76: 13129 | J76: 3593.174092
M77: 206Pb/238U
M78: Age | N78: Age | O78: Age
M79: 8584.16218 | N79: 6656.204407 | O79: 5576.452325
M80: 7974.672909 | N80: 6654.011533 | O80: 5520.23687
M81: 7313.748544 | N81: 6517.915817 | O81: 5285.469426
M82: 7183.824436 | N82: 6448.163591 | O82: 5159.43978
M83: 6861.39145 | N83: 5758.39812 | O83: 5098.558372
M86: 207Pb/206Pb
M87: Age | N87: Age | O87: Age | P87: Age
M88: 5119.634763 | N88: 5066.504442 | O88: 5059.832157 | P88: 5049.260918
M89: 5109.232943 | N89: 5065.951928 | O89: 5058.615134 | P89: 5044.555773
M90: 5096.758843 | N90: 5065.771744 | O90: 5051.016749 | P90: 5043.758873
M91: 5076.583029 | N91: 5064.627886 | O91: 5050.182513 | P91: 5043.671673
M92: 5067.263691 | N92: 5061.966532 | O92: 5049.855549 | P92: 5032.686034
M93: 5066.598415 | N93: 5060.066297 | O93: 5049.78663 | P93: 5022.179691
M95: 87Rb/86Sr
M96: Age | N96: Age | O96: Age | P96: Age
M97: -3592.772833 | N97: -2980.86645 | O97: -1916.713484 | P97: -1323.272732
M98: -3230.65891 | N98: -2725.178739 | O98: -1610.801866 | P98: -1245.179815
M99: -3089.097237 | N99: -2050.471406 | O99: -1498.591838 | P99: -1229.216811
M100: -3067.471501 | N100: -1926.198038 | O100: -1370.308796 | P100: -1194.390522

Sheet Nd_Sm_08
A1: Rubidium | B1: TABLE 1. | K1: Rubidium_019.pdf | P1: 232Th/208Pb | R1: 206Pb/238U | T1: 207Pb/206Pb
A2: Strontium | B2: Initial | C2: Today | D2: Today | E2: The Ratio | F2: Half | G2: Decay | H2: 2.303/Delta | I2: Age | J2: Age | K2: Age | L2: Model Age | M2: Model Age | N2: Model Age | P2: 94396.26948 | R2: 22200.70461 | T2: 5076.583029
A3: Dating | B3: 87Sr/86Sr | C3: 87Sr/86Sr | D3: 87Rb/86Sr | E3: Plus One | F3: Life | G3: Constant | H3: Constant | I3: Years | J3: Million Years | K3: Billion Years | L3: Million Years | M3: % Difference | N3: Difference | P3: 90682.65133 | R3: 21813.20703 | T3: 5070.409555
B4: 0.70753 | C4: 0.70473 | D4: 0.0657 | E4: =1+((C4-B4)/D4) -> 0.9573820396 | F4: 48800000000 | G4: =(0.693/F4) -> 1.420081967e-11 | H4: =(2.303/G4) -> 1.621737374e+11 | I4: =(LOG(E4))*(H4) -> -3067471501 | J4: =(I4/1000000) -> -3067.471501 | K4: =(J4/1000) -> -3.067471501 | P4: 74639.25341 | R4: 19320.19045 | T4: 5061.966532
B5: 0.70753 | C5: 0.7038 | D5: 0.2004 | E5: 0.9813872255 | F5: 48800000000 | G5: 1.420081967e-11 | H5: 1.621737374e+11 | I5: -1323272732 | J5: -1323.272732 | K5: -1.323272732 | P5: 58152.80106 | R5: 16656.39067 | T5: 5060.066297
P6: 55323.91439 | R6: 16199.87803 | T6: 5058.615134
P7: 45242.23315 | R7: 14748.27102 | T7: 5055.313786
P8: 39267.09744 | R8: 13606.57621 | T8: 5051.016749
P9: 26266.02793 | R9: 11255.65054 | T9: 5049.855549
I10: 232Th/208Pb | K10: 206Pb/238U | M10: 207Pb/206Pb | P10: 18333.85026 | R10: 9877.585027 | T10: 5049.78663
B11: 206Pb/204Pb | C11: 207Pb/204Pb | D11: 208Pb/204Pb | E11: 238U/204Pb | F11: 232Th/238U | G11: 208Pb/238U | H11: 232Th/208Pb | I11: Age | J11: 206Pb/238U | K11: Age | L11: 207Pb/206Pb | M11: Age | P11: 16357.26113 | R11: 9656.105078 | T11: 5044.555773
A12: TABLE 1 | B12: 18.836 | C12: 15.602 | D12: 38.377 | E12: 0.99 | F12: 4.18 | G12: =(D12/E12) -> 38.76464646 | H12: =(G12/E12) -> 39.15620855 | I12: =[1]!AgePb8Th2(H12) -> 74639.25341 | J12: =(B12/E12) -> 19.02626263 | K12: =[1]!AgePb6U8(J12) -> 19320.19045 | L12: =(C12/B12) -> 0.8283074963 | M12: =[1]!AgePb76(L12) -> 4971.206735 | P12: 14249.89092 | R12: 9054.120236 | T12: 5043.770924
B13: 18.185 | C13: 15.605 | D13: 38.061 | E13: 0.6 | F13: 0.941 | G13: =(D13/E13) -> 63.435 | H13: =(G13/E13) -> 105.725 | I13: =[1]!AgePb8Th2(H13) -> 94396.26948 | J13: =(B13/E13) -> 30.30833333 | K13: =[1]!AgePb6U8(J13) -> 22200.70461 | L13: 0.8581248282 | M13: =[1]!AgePb76(L13) -> 5021.408801 | P13: 11215.30133 | R13: 8241.764452 | T13: 5043.758873
B14: 18.841 | C14: 15.682 | D14: 38.474 | E14: 6.13 | F14: 0.501 | G14: 6.27634584 | H14: 1.02387371 | I14: =[1]!AgePb8Th2(H14) -> 14249.89092 | J14: 3.073572594 | K14: =[1]!AgePb6U8(J14) -> 9054.120236 | L14: 0.8323337402 | M14: =[1]!AgePb76(L14) -> 4978.096676 | P14: 10595.30406 | R14: 8044.476445 | T14: 5043.671673
B15: 18.494 | C15: 15.612 | D15: 38.221 | E15: 1.51 | F15: 0.774 | G15: 25.31192053 | H15: 16.76286128 | I15: =[1]!AgePb8Th2(H15) -> 58152.80106 | J15: 12.24768212 | K15: =[1]!AgePb6U8(J15) -> 16656.39067 | L15: 0.8441656754 | M15: =[1]!AgePb76(L15) -> 4998.141024 | P15: 10284.01042 | R15: 7996.090563 | T15: 5034.408037
B16: 19.035 | C16: 15.773 | D16: 38.727 | E16: 2.15 | F16: 0.865 | G16: 18.01255814 | H16: 8.377934018 | I16: =[1]!AgePb8Th2(H16) -> 45242.23315 | J16: 8.853488372 | K16: =[1]!AgePb6U8(J16) -> 14748.27102 | L16: 0.8286314683 | M16: =[1]!AgePb76(L16) -> 4971.76245 | P16: 9328.228897 | R16: 7590.085338 | T16: 5033.17972
B17: 18.627 | C17: 15.664 | D17: 38.441 | E17: - | F17: 4.61 | G17: 0 | H17: 0 | J17: 0 | L17: 0.840929833 | M17: =[1]!AgePb76(L17) -> 4992.689019 | P17: 8820.642008 | R17: 7421.885204 | T17: 5032.918272
B18: 17.698 | C18: 15.327 | D18: 37.745 | E18: 10.7 | F18: 3.34 | G18: =(D18/E18) -> 3.527570093 | H18: =(G18/E18) -> 0.329679448 | I18: =[1]!AgePb8Th2(H18) -> 5759.229846 | J18: 1.654018692 | K18: =[1]!AgePb6U8(J18) -> 6292.183585 | L18: 0.8660300599 | M18: =[1]!AgePb76(L18) -> 5034.408037 | P18: 8770.778408 | R18: 7348.090529 | T18: 5032.686034
B19: 18.258 | C19: 15.488 | D19: 37.973 | E19: 26.3 | F19: 4.05 | G19: 1.443840304 | H19: 0.05489887088 | I19: =[1]!AgePb8Th2(H19) -> 1080.240634 | J19: 0.6942205323 | K19: =[1]!AgePb6U8(J19) -> 3398.696355 | L19: 0.848285683 | M19: =[1]!AgePb76(L19) -> 5005.050703 | P19: 8402.897088 | R19: 7334.692352 | T19: 5032.308615
B20: 18.374 | C20: 15.484 | D20: 37.904 | E20: 1.62 | F20: 0.513 | G20: 23.39753086 | H20: 14.44292029 | I20: =[1]!AgePb8Th2(H20) -> 55323.91439 | J20: 11.34197531 | K20: =[1]!AgePb6U8(J20) -> 16199.87803 | L20: 0.8427125286 | M20: =[1]!AgePb76(L20) -> 4995.695398 | P20: 8170.965935 | R20: 7249.068808 | T20: 5029.610999
B21: 18.08 | C21: 15.48 | D21: 38.005 | E21: 8.05 | F21: 2.84 | G21: 4.721118012 | H21: 0.5864742873 | I21: =[1]!AgePb8Th2(H21) -> 9328.228897 | J21: 2.245962733 | K21: =[1]!AgePb6U8(J21) -> 7590.085338 | L21: 0.8561946903 | M21: =[1]!AgePb76(L21) -> 5018.215601 | P21: 7789.44252 | R21: 7202.372991 | T21: 5027.327462
B22: 18.814 | C22: 15.589 | D22: 38.62 | E22: 99.4 | F22: 4.46 | G22: 0.3885311871 | H22: 0.003908764458 | I22: =[1]!AgePb8Th2(H22) -> 78.85083551 | J22: 0.1892756539 | K22: =[1]!AgePb6U8(J22) -> 1117.449977 | L22: 0.8285850962 | M22: =[1]!AgePb76(L22) -> 4971.682921 | P22: 7637.696826 | R22: 7019.2941 | T22: 5022.071295
B23: 18.816 | C23: 15.581 | D23: 38.218 | E23: 45.2 | F23: 4.07 | G23: 0.8455309735 | H23: 0.01870643747 | I23: =[1]!AgePb8Th2(H23) -> 374.6058391 | J23: 0.4162831858 | K23: =[1]!AgePb6U8(J23) -> 2243.583982 | L23: 0.8280718537 | M23: =[1]!AgePb76(L23) -> 4970.802388 | P23: 7374.718316 | R23: 6923.1095 | T23: 5021.408801
B24: 17.626 | C24: 15.432 | D24: 37.691 | E24: 19.52 | F24: 4.005 | G24: 1.930891393 | H24: 0.09891861647 | I24: =[1]!AgePb8Th2(H24) -> 1906.551194 | J24: 0.9029713115 | K24: =[1]!AgePb6U8(J24) -> 4147.729333 | L24: 0.8755247929 | M24: =[1]!AgePb76(L24) -> 5049.855549 | P24: 7317.21271 | R24: 6847.651696 | T24: 5018.215601
B25: 17.668 | C25: 15.411 | D25: 37.645 | E25: 20.37 | F25: 3.902 | G25: 1.848060874 | H25: 0.09072463789 | I25: =[1]!AgePb8Th2(H25) -> 1755.276013 | J25: 0.8673539519 | K25: =[1]!AgePb6U8(J25) -> 4025.930249 | L25: 0.8722549242 | M25: =[1]!AgePb76(L25) -> 5044.555773 | P25: 5759.229846 | R25: 6292.183585 | T25: 5009.729002
B26: 17.628 | C26: 15.433 | D26: 37.711 | E26: 19.365 | F26: 3.788 | G26: 1.947379293 | H26: 0.1005618018 | I26: =[1]!AgePb8Th2(H26) -> 1936.751458 | J26: 0.9103020914 | K26: =[1]!AgePb6U8(J26) -> 4172.515021 | L26: 0.8754821874 | M26: =[1]!AgePb76(L26) -> 5049.78663 | P26: 4676.285421 | R26: 5745.629021 | T26: 5008.220672
B27: 17.599 | C27: 15.421 | D27: 37.716 | E27: 14.6 | F27: 5.01 | G27: 2.583287671 | H27: 0.1769375117 | I27: =[1]!AgePb8Th2(H27) -> 3292.89006 | J27: 1.205410959 | K27: =[1]!AgePb6U8(J27) -> 5098.558372 | L27: 0.8762429684 | M27: =[1]!AgePb76(L27) -> 5051.016749 | R27: 5699.879392 | T27: 5008.208618
B28: 17.671 | C28: 15.404 | D28: 37.621 | E28: 21.8 | F28: 4 | G28: 1.725733945 | H28: 0.07916210757 | I28: =[1]!AgePb8Th2(H28) -> 1539.866876 | J28: 0.8105963303 | K28: =[1]!AgePb6U8(J28) -> 3826.954103 | L28: 0.8717107125 | M28: =[1]!AgePb76(L28) -> 5043.671673 | R28: 5217.76718 | T28: 5005.627586
B29: 17.773 | C29: 15.494 | D29: 37.683 | E29: 8.55 | F29: 1.17 | G29: 4.407368421 | H29: 0.5154816867 | I29: =[1]!AgePb8Th2(H29) -> 8402.897088 | J29: 2.07871345 | K29: =[1]!AgePb6U8(J29) -> 7249.068808 | L29: 0.8717717887 | M29: =[1]!AgePb76(L29) -> 5043.770924 | R29: 5201.371125 | T29: 5005.050703
B30: 18.428 | C30: 15.553 | D30: 38.136 | E30: 9.35 | F30: 3.11 | G30: 4.078716578 | H30: 0.4362263719 | I30: =[1]!AgePb8Th2(H30) -> 7317.21271 | J30: 1.970909091 | K30: =[1]!AgePb6U8(J30) -> 7019.2941 | L30: 0.8439874105 | M30: =[1]!AgePb76(L30) -> 4997.841248 | R30: 5163.434633 | T30: 5004.613702
B31: 18.293 | C31: 15.524 | D31: 37.409 | E31: 14.9 | F31: 1.28 | G31: 2.510671141 | H31: 0.1685014189 | I31: =[1]!AgePb8Th2(H31) -> 3147.490435 | J31: 1.227718121 | K31: =[1]!AgePb6U8(J31) -> 5163.434633 | L31: 0.8486306237 | M31: =[1]!AgePb76(L31) -> 5005.627586 | R31: 5159.43978 | T31: 5001.536431
B32: 18.627 | C32: 15.563 | D32: 38.23 | E32: 8.76 | F32: 4.71 | G32: 4.364155251 | H32: 0.4981912387 | I32: =[1]!AgePb8Th2(H32) -> 8170.965935 | J32: 2.126369863 | K32: =[1]!AgePb6U8(J32) -> 7348.090529 | L32: 0.8355075965 | M32: =[1]!AgePb76(L32) -> 4983.503042 | R32: 5098.558372 | T32: 5001.40171
B33: 18.162 | C33: 15.367 | D33: 37.628 | E33: 19.3 | F33: 2.03 | G33: 1.949637306 | H33: 0.101017477 | I33: =[1]!AgePb8Th2(H33) -> 1945.11837 | J33: 0.9410362694 | K33: =[1]!AgePb6U8(J33) -> 4275.403642 | L33: 0.8461072569 | M33: =[1]!AgePb76(L33) -> 5001.40171 | R33: 4812.348707 | T33: 5000.337912
B34: 18.981 | C34: 15.666 | D34: 38.554 | E34: 17.8 | F34: 3.26 | G34: 2.165955056 | H34: 0.1216828683 | I34: =[1]!AgePb8Th2(H34) -> 2320.972584 | J34: 1.066348315 | K34: =[1]!AgePb6U8(J34) -> 4678.697503 | L34: 0.8253516675 | M34: =[1]!AgePb76(L34) -> 4966.125852 | T34: 4998.141024
B35: 18.613 | C35: 15.41 | D35: 38.299 | E35: 15 | F35: 1.49 | G35: 2.553266667 | H35: 0.1702177778 | I35: =[1]!AgePb8Th2(H35) -> 3177.15748 | J35: 1.240866667 | K35: =[1]!AgePb6U8(J35) -> 5201.371125 | L35: 0.8279159727 | M35: =[1]!AgePb76(L35) -> 4970.534839 | T35: 4997.841248
B36: 18.529 | C36: 15.557 | D36: 38.169 | E36: 9.01 | F36: 4.59 | G36: 4.236293008 | H36: 0.4701768044 | I36: =[1]!AgePb8Th2(H36) -> 7789.44252 | J36: 2.056492786 | K36: =[1]!AgePb6U8(J36) -> 7202.372991 | L36: 0.8396027848 | M36: =[1]!AgePb76(L36) -> 4990.446654 | T36: 4997.402133
B37: 18.18 | C37: 15.608 | D37: 38.356 | E37: 21.6 | F37: 4.94 | G37: 1.775740741 | H37: 0.08221021948 | I37: =[1]!AgePb8Th2(H37) -> 1596.876188 | J37: 0.8416666667 | K37: =[1]!AgePb6U8(J37) -> 3936.637929 | L37: 0.8585258526 | M37: =[1]!AgePb76(L37) -> 5022.071295 | T37: 4995.695398
B38: 18.309 | C38: 15.566 | D38: 38.242 | E38: 16.5 | F38: 4.67 | G38: 2.31769697 | H38: 0.140466483 | I38: =[1]!AgePb8Th2(H38) -> 2656.64223 | J38: 1.109636364 | K38: =[1]!AgePb6U8(J38) -> 4812.348707 | L38: 0.8501829701 | M38: =[1]!AgePb76(L38) -> 5008.220672 | T38: 4992.689019
B39: 17.826 | C39: 15.415 | D39: 37.646 | E39: 14.3 | F39: 5.91 | G39: 2.632587413 | H39: 0.1840970219 | I39: =[1]!AgePb8Th2(H39) -> 3415.472001 | J39: 1.246573427 | K39: =[1]!AgePb6U8(J39) -> 5217.76718 | L39: 0.8647481207 | M39: =[1]!AgePb76(L39) -> 5032.308615 | T39: 4990.446654
B40: 18.424 | C40: 15.577 | D40: 37.94 | E40: 7.42 | F40: 4.04 | G40: 5.113207547 | H40: 0.6891115293 | I40: =[1]!AgePb8Th2(H40) -> 10595.30406 | J40: 2.483018868 | K40: =[1]!AgePb6U8(J40) -> 8044.476445 | L40: 0.8454732957 | M40: =[1]!AgePb76(L40) -> 5000.337912 | T40: 4987.701232
B41: 19.306 | C41: 15.701 | D41: 38.527 | E41: 5.56 | F41: 0.595 | G41: 6.929316547 | H41: 1.246279954 | I41: =[1]!AgePb8Th2(H41) -> 16357.26113 | J41: 3.472302158 | K41: =[1]!AgePb6U8(J41) -> 9656.105078 | L41: 0.8132704859 | M41: =[1]!AgePb76(L41) -> 4945.156008 | T41: 4983.503042
B42: 17.978 | C42: 15.556 | D42: 37.526 | E42: 74.8 | F42: 8 | G42: 0.501684492 | H42: 0.006707011925 | I42: =[1]!AgePb8Th2(H42) -> 135.1110659 | J42: 0.2403475936 | K42: =[1]!AgePb6U8(J42) -> 1388.503837 | L42: 0.8652797864 | M42: =[1]!AgePb76(L42) -> 5033.17972 | T42: 4981.003209
B43: 17.926 | C43: 15.472 | D43: 37.339 | E43: 8.29 | F43: 8.43 | G43: 4.504101327 | H43: 0.5433174098 | I43: =[1]!AgePb8Th2(H43) -> 8770.778408 | J43: 2.162364294 | K43: =[1]!AgePb6U8(J43) -> 7421.885204 | L43: 0.8631038715 | M43: =[1]!AgePb76(L43) -> 5029.610999 | T43: 4978.096676
B44: 18.798 | C44: 15.61 | D44: 38.251 | E44: 0.66 | F44: 3.85 | G44: 57.95606061 | H44: 87.81221304 | I44: =[1]!AgePb8Th2(H44) -> 90682.65133 | J44: 28.48181818 | K44: =[1]!AgePb6U8(J44) -> 21813.20703 | L44: 0.8304074902 | M44: =[1]!AgePb76(L44) -> 4974.804796 | T44: 4974.804796
B45: 17.471 | C45: 15.407 | D45: 37.512 | E45: 9.23 | F45: 4.371 | G45: 4.064138678 | H45: 0.4403183833 | I45: =[1]!AgePb8Th2(H45) -> 7374.718316 | J45: 1.892849404 | K45: =[1]!AgePb6U8(J45) -> 6847.651696 | L45: 0.8818613703 | M45: =[1]!AgePb76(L45) -> 5060.066297 | T45: 4971.76245
B46: 17.4 | C46: 15.365 | D46: 37.442 | E46: 9.03 | F46: 5.86 | G46: 4.146400886 | H46: 0.4591806075 | I46: =[1]!AgePb8Th2(H46) -> 7637.696826 | J46: 1.926910299 | K46: =[1]!AgePb6U8(J46) -> 6923.1095 | L46: 0.883045977 | M46: =[1]!AgePb76(L46) -> 5061.966532 | T46: 4971.682921
B47: 17.655 | C47: 15.391 | D47: 37.51 | E47: 19.49 | F47: 4.674 | G47: 1.924576706 | H47: 0.09874688076 | I47: =[1]!AgePb8Th2(H47) -> 1903.392241 | J47: 0.9058491534 | K47: =[1]!AgePb6U8(J47) -> 4157.470808 | L47: 0.8717643727 | M47: =[1]!AgePb76(L47) -> 5043.758873 | T47: 4971.206735
B48: 17.173 | C48: 15.322 | D48: 37.111 | E48: 11.94 | F48: 3.294 | G48: 3.108123953 | H48: 0.2603118889 | I48: =[1]!AgePb8Th2(H48) -> 4676.285421 | J48: 1.438274707 | K48: =[1]!AgePb6U8(J48) -> 5745.629021 | L48: 0.8922145228 | M48: =[1]!AgePb76(L48) -> 5076.583029 | T48: 4970.802388
B49: 17.414 | C49: 15.341 | D49: 37.333 | E49: 14.2 | F49: 3.605 | G49: 2.629084507 | H49: 0.1851467963 | I49: =[1]!AgePb8Th2(H49) -> 3433.383439 | J49: 1.226338028 | K49: =[1]!AgePb6U8(J49) -> 5159.43978 | L49: 0.88095785 | M49: =[1]!AgePb76(L49) -> 5058.615134 | T49: 4970.534839
B50: 17.849 | C50: 15.439 | D50: 37.769 | E50: 26.38 | F50: 3.725 | G50: 1.431728582 | H50: 0.05427325937 | I50: =[1]!AgePb8Th2(H50) -> 1068.250144 | J50: 0.676611069 | K50: =[1]!AgePb6U8(J50) -> 3331.342693 | L50: 0.8649784302 | M50: =[1]!AgePb76(L50) -> 5032.686034 | T50: 4966.125852
B51: 17.697 | C51: 15.554 | D51: 37.312 | E51: 3.74 | F51: 0.737 | G51: 9.976470588 | H51: 2.667505505 | I51: =[1]!AgePb8Th2(H51) -> 26266.02793 | J51: 4.731818182 | K51: =[1]!AgePb6U8(J51) -> 11255.65054 | L51: 0.8789060293 | M51: =[1]!AgePb76(L51) -> 5055.313786 | T51: 4945.156008
B52: 17.489 | C52: 15.536 | D52: 37.239 | E52: 8.25 | F52: 3.64 | G52: 4.513818182 | H52: 0.5471294766 | I52: =[1]!AgePb8Th2(H52) -> 8820.642008 | J52: 2.119878788 | K52: =[1]!AgePb6U8(J52) -> 7334.692352 | L52: 0.8883298073 | M52: =[1]!AgePb76(L52) -> 5070.409555
B53: 18.673 | C53: 15.574 | D53: 38.312 | E53: 7.6 | F53: 0.544 | G53: 5.041052632 | H53: 0.6632963989 | I53: =[1]!AgePb8Th2(H53) -> 10284.01042 | J53: 2.456973684 | K53: =[1]!AgePb6U8(J53) -> 7996.090563 | L53: 0.8340384512 | M53: =[1]!AgePb76(L53) -> 4981.003209
B54: 18.118 | C54: 15.42 | D54: 37.705 | E54: 34.3 | F54: 0.894 | G54: 1.099271137 | H54: 0.0320487212 | I54: =[1]!AgePb8Th2(H54) -> 637.6124589 | J54: 0.5282215743 | K54: =[1]!AgePb6U8(J54) -> 2733.954486 | L54: 0.8510873165 | M54: =[1]!AgePb76(L54) -> 5009.729002
B55: 18.299 | C55: 15.518 | D55: 37.817 | E55: 19 | F55: 2.18 | G55: 1.990368421 | H55: 0.1047562327 | I55: =[1]!AgePb8Th2(H55) -> 2013.637327 | J55: 0.9631052632 | K55: =[1]!AgePb6U8(J55) -> 4348.283884 | L55: 0.8480244822 | M55: =[1]!AgePb76(L55) -> 5004.613702
B56: 18.208 | C56: 15.48 | D56: 37.661 | E56: 2.51 | F56: 0.542 | G56: 15.00438247 | H56: 5.977841622 | I56: =[1]!AgePb8Th2(H56) -> 39267.09744 | J56: 7.254183267 | K56: =[1]!AgePb6U8(J56) -> 13606.57621 | L56: 0.8501757469 | M56: =[1]!AgePb76(L56) -> 5008.208618
B57: 18.506 | C57: 15.614 | D57: 38.418 | E57: 5.1 | F57: 4.39 | G57: 7.532941176 | H57: 1.47704729 | I57: =[1]!AgePb8Th2(H57) -> 18333.85026 | J57: 3.628627451 | K57: =[1]!AgePb6U8(J57) -> 9877.585027 | L57: 0.843726359 | M57: =[1]!AgePb76(L57) -> 4997.402133
B58: 18.683 | C58: 15.656 | D58: 38.558 | E58: 7.21 | F58: 4.3 | G58: 5.347850208 | H58: 0.7417267972 | I58: =[1]!AgePb8Th2(H58) -> 11215.30133 | J58: 2.591262136 | K58: =[1]!AgePb6U8(J58) -> 8241.764452 | L58: 0.8379810523 | M58: =[1]!AgePb76(L58) -> 4987.701232
B59: 17.905 | C59: 15.429 | D59: 37.74 | E59: 12.6 | F59: 3.72 | G59: 2.995238095 | H59: 0.2377173091 | I59: =[1]!AgePb8Th2(H59) -> 4310.637764 | J59: 1.421031746 | K59: =[1]!AgePb6U8(J59) -> 5699.879392 | L59: 0.8617146049 | M59: =[1]!AgePb76(L59) -> 5027.327462
B60: 17.89 | C60: 15.477 | D60: 37.722 | E60: 17.6 | F60: 3.72 | G60: 2.143295455 | H60: 0.1217781508 | I60: =[1]!AgePb8Th2(H60) -> 2322.68946 | J60: 1.016477273 | K60: =[1]!AgePb6U8(J60) -> 4521.205896 | L60: 0.8651201789 | M60: =[1]!AgePb76(L60) -> 5032.918272
B61: 18.243 | C61: 15.437 | D61: 38.092 | E61: 36.3 | F61: 4.74 | G61: 1.049366391 | H61: 0.02890816505 | I61: =[1]!AgePb8Th2(H61) -> 576.0122501 | J61: 0.5025619835 | K61: =[1]!AgePb6U8(J61) -> 2624.797036 | L61: 0.8461875788 | M61: =[1]!AgePb76(L61) -> 5001.536431
H62: Average | I62: =AVERAGE(I12:I61) -> 14197.53985 | K62: =AVERAGE(K12:K61) -> 7365.857743 | M62: =AVERAGE(M12:M61) -> 5013.656546
H63: Maximum | I63: =MAX(I12:I62) -> 94396.26948 | K63: =MAX(K12:K62) -> 22200.70461 | M63: =MAX(M12:M62) -> 5076.583029
H64: Minimum | I64: =MIN(I12:I63) -> 78.85083551 | K64: =MIN(K12:K63) -> 1117.449977 | M64: =MIN(M12:M63) -> 4945.156008
H65: Difference | I65: =(I63-I64) -> 94317.41865 | K65: =(K63-K64) -> 21083.25463 | M65: =(M63-M64) -> 131.4270206
I67: 232Th/208Pb
B68: Dating | C68: 232Th/208Pb | D68: 206Pb/238U | E68: 207Pb/206Pb | I68: Age | J68: Age | K68: Age | L68: Age
B69: Summaries | C69: Age | D69: Age | E69: Age | I69: 94396.26948 | J69: 39267.09744 | K69: 10595.30406 | L69: 8170.965935
B70: Average | C70: 14198 | D70: 7366 | E70: 5013.656546 | I70: 90682.65133 | J70: 26266.02793 | K70: 10284.01042 | L70: 7789.44252
B71: Maximum | C71: 94396.26948 | D71: 22200.70461 | E71: 5076.583029 | I71: 74639.25341 | J71: 18333.85026 | K71: 9328.228897 | L71: 7637.696826
B72: Minimum | C72: 79 | D72: 1117 | E72: 4945.156008 | I72: 58152.80106 | J72: 16357.26113 | K72: 8820.642008 | L72: 7374.718316
B73: Difference | C73: 94317 | D73: 21083 | E73: 131.4270206 | I73: 55323.91439 | J73: 14249.89092 | K73: 8770.778408 | L73: 7317.21271
I74: 45242.23315 | J74: 11215.30133 | K74: 8402.897088 | L74: 5759.229846
I77: 206Pb/238U
I78: Age | J78: Age | K78: Age | L78: Age
I79: 22200.70461 | J79: 9877.585027 | K79: 7348.090529 | L79: 5745.629021
I80: 21813.20703 | J80: 9656.105078 | K80: 7334.692352 | L80: 5699.879392
I81: 19320.19045 | J81: 9054.120236 | K81: 7249.068808 | L81: 5217.76718
I82: 16656.39067 | J82: 8241.764452 | K82: 7202.372991 | L82: 5201.371125
I83: 16199.87803 | J83: 8044.476445 | K83: 7019.2941 | L83: 5163.434633
I84: 14748.27102 | J84: 7996.090563 | K84: 6923.1095 | L84: 5159.43978
I85: 13606.57621 | J85: 7590.085338 | K85: 6847.651696 | L85: 5098.558372
I86: 11255.65054 | J86: 7421.885204 | K86: 6292.183585 | L86: 4812.348707

Sheet Nd_Sm_09
A1: Rubidium | B1: TABLE 1. | K1: Rubidium_022.pdf | R1: 207Pb/206Pb | S1: 206Pb/238U | T1: 208Pb/232Th | U1: 207Pb/235U
A2: Strontium | B2: Initial | C2: Today | D2: Today | E2: The Ratio | F2: Half | G2: Decay | H2: 2.303/Delta | I2: Age | J2: Age | K2: Age | L2: Model Age | M2: Model Age | N2: Model Age | R2: 5017.957799 | S2: 56922.5097 | T2: 65285.77199 | U2: 8128.175199
A3: Dating | B3: 87Sr/86Sr | C3: 87Sr/86Sr | D3: 87Rb/86Sr | E3: Plus One | F3: Life | G3: Constant | H3: Constant | I3: Years | J3: Million Years | K3: Billion Years | L3: Million Years | M3: % Difference | N3: Difference | R3: 4988.596148 | S3: 27312.53082 | T3: 33897.85873 | U3: 6654.752911
A4: Table 3. | B4: 0.6991 | C4: 0.699148 | D4: 0.001296 | E4: =1+((C4-B4)/D4) -> 1.037037037 | F4: 48800000000 | G4: =(0.693/F4) -> 1.420081967e-11 | H4: =(2.303/G4) -> 1.621737374e+11 | I4: =(LOG(E4))*(H4) -> 2561415338 | J4: =(I4/1000000) -> 2561.415338 | K4: =(J4/1000) -> 2.561415338 | R4: 4977.964633 | S4: 17873.25526 | T4: 25012.7193 | U4: 5988.149013
B5: 0.6991 | C5: 0.699304 | D5: 0.002659 | E5: 1.076720572 | F5: 48800000000 | G5: 1.420081967e-11 | H5: 1.621737374e+11 | I5: 5206265225 | J5: 5206.265225 | K5: 5.206265225 | R5: 4977.406787 | S5: 13680.20481 | T5: 22178.43488 | U5: 5891.679387
B6: 0.6991 | C6: 0.69914 | D6: 0.0022 | E6: 1.018181818 | F6: 48800000000 | G6: 1.420081967e-11 | H6: 1.621737374e+11 | I6: 1269064231 | J6: 1269.064231 | K6: 1.269064231 | R6: 4950.869276 | S6: 13622.81335 | T6: 21204.0797 | U6: 5427.426463
B7: 0.6991 | C7: 0.700476 | D7: 0.0245 | E7: 1.056163265 | F7: 48800000000 | G7: 1.420081967e-11 | H7: 1.621737374e+11 | I7: 3848554385 | J7: 3848.554385 | K7: 3.848554385 | R7: 4923.176835 | S7: 10895.05763 | T7: 17610.78051 | U7: 5300.111833
B8: 0.6991 | C8: 0.699943 | D8: 0.02152 | E8: 1.039172862 | F8: 48800000000 | G8: 1.420081967e-11 | H8: 1.621737374e+11 | I8: 2706322376 | J8: 2706.322376 | K8: 2.706322376 | R8: 4909.122471 | S8: 10277.67461 | T8: 14430.11056 | U8: 5172.730375
B9: 0.6991 | C9: 0.699836 | D9: 0.009263 | E9: 1.0794559 | F9: 48800000000 | G9: 1.420081967e-11 | H9: 1.621737374e+11 | I9: 5384963434 | J9: 5384.963434 | K9: 5.384963434 | R9: 4907.913198 | S9: 9652.785873 | T9: 14410.30435 | U9: 4848.365701
B10: 0.6991 | C10: 0.701166 | D10: 0.0474 | E10: 1.043586498 | F10: 48800000000 | G10: 1.420081967e-11 | H10: 1.621737374e+11 | I10: 3004828225 | J10: 3004.828225 | K10: 3.004828225 | R10: 4907.505809 | S10: 8009.179634 | T10: 13106.89384 | U10: 4844.07232
B11: 0.6991 | C11: 0.700687 | D11: 0.0208 | E11: 1.076298077 | F11: 48800000000 | G11: 1.420081967e-11 | H11: 1.621737374e+11 | I11: 5178623296 | J11: 5178.623296 | K11: 5.178623296 | R11: 4907.505809 | S11: 7394.584639 | T11: 12737.89552
B12: 0.6991 | C12: 0.699146 | D12: 0.000966 | E12: 1.047619048 | F12: 48800000000 | G12: 1.420081967e-11 | H12: 1.621737374e+11 | I12: 3276458630 | J12: 3276.45863 | K12: 3.27645863 | R12: 4885.118078 | S12: 6764.331971 | T12: 11641.0102
B13: 0.6991 | C13: 0.699135 | D13: 0.000727 | E13: 1.048143054 | F13: 48800000000 | G13: 1.420081967e-11 | H13: 1.621737374e+11 | I13: 3311678612 | J13: 3311.678612 | K13: 3.311678612 | R13: 4877.64727 | S13: 6669.504971 | T13: 11174.33239
B14: 0.6991 | C14: 0.69986 | D14: 0.01545 | E14: 1.049190939 | F14: 48800000000 | G14: 1.420081967e-11 | H14: 1.621737374e+11 | I14: 3382057248 | J14: 3382.057248 | K14: 3.382057248 | R14: 4870.05289 | S14: 6448.591261 | T14: 9094.056894
B15: 0.6991 | C15: 0.699415 | D15: 0.006691 | E15: 1.047078165 | F15: 48800000000 | G15: 1.420081967e-11 | H15: 1.621737374e+11 | I15: 3240085819 | J15: 3240.085819 | K15: 3.240085819 | R15: 4869.953633 | S15: 6436.251806 | T15: 6520.275229
B16: 0.6991 | C16: 0.699328 | D16: 0.003922 | E16: 1.058133605 | F16: 48800000000 | G16: 1.420081967e-11 | H16: 1.621737374e+11 | I16: 3979825799 | J16: 3979.825799 | K16: 3.979825799 | R16: 4869.953633 | S16: 6069.740784 | T16: 6165.847004
B17: 0.6991 | C17: 0.700282 | D17: 0.019 | E17: 1.062210526 | F17: 48800000000 | G17: 1.420081967e-11 | H17: 1.621737374e+11 | I17: 4250671104 | J17: 4250.671104 | K17: 4.250671104 | R17: 4843.068004 | S17: 5776.55455 | T17: 6121.103269
B18: 0.6991 | C18: 0.699126 | D18: 0.000404 | E18: 1.064356436 | F18: 48800000000 | G18: 1.420081967e-11 | H18: 1.621737374e+11 | I18: 4392814696 | J18: 4392.814696 | K18: 4.392814696 | R18: 4829.625094 | S18: 5624.80457 | T18: 5671.185972
B19: 0.6991 | C19: 0.699193 | D19: 0.00133 | E19: 1.069924812 | F19: 48800000000 | G19: 1.420081967e-11 | H19: 1.621737374e+11 | I19: 4760327735 | J19: 4760.327735 | K19: 4.760327735 | R19: 4781.158226 | S19: 5601.595619 | T19: 5408.416387
B20: 0.6991 | C20: 0.699148 | D20: 0.001068 | E20: 1.04494382 | F20: 48800000000 | G20: 1.420081967e-11 | H20: 1.621737374e+11 | I20: 3096373747 | J20: 3096.373747 | K20: 3.096373747 | R20: 4744.119824 | S20: 5277.536845 | T20: 5400.681425
B21: 0.6991 | C21: 0.703415 | D21: 0.07779 | E21: 1.055469855 | F21: 48800000000 | G21: 1.420081967e-11 | H21: 1.621737374e+11 | I21: 3802298516 | J21: 3802.298516 | K21: 3.802298516 | R21: 4735.312684 | S21: 5146.866664 | T21: 5396.039027
B22: 0.6991 | C22: 0.702404 | D22: 0.05866 | E22: 1.056324582 | F22: 48800000000 | G22: 1.420081967e-11 | H22: 1.621737374e+11 | I22: 3859311129 | J22: 3859.311129 | K22: 3.859311129 | R22: 4700.199469 | S22: 4952.487691 | T22: 5365.062426
B23: 0.6991 | C23: 0.700162 | D23: 0.01896 | E23: 1.056012658 | F23: 48800000000 | G23: 1.420081967e-11 | H23: 1.621737374e+11 | I23: 3838510305 | J23: 3838.510305 | K23: 3.838510305 | R23: 4700.160267 | S23: 4922.518254 | T23: 5098.2562
B24: 0.6991 | C24: 0.704076 | D24: 0.08252 | E24: 1.060300533 | F24: 48800000000 | G24: 1.420081967e-11 | H24: 1.621737374e+11 | I24: 4123912693 | J24: 4123.912693 | K24: 4.123912693 | R24: 4670.50031 | S24: 4828.717566 | T24: 5035.33381
B25: 0.6991 | C25: 0.700186 | D25: 0.1055 | E25: 1.010293839 | F25: 48800000000 | G25: 1.420081967e-11 | H25: 1.621737374e+11 | I25: 721300863.5 | J25: 721.3008635 | K25: 0.7213008635 | R25: 4670.50031 | S25: 4627.492623
B26: 0.6991 | C26: 0.703034 | D26: 0.07073 | E26: 1.055619963 | F26: 48800000000 | G26: 1.420081967e-11 | H26: 1.621737374e+11 | I26: 3812314495 | J26: 3812.314495 | K26: 3.812314495 | R26: 4660.786873
B27: 0.6991 | C27: 0.700186 | D27: 0.0194 | E27: 1.055979381 | F27: 48800000000 | G27: 1.420081967e-11 | H27: 1.621737374e+11 | I27: 3836290863 | J27: 3836.290863 | K27: 3.836290863 | R27: 4653.772495
I28: Average | J28: =AVERAGE(J4:J27) -> 3618.511198 | R28: 4608.137456
I29: Maximum | J29: =MAX(J4:J28) -> 5384.963434 | R29: 4608.098602
I30: Minimum | J30: =MIN(J4:J29) -> 721.3008635
I31: Difference | J31: =(J29-J30) -> 4663.662571
A34: Table 1. | K34: 207Pb/206Pb | L34: 206Pb/238U | M34: 208Pb/232Th | N34: 207Pb/235U
A35: Sample | B35: 206Pb/204Pb | C35: 207Pb/204Pb | D35: 208Pb/204Pb | E35: 238U/ 204Pb | F35: 232Th/204Pb | G35: 206Pb/238U | H35: 207Pb/235U | I35: 208Pb/232Th | J35: 207Pb/206Pb | K35: Age | L35: Age | M35: Age | N35: Age
A36: Acetone
A37: PL1,W | B37: 18.637 | C37: 15.954 | D37: 38.414 | E37: 1.027 | F37: 3.749 | G37: 7.275 | H37: 363.1 | I37: 1.996 | J37: =(C37/B37) -> 0.8560390621 | K37: =[1]!AgePb76($J$37) -> 5017.957799 | L37: =[1]!AgePb6U8(G37) -> 13622.81335 | M37: =[1]!AgePb8Th2(I37) -> 22178.43488 | N37: =[1]!AgePb7U5(H37) -> 5988.149013
A38: PL2.W | B38: 18.879 | C38: 15.706 | D38: 38.874 | E38: 0.1131 | F38: 0.327 | G38: 68.19 | H38: 2995 | I38: 24.28 | J38: =(C38/B38) -> 0.8319296573 | K38: =[1]!AgePb76($J$38) -> 4977.406787 | L38: =[1]!AgePb6U8(G38) -> 27312.53082 | M38: =[1]!AgePb8Th2(I38) -> 65285.77199 | N38: =[1]!AgePb7U5(H38) -> 8128.175199
A39: PL3,W | B39: 19.19 | C39: 15.971 | D39: 39.003 | E39: 0.535 | F39: 1.86 | G39: 15 | H39: 701 | I39: 4.35 | J39: 0.8322563835 | K39: =[1]!AgePb76($J$39) -> 4977.964633 | L39: =[1]!AgePb6U8(G39) -> 17873.25526 | M39: =[1]!AgePb8Th2(I39) -> 33897.85873 | N39: =[1]!AgePb7U5(H39) -> 6654.752911
A40: PX 1 ,W | B40: 20.845 | C40: 16.529 | D40: 41.507 | E40: 2.789 | F40: 13.58 | G40: 3.47 | H40: 162.1 | I40: 0.7788 | J40: 0.7929479491 | K40: =[1]!AgePb76($J$40) -> 4909.122471 | L40: =[1]!AgePb6U8(G40) -> 9652.785873 | M40: =[1]!AgePb8Th2(I40) -> 11641.0102 | N40: =[1]!AgePb7U5(H40) -> 5172.730375
A41: PX2,W | B41: 20.508 | C41: 16.423 | D41: 40.689 | E41: 2.38 | F41: 10.69 | G41: 3.925 | H41: 183.9 | I41: 0.9126 | J41: 0.8008094402 | K41: =[1]!AgePb76($J$41) -> 4923.176835 | L41: =[1]!AgePb6U8(G41) -> 10277.67461 | M41: =[1]!AgePb8Th2(I41) -> 13106.89384 | N41: =[1]!AgePb7U5(H41) -> 5300.111833
A42: WR,W | B42: 26.04 | C42: 18.88 | D42: 47.01 | E42: 9.51 | F42: 45.07 | G42: 1.564 | H42: 81.64 | I42: 0.3567 | J42: 0.7250384025 | K42: =[1]!AgePb76($J$42) -> 4781.158226 | L42: =[1]!AgePb6U8(G42) -> 6069.740784 | M42: =[1]!AgePb8Th2(I42) -> 6165.847004 | N42: =[1]!AgePb7U5(H42) -> 4482.402218
A43: 1L,W | B43: 59 | C43: 31 | D43: 67 | E43: 60 | F43: 200 | G43: 0.742 | H43: 39.2 | I43: 0.236 | J43: 0.5254237288 | K43: =[1]!AgePb76($J$43) -> 4314.167698 | L43: =[1]!AgePb6U8(G43) -> 3577.978265 | M43: =[1]!AgePb8Th2(I43) -> 4282.57421 | N43: =[1]!AgePb7U5(H43) -> 3750.689948
A44: MAG,W | B44: 18.998 | C44: 15.93 | D44: 38.908 | E44: 1.772 | F44: 4.3 | G44: 4.42 | H44: 208.6 | I44: 1.855 | J44: 0.8385093168 | K44: =[1]!AgePb76($J$44) -> 4988.596148 | L44: =[1]!AgePb6U8(G44) -> 10895.05763 | M44: =[1]!AgePb8Th2(I44) -> 21204.0797 | N44: =[1]!AgePb7U5(H44) -> 5427.426463
A45: PL 1 ,L1 | B45: 24.15 | C45: 18.83 | D45: 45.06 | E45: 13.2 | F45: 13.6 | G45: 0.983 | H45: 58.3 | I45: 1.04 | J45: 0.7797101449 | K45: =[1]!AgePb76($J$45) -> 4885.118078 | L45: =[1]!AgePb6U8(G45) -> 4413.28509 | M45: =[1]!AgePb8Th2(I45) -> 14410.30435 | N45: =[1]!AgePb7U5(H45) -> 4145.412302
A46: PL2,L 1 | B46: 19.585 | C46: 15.992 | D46: 39.679 | E46: 1.145 | F46: 3.573 | G46: 7.349 | H46: 330.1 | I46: 2.447 | J46: 0.8165432729 | K46: =[1]!AgePb76($J$46) -> 4950.869276 | L46: =[1]!AgePb6U8(G46) -> 13680.20481 | M46: =[1]!AgePb8Th2(I46) -> 25012.7193 | N46: =[1]!AgePb7U5(H46) -> 5891.679387
A47: PL3,L1 | B47: 37.93 | C47: 23.42 | D47: 57.05 | E47: 24 | F47: 85.3 | G47: 1.115 | H47: 58.39 | I47: 0.3063 | J47: 0.6174532033 | K47: =[1]!AgePb76($J$47) -> 4549.61538 | L47: =[1]!AgePb6U8(G47) -> 4828.717566 | M47: =[1]!AgePb8Th2(I47) -> 5400.681425 | N47: =[1]!AgePb7U5(H47) -> 4146.952188
A48: PX1.,L1 | B48: 20.946 | C48: 16.595 | D48: 41.26 | E48: 5.6883 | F48: 9.907 | G48: 1.7192 | H48: 81.073 | I48: 1.042 | J48: 0.7922753748 | K48: =[1]!AgePb76($J$48) -> 4907.913198 | L48: =[1]!AgePb6U8(G48) -> 6448.591261 | M48: =[1]!AgePb8Th2(I48) -> 14430.11056 | N48: =[1]!AgePb7U5(H48) -> 4475.411581
A49: PX2,L1 | B49: 21.657 | C49: 16.798 | D49: 42.082 | E49: 4.881 | F49: 8.002 | G49: 2.149 | H49: 100.2 | I49: 1.39 | J49: 0.7756383617 | K49: =[1]!AgePb76($J$49) -> 4877.64727 | L49: =[1]!AgePb6U8(G49) -> 7394.584639 | M49: =[1]!AgePb8Th2(I49) -> 17610.78051 | N49: =[1]!AgePb7U5(H49) -> 4688.123833
A50: WR,L1 | B50: 32.057 | C50: 21.272 | D50: 53.639 | E50: 30.56 | F50: 59.64 | G50: 0,6836 | H50: 36.2 | I50: 0.3807 | J50: 0.6635680195 | K50: =[1]!AgePb76($J$50) -> 4653.772495 | L50: =[1]!AgePb6U8(G50) -> 56922.5097 | M50: =[1]!AgePb8Th2(I50) -> 6520.275229 | N50: =[1]!AgePb7U5(H50) -> 3671.938632
A51: 1L,L1 | B51: 138 | C51: 64.9 | D51: 139 | E51: 491 | F51: 123 | G51: 0.2575 | H51: 14.52 | I51: 0.878 | J51: 0.4702898551 | K51: =[1]!AgePb76($J$51) -> 4150.678268 | L51: =[1]!AgePb6U8(G51) -> 1477.038666 | M51: =[1]!AgePb8Th2(I51) -> 12737.89552 | N51: =[1]!AgePb7U5(H51) -> 2784.311839
A52: MAGL 1 | B52: 22.221 | C52: 17.144 | D52: 42.357 | E52: 5.9569 | F52: 15.47 | G52: 1.8557 | H52: 90.13 | I52: 0.7382 | J52: 0.7715224337 | K52: =[1]!AgePb76($J$52) -> 4870.05289 | L52: =[1]!AgePb6U8(G52) -> 6764.331971 | M52: =[1]!AgePb8Th2(I52) -> 11174.33239 | N52: =[1]!AgePb7U5(H52) -> 4581.699811
A53: PL2,L2 | B53: 22.831 | C53: 17.285 | D53: 43.962 | E53: 4.733 | F53: 22.93 | G53: 2.464 | H53: 117.5 | I53: 0.5682 | J53: 0.7570846656 | K53: =[1]!AgePb76($J$53) -> 4843.068004 | L53: =[1]!AgePb6U8(G53) -> 8009.179634 | M53: =[1]!AgePb8Th2(I53) -> 9094.056894 | N53: =[1]!AgePb7U5(H53) -> 4848.365701
A54: PL3,L2 | B54: 40 | C54: 30 | D54: 70 | E54: 20 | F54: 200 | G54: 1 | H54: 90 | I54: 0.2 | J54: 0.75 | K54: =[1]!AgePb76($J$54) -> 4829.625094 | L54: =[1]!AgePb6U8(G54) -> 4468.313815 | M54: =[1]!AgePb8Th2(I54) -> 3685.124948 | N54: =[1]!AgePb7U5(H54) -> 4580.250299
A55: PX1,L2 | B55: 27.13 | C55: 19.169 | D55: 49.33 | E55: 8.799 | F55: 56.79 | G55: 1.814 | H55: 92.75 | I55: 0.3239 | J55: 0.7065610026 | K55: =[1]!AgePb76($J$55) -> 4744.119824 | L55: =[1]!AgePb6U8(G55) -> 6669.504971 | M55: =[1]!AgePb8Th2(I55) -> 5671.185972 | N55: =[1]!AgePb7U5(H55) -> 4610.480444
A56: PX2,L2 | B56: 27.21 | C56: 19.108 | D56: 48.405 | E56: 9.36 | F56: 49.4 | G56: 1.714 | H56: 86.29 | I56: 0.3537 | J56: 0.7022418229 | K56: =[1]!AgePb76($J$56) -> 4735.312684 | L56: =[1]!AgePb6U8(G56) -> 6436.251806 | M56: =[1]!AgePb8Th2(I56) -> 6121.103269 | N56: =[1]!AgePb7U5(H56) -> 4537.986403
A57: WR,L2 | B57: 85.73 | C57: 42.67 | D57: 110.9 | E57: 92.75 | F57: 261.3 | G57: 0.8038 | H57: 43.73 | I57: 0.306 | J57: 0.497725417 | K57: =[1]!AgePb76($J$57) -> 4234.487 | L57: =[1]!AgePb6U8(G57) -> 3802.711044 | M57: =[1]!AgePb8Th2(I57) -> 5396.039027 | N57: =[1]!AgePb7U5(H57) -> 3859.109933
A58: MAG,L2 29 | B58: 31.66 | C58: 21.111 | D58: 52.872 | E58: 16.78 | F58: 76.46 | G58: 1.222 | H58: 64.61 | I58: 0.2869 | J58: 0.6668035376 | K58: =[1]!AgePb76($J$58) -> 4660.786873 | L58: =[1]!AgePb6U8(G58) -> 5146.866664 | M58: =[1]!AgePb8Th2(I58) -> 5098.2562 | N58: =[1]!AgePb7U5(H58) -> 4248.086636
A59: PL1,R | B59: 42.62 | C59: 32.88 | D59: 66.73 | E59: 27.44 | F59: 138.9 | G59: 1.146 | H59: 98.62 | I59: 0.2578 | J59: 0.771468794 | K59: =[1]!AgePb76($J$59) -> 4869.953633 | L59: =[1]!AgePb6U8(G59) -> 4922.518254 | M59: =[1]!AgePb8Th2(I59) -> 4635.960851 | N59: =[1]!AgePb7U5(H59) -> 4672.145959
A60: PL2,R | B60: 36.708 | C60: 25.156 | D60: 60.942 | E60: 20.15 | F60: 106.1 | G60: 1.2675 | H60: 81.465 | I60: 0.2829 | J60: 0.685300207 | K60: =[1]!AgePb76($J$60) -> 4700.199469 | L60: =[1]!AgePb6U8(G60) -> 5277.536845 | M60: =[1]!AgePb8Th2(I60) -> 5035.33381 | N60: =[1]!AgePb7U5(H60) -> 4480.249745
A61: PL3,R | B61: 32.7 | C61: 25.9 | D61: 56.86 | E61: 14.9 | F61: 85.2 | G61: 1.45 | H61: 117 | I61: 0.304 | J61: 0.7920489297 | K61: =[1]!AgePb76($J$61) -> 4907.505809 | L61: =[1]!AgePb6U8(G61) -> 5776.55455 | M61: =[1]!AgePb8Th2(I61) -> 5365.062426 | N61: =[1]!AgePb7U5(H61) -> 4844.07232
A62: PX1,R | B62: 61.13 | C62: 34.01 | D62: 86.11 | E62: 43.23 | F62: 221.4 | G62: 1.156 | H62: 66.23 | I62: 0.2492 | J62: 0.5563553084 | K62: =[1]!AgePb76($J$62) -> 4397.951609 | L62: =[1]!AgePb6U8(G62) -> 4952.487691 | M62: =[1]!AgePb8Th2(I62) -> 4497.288457 | N62: =[1]!AgePb7U5(H62) -> 4272.853304
A63: PX2,R | B63: 37.206 | C63: 23.92 | D63: 59.692 | E63: 18.693 | F63: 110.4 | G63: 1.393 | H63: 78.7 | I63: 0.2604 | J63: 0.642907058 | K63: =[1]!AgePb76($J$63) -> 4608.098602 | L63: =[1]!AgePb6U8(G63) -> 5624.80457 | M63: =[1]!AgePb8Th2(I63) -> 4677.698452 | N63: =[1]!AgePb7U5(H63) -> 4445.62074
A64: WR,R | B64: 105.2 | C64: 53.019 | D64: 130.59 | E64: 95.57 | F64: 452.9 | G64: 0.98438 | H64: 57.376 | I64: 0.22 | J64: 0.5039828897 | K64: =[1]!AgePb76($J$64) -> 4252.900678 | L64: =[1]!AgePb6U8(G64) -> 4417.769688 | M64: =[1]!AgePb8Th2(I64) -> 4019.218974 | N64: =[1]!AgePb7U5(H64) -> 4129.46626
A65: 1L,R | B65: 507 | C65: 216 | D65: 507 | E65: 508 | F65: 2250 | G65: 0.97667 | H65: 55.022 | I65: 0.2115 | J65: 0.426035503 | K65: =[1]!AgePb76($J$65) -> 4003.609529 | L65: =[1]!AgePb6U8(G65) -> 4392.674364 | M65: =[1]!AgePb8Th2(I65) -> 3877.903209 | N65: =[1]!AgePb7U5(H65) -> 4087.672712
A66: MAG,R | B66: 33.08 | C66: 22.207 | D66: 53.568 | E66: 15.829 | F66: 73.79 | G66: 1.3844 | H66: 78.026 | I66: 0.3068 | J66: 0.671311971 | K66: =[1]!AgePb76($J$66) -> 4670.50031 | L66: =[1]!AgePb6U8(G66) -> 5601.595619 | M66: =[1]!AgePb8Th2(I66) -> 5408.416387 | N66: =[1]!AgePb7U5(H66) -> 4436.997423
A67: PL 1 | B67: 42.62 | C67: 32.88 | D67: 66.73 | E67: 29.94 | F67: 141.5 | G67: 1.05 | H67: 90.37 | I67: 0.2531 | J67: 0.771468794 | K67: =[1]!AgePb76($J$67) -> 4869.953633 | L67: =[1]!AgePb6U8(G67) -> 4627.492623 | M67: =[1]!AgePb8Th2(I67) -> 4560.292697 | N67: =[1]!AgePb7U5(H67) -> 4584.370409
A68: PL2,T | B68: 36.709 | C68: 25.156 | D68: 60.942 | E68: 29.146 | F68: 141.87 | G68: 0.87634 | H68: 56.32 | I68: 0.2115 | J68: 0.6852815386 | K68: =[1]!AgePb76($J$68) -> 4700.160267 | L68: =[1]!AgePb6U8(G68) -> 4056.877169 | M68: =[1]!AgePb8Th2(I68) -> 3877.903209 | N68: =[1]!AgePb7U5(H68) -> 4110.930195
A69: PL3,T | B69: 32.7 | C69: 25.9 | D69: 56.86 | E69: 42.1 | F69: 194 | G69: 0.511 | H69: 41.4 | I69: 0.134 | J69: 0.7920489297 | K69: =[1]!AgePb76($J$69) -> 4907.505809 | L69: =[1]!AgePb6U8(G69) -> 2660.897233 | M69: =[1]!AgePb8Th2(I69) -> 2541.712083 | N69: =[1]!AgePb7U5(H69) -> 3804.790945
A70: PX LT | B70: 61.13 | C70: 34.01 | D70: 86.11 | E70: 76.68 | F70: 322.3 | G70: 0.6516 | H70: 37.34 | I70: 0.1712 | J70: 0.5563553084 | K70: =[1]!AgePb76($J$70) -> 4397.951609 | L70: =[1]!AgePb6U8(G70) -> 3234.452957 | M70: =[1]!AgePb8Th2(I70) -> 3194.115497 | N70: =[1]!AgePb7U5(H70) -> 3702.587945
A71: PX2,T | B71: 37.205 | C71: 23.92 | D71: 59.693 | E71: 32.342 | F71: 139.73 | G71: 0.80508 | H71: 45.49 | I71: 0.2058 | J71: 0.6429243381 | K71: =[1]!AgePb76($J$71) -> 4608.137456 | L71: =[1]!AgePb6U8(G71) -> 3807.283882 | M71: =[1]!AgePb8Th2(I71) -> 3782.582053 | N71: =[1]!AgePb7U5(H71) -> 3898.296427
A72: WR,T | B72: 105.24 | C72: 53.019 | D72: 130.59 | E72: 136.83 | F72: 557.55 | G72: 0.68754 | H72: 40.076 | I72: 0.17874 | J72: 0.5037913341 | K72: =[1]!AgePb76($J$72) -> 4252.340674 | L72: =[1]!AgePb6U8(G72) -> 3373.227057 | M72: =[1]!AgePb8Th2(I72) -> 3323.821554 | N72: =[1]!AgePb7U5(H72) -> 3772.578575
A73: 1L,T | B73: 507 | C73: 210 | D73: 507 | E73: 611.26 | F73: 2275.8 | G73: 0.8118 | H73: 45.735 | I73: 0.20913 | J73: 0.4142011834 | K73: =[1]!AgePb76($J$73) -> 3961.446742 | L73: =[1]!AgePb6U8(G73) -> 3831.238203 | M73: =[1]!AgePb8Th2(I73) -> 3838.324259 | N73: =[1]!AgePb7U5(H73) -> 3903.633395
A74: MAG,T | B74: 33.08 | C74: 22.207 | D74: 53.569 | E74: 36.36 | F74: 147.91 | G74: 0.60267 | H74: 33.97 | I74: 0.153 | J74: 0.671311971 | K74: =[1]!AgePb76($J$74) -> 4670.50031 | L74: =[1]!AgePb6U8(G74) -> 3040.586549 | M74: =[1]!AgePb8Th2(I74) -> 2877.559197 | N74: =[1]!AgePb7U5(H74) -> 3609.169469
J75: Average | K75: =AVERAGE(K37:K74) -> 4672.66666 | L75: =AVERAGE(L37:L74) -> 8035.313829 | M75: =AVERAGE(M37:M74) -> 10148.38235 | N75: =AVERAGE(N37:N74) -> 4545.517968
J76: Maximum | K76: =MAX(K37:K75) -> 5017.957799 | L76: =MAX(L37:L75) -> 56922.5097 | M76: =MAX(M37:M75) -> 65285.77199 | N76: =MAX(N37:N75) -> 8128.175199
J77: Minimum | K77: =MIN(K37:K76) -> 3961.446742 | L77: =MIN(L37:L76) -> 1477.038666 | M77: =MIN(M37:M76) -> 2541.712083 | N77: =MIN(N37:N76) -> 2784.311839
J78: Difference | K78: =(K76-K77) -> 1056.511057 | L78: =(L76-L77) -> 55445.47104 | M78: =(M76-M77) -> 62744.05991 | N78: =(N76-N77) -> 5343.86336
D79: Table | E79: 207Pb/206Pb | F79: 206Pb/238U | G79: 208Pb/232Th | H79: 207Pb/235U
D80: Summaries | E80: Age | F80: Age | G80: Age | H80: Age | M80: 208Pb/232Th
D81: Average | E81: 4672.66666 | F81: 8035.313829 | G81: 10148.38235 | H81: 4545.517968 | M81: Age | N81: Age | O81: Age | P81: Age
D82: Maximum | E82: 5017.957799 | F82: 56922.5097 | G82: 65285.77199 | H82: 8128.175199 | M82: 65285.77199 | N82: 14430.11056 | O82: 9094.056894 | P82: 5400.681425
D83: Minimum | E83: 3961.446742 | F83: 1477.038666 | G83: 2541.712083 | H83: 2784.311839 | M83: 33897.85873 | N83: 14410.30435 | O83: 6520.275229 | P83: 5396.039027
D84: Difference | E84: 1056.511057 | F84: 55445.47104 | G84: 62744.05991 | H84: 5343.86336 | M84: 25012.7193 | N84: 13106.89384 | O84: 6165.847004 | P84: 5365.062426
M85: 22178.43488 | N85: 12737.89552 | O85: 6121.103269 | P85: 5098.2562
M86: 21204.0797 | N86: 11641.0102 | O86: 5671.185972 | P86: 5035.33381
M87: 17610.78051 | N87: 11174.33239 | O87: 5408.416387 | P87: 4677.698452
M90: 206Pb/238U
M91: Age | N91: Age | O91: Age | P91: Age
M92: 56922.5097 | N92: 10895.05763 | O92: 6764.331971 | P92: 5776.55455
M93: 27312.53082 | N93: 10277.67461 | O93: 6669.504971 | P93: 5624.80457
M94: 17873.25526 | N94: 9652.785873 | O94: 6448.591261 | P94: 5601.595619
M95: 13680.20481 | N95: 8009.179634 | O95: 6436.251806 | P95: 5277.536845
M96: 13622.81335 | N96: 7394.584639 | O96: 6069.740784 | P96: 5146.866664

Sheet Nd_Sm_10
A1: Rubidium | B1: TABLE 1. | K1: Rubidium_023.pdf
A2: Strontium | B2: Initial | C2: Today | D2: Today | E2: The Ratio | F2: Half | G2: Decay | H2: 2.303/Delta | I2: Age | J2: Age | K2: Age | L2: Model Age | M2: Model Age | N2: Model Age
A3: Dating | B3: 87Sr/86Sr | C3: 87Sr/86Sr | D3: 87Rb/86Sr | E3: Plus One | F3: Life | G3: Constant | H3: Constant | I3: Years | J3: Million Years | K3: Billion Years | L3: Million Years | M3: % Difference | N3: Difference
A4: Table 1. | B4: 0.702757 | C4: 0.702757 | D4: 0.1 | E4: =1+((C4-B4)/D4) -> 1 | F4: 48800000000 | G4: =(0.693/F4) -> 1.420081967e-11 | H4: =(2.303/G4) -> 1.621737374e+11 | I4: =(LOG(E4))*(H4) -> 0 | J4: =(I4/1000000) -> 0 | K4: =(J4/1000) -> 0
B5: 0.702723 | C5: 0.702723 | D5: 0.1 | E5: 1 | F5: 48800000000 | G5: 1.420081967e-11 | H5: 1.621737374e+11 | I5: 0 | J5: 0 | K5: 0
B6: 0.702666 | C6: 0.702666 | D6: 0.11 | E6: 1 | F6: 48800000000 | G6: 1.420081967e-11 | H6: 1.621737374e+11 | I6: 0 | J6: 0 | K6: 0
B7: 0.702654 | C7: 0.702654 | D7: 0.08 | E7: 1 | F7: 48800000000 | G7: 1.420081967e-11 | H7: 1.621737374e+11 | I7: 0 | J7: 0 | K7: 0
B8: 0.702648 | C8: 0.702648 | D8: 0.08 | E8: 1 | F8: 48800000000 | G8: 1.420081967e-11 | H8: 1.621737374e+11 | I8: 0 | J8: 0 | K8: 0
B9: 0.702658 | C9: 0.702658 | D9: 0.09 | E9: 1 | F9: 48800000000 | G9: 1.420081967e-11 | H9: 1.621737374e+11 | I9: 0 | J9: 0 | K9: 0
B10: 0.702706 | C10: 0.702706 | D10: 0.11 | E10: 1 | F10: 48800000000 | G10: 1.420081967e-11 | H10: 1.621737374e+11 | I10: 0 | J10: 0 | K10: 0
B11: 0.702695 | C11: 0.702696 | D11: 0.1 | E11: 1.00001 | F11: 48800000000 | G11: 1.420081967e-11 | H11: 1.621737374e+11 | I11: 704308.071 | J11: 0.704308071 | K11: 0.000704308071
B12: 0.702886 | C12: 0.702887 | D12: 0.08 | E12: 1.0000125 | F12: 48800000000 | G12: 1.420081967e-11 | H12: 1.621737374e+11 | I12: 880383.9883 | J12: 0.8803839883 | K12: 0.0008803839883
B13: 0.702948 | C13: 0.70295 | D13: 0.15 | E13: 1.000013333 | F13: 48800000000 | G13: 1.420081967e-11 | H13: 1.621737374e+11 | I13: 939075.8628 | J13: 0.9390758628 | K13: 0.0009390758628
B14: 0.70284 | C14: 0.702841 | D14: 0.12 | E14: 1.000008333 | F14: 48800000000 | G14: 1.420081967e-11 | H14: 1.621737374e+11 | I14: 586923.8816 | J14: 0.5869238816 | K14: 0.0005869238816
B15: 0.702912 | C15: 0.702914 | D15: 0.1 | E15: 1.00002 | F15: 48800000000 | G15: 1.420081967e-11 | H15: 1.621737374e+11 | I15: 1408609.099 | J15: 1.408609099 | K15: 0.001408609099
B16: 0.702944 | C16: 0.702945 | D16: 0.07 | E16: 1.000014286 | F16: 48800000000 | G16: 1.420081967e-11 | H16: 1.621737374e+11 | I16: 1006152.231 | J16: 1.006152231 | K16: 0.001006152231
B17: 0.702853 | C17: 0.702854 | D17: 0.08 | E17: 1.0000125 | F17: 48800000000 | G17: 1.420081967e-11 | H17: 1.621737374e+11 | I17: 880383.9883 | J17: 0.8803839883 | K17: 0.0008803839883
B18: 0.702745 | C18: 0.702747 | D18: 0.08 | E18: 1.000025 | F18: 48800000000 | G18: 1.420081967e-11 | H18: 1.621737374e+11 | I18: 1760756.972 | J18: 1.760756972 | K18: 0.001760756972
B19: 0.702769 | C19: 0.702771 | D19: 0.11 | E19: 1.000018182 | F19: 48800000000 | G19: 1.420081967e-11 | H19: 1.621737374e+11 | I19: 1280554.891 | J19: 1.280554891 | K19: 0.001280554891
B20: 0.702782 | C20: 0.702783 | D20: 0.07 | E20: 1.000014286 | F20: 48800000000 | G20: 1.420081967e-11 | H20: 1.621737374e+11 | I20: 1006152.231 | J20: 1.006152231 | K20: 0.001006152231
B21: 0.702818 | C21: 0.702819 | D21: 0.08 | E21: 1.0000125 | F21: 48800000000 | G21: 1.420081967e-11 | H21: 1.621737374e+11 | I21: 880383.9882 | J21: 0.8803839882 | K21: 0.0008803839882
B22: 0.702887 | C22: 0.70289 | D22: 0.1 | E22: 1.00003 | F22: 48800000000 | G22: 1.420081967e-11 | H22: 1.621737374e+11 | I22: 2112903.084 | J22: 2.112903084 | K22: 0.002112903084
B23: 0.702903 | C23: 0.702904 | D23: 0.06 | E23: 1.000016667 | F23: 48800000000 | G23: 1.420081967e-11 | H23: 1.621737374e+11 | I23: 1173842.872 | J23: 1.173842872 | K23: 0.001173842872
B24: 0.702894 | C24: 0.702896 | D24: 0.1 | E24: 1.00002 | F24: 48800000000 | G24: 1.420081967e-11 | H24: 1.621737374e+11 | I24: 1408609.099 | J24: 1.408609099 | K24: 0.001408609099
B25: 0.702877 | C25: 0.702879 | D25: 0.08 | E25: 1.000025 | F25: 48800000000 | G25: 1.420081967e-11 | H25: 1.621737374e+11 | I25: 1760756.972 | J25: 1.760756972 | K25: 0.001760756972
B26: 0.702821 | C26: 0.702824 | D26: 0.09 | E26: 1.000033333 | F26: 48800000000 | G26: 1.420081967e-11 | H26: 1.621737374e+11 | I26: 2347666.181 | J26: 2.347666181 | K26: 0.002347666181
B27: 0.70286 | C27: 0.702863 | D27: 0.09 | E27: 1.000033333 | F27: 48800000000 | G27: 1.420081967e-11 | H27: 1.621737374e+11 | I27: 2347666.181 | J27: 2.347666181 | K27: 0.002347666181
B28: 0.702874 | C28: 0.702876 | D28: 0.06 | E28: 1.000033333 | F28: 48800000000 | G28: 1.420081967e-11 | H28: 1.621737374e+11 | I28: 2347666.181 | J28: 2.347666181 | K28: 0.002347666181
B29: 0.702818 | C29: 0.702822 | D29: 0.08 | E29: 1.00005 | F29: 48800000000 | G29: 1.420081967e-11 | H29: 1.621737374e+11 | I29: 3521469.926 | J29: 3.521469926 | K29: 0.003521469926
B30: 0.702857 | C30: 0.70286 | D30: 0.07 | E30: 1.000042857 | F30: 48800000000 | G30: 1.420081967e-11 | H30: 1.621737374e+11 | I30: 3018413.574 | J30: 3.018413574 | K30: 0.003018413574
B31: 0.702867 | C31: 0.702872 | D31: 0.08 | E31: 1.0000625 | F31: 48800000000 | G31: 1.420081967e-11 | H31: 1.621737374e+11 | I31: 4401809.898 | J31: 4.401809898 | K31: 0.004401809898
B32: 0.702946 | C32: 0.702946 | D32: 0.01 | E32: 1 | F32: 48800000000 | G32: 1.420081967e-11 | H32: 1.621737374e+11 | I32: 0 | J32: 0 | K32: 0
B33: 0.702875 | C33: 0.702876 | D33: 0.01 | E33: 1.0001 | F33: 48800000000 | G33: 1.420081967e-11 | H33: 1.621737374e+11 | I33: 7042763.792 | J33: 7.042763792 | K33: 0.007042763792
B34: 0.70284 | C34: 0.702843 | D34: 0.05 | E34: 1.00006 | F34: 48800000000 | G34: 1.420081967e-11 | H34: 1.621737374e+11 | I34: 4225742.784 | J34: 4.225742784 | K34: 0.004225742784
B35: 0.702835 | C35: 0.702841 | D35: 0.09 | E35: 1.000066667 | F35: 48800000000 | G35: 1.420081967e-11 | H35: 1.621737374e+11 | I35: 4695254.11 | J35: 4.69525411 | K35: 0.00469525411
B36: 0.702915 | C36: 0.70292 | D36: 0.09 | E36: 1.000055556 | F36: 48800000000 | G36: 1.420081967e-11 | H36: 1.621737374e+11 | I36: 3912733.495 | J36: 3.912733495 | K36: 0.003912733495
B37: 0.702914 | C37: 0.702918 | D37: 0.09 | E37: 1.000044444 | F37: 48800000000 | G37: 1.420081967e-11 | H37: 1.621737374e+11 | I37: 3130204.185 | J37: 3.130204185 | K37: 0.003130204185
B38: 0.702975 | C38: 0.702979 | D38: 0.09 | E38: 1.000044444 | F38: 48800000000 | G38: 1.420081967e-11 | H38: 1.621737374e+11 | I38: 3130204.185 | J38: 3.130204185 | K38: 0.003130204185
B39: 0.702885 | C39: 0.70289 | D39: 0.06 | E39: 1.000083333 | F39: 48800000000 | G39: 1.420081967e-11 | H39: 1.621737374e+11 | I39: 5869018.732 | J39: 5.869018732 | K39: 0.005869018732
B40: 0.702964 | C40: 0.702967 | D40: 0.04 | E40: 1.000075 | F40: 48800000000 | G40: 1.420081967e-11 | H40: 1.621737374e+11 | I40: 5282138.866 | J40: 5.282138866 | K40: 0.005282138866
B41: 0.702982 | C41: 0.702984 | D41: 0.1 | E41: 1.00002 | F41: 48800000000 | G41: 1.420081967e-11 | H41: 1.621737374e+11 | I41: 1408609.099 | J41: 1.408609099 | K41: 0.001408609099
B42: 0.702994 | C42: 0.70299 | D42: 0.08 | E42: 0.99995 | F42: 48800000000 | G42: 1.420081967e-11 | H42: 1.621737374e+11 | I42: -3521646.004 | J42: -3.521646004 | K42: -0.003521646004
B43: 0.702831 | C43: 0.70284 | D43: 0.07 | E43: 1.000128571 | F43: 48800000000 | G43: 1.420081967e-11 | H43: 1.621737374e+11 | I43: 9054852.676 | J43: 9.054852676 | K43: 0.009054852676
B44: 0.702912 | C44: 0.70292 | D44: 0.05 | E44: 1.00016 | F44: 48800000000 | G44: 1.420081967e-11 | H44: 1.621737374e+11 | I44: 11268084.06 | J44: 11.26808406 | K44: 0.01126808406
B45: 0.702818 | C45: 0.70283 | D45: 0.702818 | E45: 1.000017074 | F45: 48800000000 | G45: 1.420081967e-11 | H45: 1.621737374e+11 | I45: 1202539.912 | J45: 1.202539912 | K45: 0.001202539912
B46: 0.702942 | C46: 0.70296 | D46: 0.1 | E46: 1.00018 | F46: 48800000000 | G46: 1.420081967e-11 | H46: 1.621737374e+11 | I46: 12676467.82 | J46: 12.67646782 | K46: 0.01267646782
B47: 0.703032 | C47: 0.703039 | D47: 0.04 | E47: 1.000175 | F47: 48800000000 | G47: 1.420081967e-11 | H47: 1.621737374e+11 | I47: 12324374.52 | J47: 12.32437452 | K47: 0.01232437452
B48: 0.702932 | C48: 0.702938 | D48: 0.03 | E48: 1.0002 | F48: 48800000000 | G48: 1.420081967e-11 | H48: 1.621737374e+11 | I48: 14084823.41 | J48: 14.08482341 | K48: 0.01408482341
B49: 0.702856 | C49: 0.702869 | D49: 0.08 | E49: 1.0001625 | F49: 48800000000 | G49: 1.420081967e-11 | H49: 1.621737374e+11 | I49: 11444133.57 | J49: 11.44413357 | K49: 0.01144413357
B50: 0.702921 | C50: 0.702951 | D50: 0.17 | E50: 1.000176471 | F50: 48800000000 | G50: 1.420081967e-11 | H50: 1.621737374e+11 | I50: 12427931.55 | J50: 12.42793155 | K50: 0.01242793155
B51: 0.702823 | C51: 0.70284 | D51: 0.09 | E51: 1.000188889 | F51: 48800000000 | G51: 1.420081967e-11 | H51: 1.621737374e+11 | I51: 13302407.12 | J51: 13.30240712 | K51: 0.01330240712
B52: 0.70283 | C52: 0.702841 | D52: 0.06 | E52: 1.000183333 | F52: 48800000000 | G52: 1.420081967e-11 | H52: 1.621737374e+11 | I52: 12911195.71 | J52: 12.91119571 | K52: 0.01291119571
B53: 0.702866 | C53: 0.702882 | D53: 0.08 | E53: 1.0002 | F53: 48800000000 | G53: 1.420081967e-11 | H53: 1.621737374e+11 | I53: 14084823.41 | J53: 14.08482341 | K53: 0.01408482341
B54: 0.702927 | C54: 0.702948 | D54: 0.048 | E54: 1.0004375 | F54: 48800000000 | G54: 1.420081967e-11 | H54: 1.621737374e+11 | I54: 30806893.66 | J54: 30.80689366 | K54: 0.03080689366
B55: 0.702961 | C55: 0.703005 | D55: 0.1 | E55: 1.00044 | F55: 48800000000 | G55: 1.420081967e-11 | H55: 1.621737374e+11 | I55: 30982894.33 | J55: 30.98289433 | K55: 0.03098289433
B56: 0.702953 | C56: 0.70299 | D56: 0.08 | E56: 1.0004625 | F56: 48800000000 | G56: 1.420081967e-11 | H56: 1.621737374e+11 | I56: 32566880.64 | J56: 32.56688064 | K56: 0.03256688064
B57: 0.702934 | C57: 0.702984 | D57: 0.11 | E57: 1.000454545 | F57: 48800000000 | G57: 1.420081967e-11 | H57: 1.621737374e+11 | I57: 32006889.55 | J57: 32.00688955 | K57: 0.03200688955
B58: 0.702899 | C58: 0.702972 | D58: 0.16 | E58: 1.00045625 | F58: 48800000000 | G58: 1.420081967e-11 | H58: 1.621737374e+11 | I58: 32126888.02 | J58: 32.12688802 | K58: 0.03212688802
B59: 0.707808 | C59: 0.708498 | D59: 0.88 | E59: 1.000784091 | F59: 48800000000 | G59: 1.420081967e-11 | H59: 1.621737374e+11 | I59: 55202792.51 | J59: 55.20279251 | K59: 0.05520279251
I60: Average | J60: =AVERAGE(J4:J59) -> 7.31114973
I61: Maximum | J61: =MAX(J4:J60) -> 55.20279251
I62: Minimum | J62: =MIN(J4:J61) -> -3.521646004
I63: Difference | J63: =(J61-J62) -> 58.72443851
E66: 207Pb/206Pb
A67: Sample | B67: 207Pb/204Pb | C67: 206Pb/204Pb | D67: 207Pb/206Pb | E67: Age
A68: MA | B68: 15.515 | C68: 18.967 | D68: =(B68/C68) -> 0.8179996837 | E68: =[1]!AgePb76($D$68) -> 4953.403892
A69: Md19-5a | B69: 15.517 | C69: 18.885 | D69: =(B69/C69) -> 0.8216574001 | E69: =[1]!AgePb76($D$69) -> 4959.748376
A70: Md19-6a | B70: 15.523 | C70: 18.84 | D70: 0.8239384289 | E70: =[1]!AgePb76($D$70) -> 4963.689745
A71: Md19-8a | B71: 15.514 | C71: 18.796 | D71: 0.8253883805 | E71: =[1]!AgePb76($D$71) -> 4966.189078
A72: Md33a | B72: 15.505 | C72: 18.779 | D72: 0.8256563182 | E72: =[1]!AgePb76($D$72) -> 4966.650421
A73: MA85 | B73: 15.502 | C73: 18.731 | D73: 0.8276119801 | E73: =[1]!AgePb76($D$73) -> 4970.012923
A74: MA87 | B74: 15.505 | C74: 18.881 | D74: 0.8211959112 | E74: =[1]!AgePb76($D$74) -> 4958.949558
A75: MA88 | B75: 15.505 | C75: 18.876 | D75: 0.821413435 | E75: =[1]!AgePb76($D$75) -> 4959.326142
A76: MA115 | B76: 15.564 | C76: 19.787 | D76: 0.7865770455 | E76: =[1]!AgePb76($D$76) -> 4897.62367
A77: MA16 | B77: 15.558 | C77: 19.441 | D77: 0.800267476 | E77: =[1]!AgePb76($D$77) -> 4922.212661
A78: MA17 | B78: 15.543 | C78: 19.304 | D78: 0.805169913 | E78: =[1]!AgePb76($D$78) -> 4930.909099
A79: MA23 | B79: 15.548 | C79: 19.407 | D79: 0.8011542227 | E79: =[1]!AgePb76($D$79) -> 4923.789854
A80: MA53 | B80: 15.544 | C80: 19.304 | D80: 0.8052217157 | E80: =[1]!AgePb76($D$80) -> 4931.000691
A81: MA66 | B81: 15.536 | C81: 19.092 | D81: 0.8137439765 | E81: =[1]!AgePb76($D$81) -> 4945.984087
A82: MA142 | B82: 15.512 | C82: 18.935 | D82: 0.8192236599 | E82: =[1]!AgePb76($D$82) -> 4955.530289
A83: MA137 | B83: 15.513 | C83: 18.92 | D83: 0.8199260042 | E83: =[1]!AgePb76($D$83) -> 4956.748938
A84: MA160 | B84: 15.524 | C84: 18.996 | D84: 0.8172246789 | E84: =[1]!AgePb76($D$84) -> 4952.055736
A85: MA162 | B85: 15.52 | C85: 19.133 | D85: 0.8111639576 | E85: =[1]!AgePb76($D$85) -> 4941.465715
A86: MA75b | B86: 15.56 | C86: 19.6 | D86: 0.793877551 | E86: =[1]!AgePb76($D$86) -> 4910.792077
A87: Md1a | B87: 15.535 | C87: 19.263 | D87: 0.806468359 | E87: =[1]!AgePb76($D$87) -> 4933.202979
A88: Md3a | B88: 15.542 | C88: 19.42 | D88: 0.8003089598 | E88: =[1]!AgePb76($D$88) -> 4922.286487
A89: Md5a | B89: 15.533 | C89: 19.032 | D89: 0.8161517444 | E89: =[1]!AgePb76($D$89) -> 4950.187073
A90: Md9a | B90: 15.543 | C90: 19.4 | D90: 0.801185567 | E90: =[1]!AgePb76($D$90) -> 4923.84557
A91: Md12a | B91: 15.541 | C91: 19.347 | D91: 0.8032769938 | E91: =[1]!AgePb76($D$91) -> 4927.557942
A92: Md21a | B92: 15.546 | C92: 19.334 | D92: 0.8040757215 | E92: =[1]!AgePb76($D$92) -> 4928.973004
A93: MA227 | B93: 15.528 | C93: 19.059 | D93: 0.8147331969 | E93: =[1]!AgePb76($D$93) -> 4947.712463
A94: MA208 | B94: 15.524 | C94: 19.17 | D94: 0.8098069901 | E94: =[1]!AgePb76($D$94) -> 4939.083129
A95: MA215 | B95: 15.576 | C95: 19.789 | D95: 0.7871039466 | E95: =[1]!AgePb76($D$95) -> 4898.578425
A96: MA120 | B96: 15.556 | C96: 19.468 | D96: 0.7990548593 | E96: =[1]!AgePb76($D$96) -> 4920.052853
A97: MA123 | B97: 15.563 | C97: 19.515 | D97: 0.7974891109 | E97: =[1]!AgePb76($D$97) -> 4917.258913
A98: MA127 | B98: 15.567 | C98: 19.524 | D98: 0.7973263675 | E98: =[1]!AgePb76($D$98) -> 4916.968177
A99: Md137-1 | B99: 15.567 | C99: 19.57 | D99: 0.7954522228 | E99: =[1]!AgePb76($D$99) -> 4913.615516
A100: DGR14 | B100: 15.556 | C100: 19.62 | D100: 0.7928644241 | E100: =[1]!AgePb76($D$100) -> 4908.972354
A101: K11 | B101: 15.549 | C101: 19.533 | D101: 0.796037475 | E101: =[1]!AgePb76($D$101) -> 4914.663377
A102: DGR47 | B102: 15.566 | C102: 19.68 | D102: 0.7909552846 | E102: =[1]!AgePb76($D$102) -> 4905.536525
A103: DGR2 | B103: 15.561 | C103: 19.521 | D103: 0.7971415399 | E103: =[1]!AgePb76($D$103) -> 4916.637912
A104: K18 | B104: 15.551 | C104: 19.348 | D104: 0.8037523258 | E104: =[1]!AgePb76($D$104) -> 4928.400242
A105: K22 | B105: 15.56 | C105: 19.353 | D105: 0.8040097143 | E105: =[1]!AgePb76($D$105) -> 4928.85612
A106: K26 | B106: 15.57 | C106: 19.651 | D106: 0.7923260903 | E106: =[1]!AgePb76($D$106) -> 4908.004421
A107: K43 | B107: 15.528 | C107: 19.099 | D107: 0.81302686 | E107: =[1]!AgePb76($D$107) -> 4944.729736
A108: K45 | B108: 15.538 | C108: 19.065 | D108: 0.8150013113 | E108: =[1]!AgePb76($D$108) -> 4948.180531
A109: K67 | B109: 15.523 | C109: 18.957 | D109: 0.8188531941 | E109: =[1]!AgePb76($D$109) -> 4954.887041
A110: PS162-2a | B110: 15.552 | C110: 19.261 | D110: 0.8074347126 | E110: =[1]!AgePb76($D$110) -> 4934.907624
A111: PS2a | B111: 15.512 | C111: 18.939 | D111: 0.8190506363 | E111: =[1]!AgePb76($D$111) -> 4955.229903
A112: PS3a | B112: 15.538 | C112: 19.241 | D112: 0.8075463853 | E112: =[1]!AgePb76($D$112) -> 4935.104474
A113: PS4a | B113: 15.547 | C113: 19.316 | D113: 0.8048767861 | E113: =[1]!AgePb76($D$113) -> 4930.390706
A114: PS36a | B114: 15.542 | C114: 19.296 | D114: 0.8054519071 | E114: =[1]!AgePb76($D$114) -> 4931.407614
A115: PS37.1a | B115: 15.546 | C115: 19.33 | D115: 0.8042421107 | E115: =[1]!AgePb76($D$115) -> 4929.267599
A116: PS41a | B116: 15.508 | C116: 18.878 | D116: 0.8214853268 | E116: =[1]!AgePb76($D$116) -> 4959.45058
A117: PS53a | B117: 15.508 | C117: 18.851 | D117: 0.8226619277 | E117: =[1]!AgePb76($D$117) -> 4961.485522
A118: K55 | B118: 15.541 | C118: 19.282 | D118: 0.8059848563 | E118: =[1]!AgePb76($D$118) -> 4932.349266
A119: DS790-1 | B119: 15.577 | C119: 19.478 | D119: 0.7997227641 | E119: =[1]!AgePb76($D$119) -> 4921.242898
A120: DS797-1b | B120: 15.59 | C120: 19.655 | D120: 0.7931823963 | E120: =[1]!AgePb76($D$120) -> 4909.543745
A121: DS-797-2 | B121: 15.593 | C121: 19.763 | D121: 0.7889996458 | E121: =[1]!AgePb76($D$121) -> 4902.007848
A122: DS-797-7 | B122: 15.599 | C122: 19.637 | D122: 0.7943677751 | E122: =[1]!AgePb76($D$122) -> 4911.671704
A123: VH-97-103 | B123: 15.601 | C123: 19.614 | D123: 0.795401244 | E123: =[1]!AgePb76($D$123) -> 4913.524203
A124: VH-97-77 | B124: 15.619 | C124: 19.415 | D124: 0.8044810713 | E124: =[1]!AgePb76($D$124) -> 4929.690569
A125: VH-97-76 | B125: 15.327 | C125: 15.749 | D125: 0.9732046479 | E125: =[1]!AgePb76($D$125) -> 5199.177264 | F125: =COUNT(E68:E125) -> 58
D126: Average | E126: =AVERAGE(E68:E125) -> 4938.288367
D127: Maximum | E127: =MAX(E68:E126) -> 5199.177264
D128: Minimum | E128: =MIN(E70:E127) -> 4897.62367
D129: Difference | E129: =(E127-E128) -> 301.5535938
D132: Table | E132: 207Pb/206Pb | F132: 87Rb/86Sr | G132: 147Sm/144Nd
D133: Summaries | E133: Age | F133: Age | G133: Age
D134: Average | E134: 4938.288367 | F134: 7.31114973 | G134: 9.674559604
D135: Maximum | E135: 5199.177264 | F135: 55.20279251 | G135: 163.8255178
D136: Minimum | E136: 4897.62367 | F136: -3.521646004 | G136: 0
D137: Difference | E137: 301.5535938 | F137: 58.72443851 | G137: 164
A140: Neodymium | K140: Rubidium_040.PDF
A141: Samarium | B141: Initial | C141: Today | D141: Today | E141: The Ratio | F141: Half | G141: Decay | H141: 2.303/Delta | I141: Age | J141: Age | K141: Age
A142: Dating | B142: 143Nd/144Nd | C142: 143Nd/144Nd | D142: 147Sm/144Nd | E142: Plus One | F142: Life | G142: Constant | H142: Constant | I142: Years | J142: Million Years | K142: Billion Years
B143: 0.51312 | C143: 0.51312 | D143: 0.12 | E143: =1+((C143-B143)/D143) -> 1 | F143: 106000000000 | G143: =(0.693/F143) -> 6.537735849e-12 | H143: =(2.303/G143) -> 3.522626263e+11 | I143: =(LOG(E143))*(H143) -> 0 | J143: =(I143/1000000) -> 0 | K143: =(J143/1000) -> 0
B144: 0.513138 | C144: 0.513138 | D144: 0.12 | E144: =1+((C144-B144)/D144) -> 1 | F144: 106000000000 | G144: 6.537735849e-12 | H144: =(2.303/G144) -> 3.522626263e+11 | I144: =(LOG(E144))*(H144) -> 0 | J144: =(I144/1000000) -> 0 | K144: =(J144/1000) -> 0
B145: 0.513151 | C145: 0.513151 | D145: 0.12 | E145: 1 | F145: 106000000000 | G145: 6.537735849e-12 | H145: 3.522626263e+11 | I145: 0 | J145: 0 | K145: 0
B146: 0.513189 | C146: 0.513189 | D146: 0.12 | E146: 1 | F146: 106000000000 | G146: 6.537735849e-12 | H146: 3.522626263e+11 | I146: 0 | J146: 0 | K146: 0
B147: 0.513159 | C147: 0.513159 | D147: 0.12 | E147: 1 | F147: 106000000000 | G147: 6.537735849e-12 | H147: 3.522626263e+11 | I147: 0 | J147: 0 | K147: 0
B148: 0.513178 | C148: 0.513178 | D148: 0.13 | E148: 1 | F148: 106000000000 | G148: 6.537735849e-12 | H148: 3.522626263e+11 | I148: 0 | J148: 0 | K148: 0
B149: 0.513146 | C149: 0.513146 | D149: 0.12 | E149: 1 | F149: 106000000000 | G149: 6.537735849e-12 | H149: 3.522626263e+11 | I149: 0 | J149: 0 | K149: 0
B150: 0.513123 | C150: 0.513123 | D150: 0.13 | E150: 1 | F150: 106000000000 | G150: 6.537735849e-12 | H150: 3.522626263e+11 | I150: 0 | J150: 0 | K150: 0
B151: 0.513003 | C151: 0.513004 | D151: 0.11 | E151: 1.000009091 | F151: 106000000000 | G151: 6.537735849e-12 | H151: 3.522626263e+11 | I151: 1390772.903 | J151: 1.390772903 | K151: 0.001390772903
B152: 0.513042 | C152: 0.513042 | D152: 0.11 | E152: 1 | F152: 106000000000 | G152: 6.537735849e-12 | H152: 3.522626263e+11 | I152: 0 | J152: 0 | K152: 0
B153: 0.513054 | C153: 0.513055 | D153: 0.13 | E153: 1.000007692 | F153: 106000000000 | G153: 6.537735849e-12 | H153: 3.522626263e+11 | I153: 1176808.664 | J153: 1.176808664 | K153: 0.001176808664
B154: 0.513024 | C154: 0.513025 | D154: 0.12 | E154: 1.000008333 | F154: 106000000000 | G154: 6.537735849e-12 | H154: 3.522626263e+11 | I154: 1274875.644 | J154: 1.274875644 | K154: 0.001274875644
B155: 0.51304 | C155: 0.51304 | D155: 0.12 | E155: 1 | F155: 106000000000 | G155: 6.537735849e-12 | H155: 3.522626263e+11 | I155: 0 | J155: 0 | K155: 0
B156: 0.513071 | C156: 0.513072 | D156: 0.12 | E156: 1.000008333 | F156: 106000000000 | G156: 6.537735849e-12 | H156: 3.522626263e+11 | I156: 1274875.644 | J156: 1.274875644 | K156: 0.001274875644
B157: 0.513114 | C157: 0.513115 | D157: 0.13 | E157: 1.000007692 | F157: 106000000000 | G157: 6.537735849e-12 | H157: 3.522626263e+11 | I157: 1176808.664 | J157: 1.176808664 | K157: 0.001176808664
B158: 0.513099 | C158: 0.513101 | D158: 0.13 | E158: 1.000015385 | F158: 106000000000 | G158: 6.537735849e-12 | H158: 3.522626263e+11 | I158: 2353608.276 | J158: 2.353608276 | K158: 0.002353608276
B159: 0.51311 | C159: 0.513112 | D159: 0.13 | E159: 1.000015385 | F159: 106000000000 | G159: 6.537735849e-12 | H159: 3.522626263e+11 | I159: 2353608.276 | J159: 2.353608276 | K159: 0.002353608276
B160: 0.513067 | C160: 0.513068 | D160: 0.13 | E160: 1.000007692 | F160: 106000000000 | G160: 6.537735849e-12 | H160: 3.522626263e+11 | I160: 1176808.664 | J160: 1.176808664 | K160: 0.001176808664
B161: 0.513026 | C161: 0.513028 | D161: 0.13 | E161: 1.000015385 | F161: 106000000000 | G161: 6.537735849e-12 | H161: 3.522626263e+11 | I161: 2353608.276 | J161: 2.353608276 | K161: 0.002353608276
B162: 0.513064 | C162: 0.513065 | D162: 0.11 | E162: 1.000009091 | F162: 106000000000 | G162: 6.537735849e-12 | H162: 3.522626263e+11 | I162: 1390772.903 | J162: 1.390772903 | K162: 0.001390772903
B163: 0.513063 | C163: 0.513065 | D163: 0.12 | E163: 1.000016667 | F163: 106000000000 | G163: 6.537735849e-12 | H163: 3.522626263e+11 | I163: 2549740.665 | J163: 2.549740665 | K163: 0.002549740665
B164: 0.513046 | C164: 0.513048 | D164: 0.12 | E164: 1.000016667 | F164: 106000000000 | G164: 6.537735849e-12 | H164: 3.522626263e+11 | I164: 2549740.665 | J164: 2.549740665 | K164: 0.002549740665
B165: 0.513046 | C165: 0.513047 | D165: 0.11 | E165: 1.000009091 | F165: 106000000000 | G165: 6.537735849e-12 | H165: 3.522626263e+11 | I165: 1390772.903 | J165: 1.390772903 | K165: 0.001390772903
B166: 0.513047 | C166: 0.513049 | D166: 0.12 | E166: 1.000016667 | F166: 106000000000 | G166: 6.537735849e-12 | H166: 3.522626263e+11 | I166: 2549740.665 | J166: 2.549740665 | K166: 0.002549740665
B167: 0.513053 | C167: 0.513055 | D167: 0.12 | E167: 1.000016667 | F167: 106000000000 | G167: 6.537735849e-12 | H167: 3.522626263e+11 | I167: 2549740.665 | J167: 2.549740665 | K167: 0.002549740665
B168: 0.51306 | C168: 0.513063 | D168: 0.12 | E168: 1.000025 | F168: 106000000000 | G168: 6.537735849e-12 | H168: 3.522626263e+11 | I168: 3824595.062 | J168: 3.824595062 | K168: 0.003824595062
B169: 0.513043 | C169: 0.513047 | D169: 0.12 | E169: 1.000033333 | F169: 106000000000 | G169: 6.537735849e-12 | H169: 3.522626263e+11 | I169: 5099438.835 | J169: 5.099438835 | K169: 0.005099438835
B170: 0.513012 | C170: 0.513016 | D170: 0.14 | E170: 1.000028571 | F170: 106000000000 | G170: 6.537735849e-12 | H170: 3.522626263e+11 | I170: 4370957.98 | J170: 4.37095798 | K170: 0.00437095798
B171: 0.513013 | C171: 0.513018 | D171: 0.14 | E171: 1.000035714 | F171: 106000000000 | G171: 6.537735849e-12 | H171: 3.522626263e+11 | I171: 5463677.962 | J171: 5.463677962 | K171: 0.005463677962
B172: 0.513031 | C172: 0.513035 | D172: 0.12 | E172: 1.000033333 | F172: 106000000000 | G172: 6.537735849e-12 | H172: 3.522626263e+11 | I172: 5099438.835 | J172: 5.099438835 | K172: 0.005099438835
B173: 0.513025 | C173: 0.513029 | D173: 0.13 | E173: 1.000030769 | F173: 106000000000 | G173: 6.537735849e-12 | H173: 3.522626263e+11 | I173: 4707180.344 | J173: 4.707180344 | K173: 0.004707180344
B174: 0.513022 | C174: 0.513026 | D174: 0.14 | E174: 1.000028571 | F174: 106000000000 | G174: 6.537735849e-12 | H174: 3.522626263e+11 | I174: 4370957.98 | J174: 4.37095798 | K174: 0.00437095798
B175: 0.513021 | C175: 0.513024 | D175: 0.14 | E175: 1.000021429 | F175: 106000000000 | G175: 6.537735849e-12 | H175: 3.522626263e+11 | I175: 3278230.193 | J175: 3.278230193 | K175: 0.003278230193
B176: 0.51303 | C176: 0.513033 | D176: 0.14 | E176: 1.000021429 | F176: 106000000000 | G176: 6.537735849e-12 | H176: 3.522626263e+11 | I176: 3278230.193 | J176: 3.278230193 | K176: 0.003278230193
B177: 0.513004 | C177: 0.513007 | D177: 0.13 | E177: 1.000023077 | F177: 106000000000 | G177: 6.537735849e-12 | H177: 3.522626263e+11 | I177: 3530398.836 | J177: 3.530398836 | K177: 0.003530398836
B178: 0.513043 | C178: 0.513046 | D178: 0.12 | E178: 1.000025 | F178: 106000000000 | G178: 6.537735849e-12 | H178: 3.522626263e+11 | I178: 3824595.062 | J178: 3.824595062 | K178: 0.003824595062
B179: 0.513007 | C179: 0.51301 | D179: 0.12 | E179: 1.000025 | F179: 106000000000 | G179: 6.537735849e-12 | H179: 3.522626263e+11 | I179: 3824595.062 | J179: 3.824595062 | K179: 0.003824595062
B180: 0.512998 | C180: 0.513001 | D180: 0.14 | E180: 1.000021429 | F180: 106000000000 | G180: 6.537735849e-12 | H180: 3.522626263e+11 | I180: 3278230.193 | J180: 3.278230193 | K180: 0.003278230193
B181: 0.513005 | C181: 0.513009 | D181: 0.13 | E181: 1.000030769 | F181: 106000000000 | G181: 6.537735849e-12 | H181: 3.522626263e+11 | I181: 4707180.344 | J181: 4.707180344 | K181: 0.004707180344
B182: 0.51305 | C182: 0.513059 | D182: 0.12 | E182: 1.000075 | F182: 106000000000 | G182: 6.537735849e-12 | H182: 3.522626263e+11 | I182: 11473498.36 | J182: 11.47349836 | K182: 0.01147349836
B183: 0.513022 | C183: 0.513031 | D183: 0.12 | E183: 1.000075 | F183: 106000000000 | G183: 6.537735849e-12 | H183: 3.522626263e+11 | I183: 11473498.36 | J183: 11.47349836 | K183: 0.01147349836
B184: 0.513075 | C184: 0.513085 | D184: 0.13 | E184: 1.000076923 | F184: 106000000000 | G184: 6.537735849e-12 | H184: 3.522626263e+11 | I184: 11767679.31 | J184: 11.76767931 | K184: 0.01176767931
B185: 0.513036 | C185: 0.513044 | D185: 0.1 | E185: 1.00008 | F185: 106000000000 | G185: 6.537735849e-12 | H185: 3.522626263e+11 | I185: 12238367.65 | J185: 12.23836765 | K185: 0.01223836765
B186: 0.51297 | C186: 0.512979 | D186: 0.11 | E186: 1.000081818 | F186: 106000000000 | G186: 6.537735849e-12 | H186: 3.522626263e+11 | I186: 12516500.99 | J186: 12.51650099 | K186: 0.01251650099
B187: 0.51301 | C187: 0.513019 | D187: 0.12 | E187: 1.000075 | F187: 106000000000 | G187: 6.537735849e-12 | H187: 3.522626263e+11 | I187: 11473498.36 | J187: 11.47349836 | K187: 0.01147349836
B188: 0.513077 | C188: 0.513086 | D188: 0.12 | E188: 1.000075 | F188: 106000000000 | G188: 6.537735849e-12 | H188: 3.522626263e+11 | I188: 11473498.36 | J188: 11.47349836 | K188: 0.01147349836
B189: 0.512999 | C189: 0.513007 | D189: 0.1 | E189: 1.00008 | F189: 106000000000 | G189: 6.537735849e-12 | H189: 3.522626263e+11 | I189: 12238367.65 | J189: 12.23836765 | K189: 0.01223836765
B190: 0.513065 | C190: 0.513074 | D190: 0.11 | E190: 1.000081818 | F190: 106000000000 | G190: 6.537735849e-12 | H190: 3.522626263e+11 | I190: 12516500.99 | J190: 12.51650099 | K190: 0.01251650099
B191: 0.513075 | C191: 0.513084 | D191: 0.11 | E191: 1.000081818 | F191: 106000000000 | G191: 6.537735849e-12 | H191: 3.522626263e+11 | I191: 12516500.99 | J191: 12.51650099 | K191: 0.01251650099
B192: 0.513025 | C192: 0.513036 | D192: 0.12 | E192: 1.000091667 | F192: 106000000000 | G192: 6.537735849e-12 | H192: 3.522626263e+11 | I192: 14023047.81 | J192: 14.02304781 | K192: 0.01402304781
B193: 0.512954 | C193: 0.51298 | D193: 0.13 | E193: 1.0002 | F193: 106000000000 | G193: 6.537735849e-12 | H193: 3.522626263e+11 | I193: 30594083.65 | J193: 30.59408365 | K193: 0.03059408365
B194: 0.512944 | C194: 0.512969 | D194: 0.13 | E194: 1.000192308 | F194: 106000000000 | G194: 6.537735849e-12 | H194: 3.522626263e+11 | I194: 29417501.25 | J194: 29.41750125 | K194: 0.02941750125
B195: 0.51293 | C195: 0.512957 | D195: 0.13 | E195: 1.000207692 | F195: 106000000000 | G195: 6.537735849e-12 | H195: 3.522626263e+11 | I195: 31770657 | J195: 31.770657 | K195: 0.031770657
B196: 0.512946 | C196: 0.512972 | D196: 0.12 | E196: 1.000216667 | F196: 106000000000 | G196: 6.537735849e-12 | H196: 3.522626263e+11 | I196: 33143314.47 | J196: 33.14331447 | K196: 0.03314331447
B197: 0.512965 | C197: 0.512991 | D197: 0.12 | E197: 1.000216667 | F197: 106000000000 | G197: 6.537735849e-12 | H197: 3.522626263e+11 | I197: 33143314.47 | J197: 33.14331447 | K197: 0.03314331447
B198: 0.512861 | C198: 0.512936 | D198: 0.07 | E198: 1.001071429 | F198: 106000000000 | G198: 6.537735849e-12 | H198: 3.522626263e+11 | I198: 163825517.8 | J198: 163.8255178 | K198: 0.1638255178
I199: Average | J199: =AVERAGE(J143:J198) -> 9.674559604 | K199: 0.009674559604
I200: Maximum | J200: =MAX(J143:J199) -> 163.8255178 | K200: 0.1638255178
I201: Minimum | J201: =MIN(J143:J200) -> 0
I202: Difference | J202: 164

Sheet Nd_Sm_11
A1: Rubidium | B1: Table 4 | C1: Page 1873 | K1: Rubidium_034.pdf | R1: 147Sm/144Nd | T1: 176Lu/176Hf | V1: 187Re/188Os
A2: Strontium | B2: Initial | C2: Today | D2: Today | E2: The Ratio | F2: Half | G2: Decay | H2: 2.303/Delta | I2: Age | J2: Age | K2: Age | L2: Model Age | M2: Model Age | N2: Model Age | R2: -74 | T2: -1 | V2: 20.71
A3: Dating | B3: 87Sr/86Sr | C3: 87Sr/86Sr | D3: 87Rb/86Sr | E3: Plus One | F3: Life | G3: Constant | H3: Constant | I3: Years | J3: Million Years | K3: Billion Years | L3: Million Years | M3: % Difference | N3: Difference | R3: -128 | T3: -12 | V3: 6.44
A4: PL01 | B4: 0.702318 | C4: 0.702319 | D4: 0.00767 | E4: =1+((C4-B4)/D4) -> 1.000130378 | F4: 48800000000 | G4: =(0.693/F4) -> 1.420081967e-11 | H4: =(2.303/G4) -> 1.621737374e+11 | I4: =(LOG(E4))*(H4) -> 9182081.918 | J4: =(I4/1000000) -> 9.182081918 | K4: =(J4/1000) -> 0.009182081918 | L4: 0 | M4: =(J4/L4) *100 ->  | N4: =(J4-L4) -> 9.182081918 | R4: -281 | T4: -143 | V4: -0.02
A5: PL02 | B5: 0.702695 | C5: 0.702696 | D5: 0.00847 | E5: 1.000118064 | F5: 48800000000 | G5: 1.420081967e-11 | H5: 1.621737374e+11 | I5: 8314876.257 | J5: 8.314876257 | K5: 0.008314876257 | L5: 0 | M5: =(J5/L5) *100 ->  | N5: =(J5-L5) -> 8.314876257 | R5: -457 | T5: -153 | V5: -0.03
A6: PL03 | B6: 0.703476 | C6: 0.703476 | D6: 0.00215 | E6: 1 | F6: 48800000000 | G6: 1.420081967e-11 | H6: 1.621737374e+11 | I6: 0 | J6: 0 | K6: 0 | L6: 0 | N6: 0 | R6: -2301 | T6: -159 | V6: -0.04
A7: PL03-leached | B7: 0.703373 | C7: 0.703373 | D7: 0.00191 | E7: 1 | F7: 48800000000 | G7: 1.420081967e-11 | H7: 1.621737374e+11 | I7: 0 | J7: 0 | K7: 0 | L7: 0 | N7: 0 | R7: -3742 | T7: -218 | V7: -0.07
A8: PL06 | B8: 0.702645 | C8: 0.702646 | D8: 0.013 | E8: 1.000076923 | F8: 48800000000 | G8: 1.420081967e-11 | H8: 1.621737374e+11 | I8: 5417573.115 | J8: 5.417573115 | K8: 0.005417573115 | L8: 0 | N8: 5.417573115 | T8: -236 | V8: -0.12
A9: PL07 | B9: 0.702569 | C9: 0.70257 | D9: 0.011 | E9: 1.000090909 | F9: 48800000000 | G9: 1.420081967e-11 | H9: 1.621737374e+11 | I9: 6402541.639 | J9: 6.402541639 | K9: 0.006402541639 | L9: 0 | N9: 6.402541639 | T9: -244 | V9: -0.28
A10: PL11 | B10: 0.704245 | C10: 0.70425 | D10: 0.0584 | E10: 1.000085616 | F10: 48800000000 | G10: 1.420081967e-11 | H10: 1.621737374e+11 | I10: 6029806.883 | J10: 6.029806883 | K10: 0.006029806883 | L10: 0 | N10: 6.029806883 | T10: -409 | V10: -0.38
A11: PL12 | B11: 0.702551 | C11: 0.702552 | D11: 0.00541 | E11: 1.000184843 | F11: 48800000000 | G11: 1.420081967e-11 | H11: 1.621737374e+11 | I11: 13017495.51 | J11: 13.01749551 | K11: 0.01301749551 | L11: 0 | N11: 13.01749551 | T11: -423 | V11: -0.38
A12: PL13 | B12: 0.703292 | C12: 0.703293 | D12: 0.00338 | E12: 1.000295858 | F12: 48800000000 | G12: 1.420081967e-11 | H12: 1.621737374e+11 | I12: 20834539.2 | J12: 20.8345392 | K12: 0.0208345392 | L12: 0 | N12: 20.8345392 | T12: -660 | V12: -0.41
A13: PL14 | B13: 0.702896 | C13: 0.702897 | D13: 0.019 | E13: 1.000052632 | F13: 48800000000 | G13: 1.420081967e-11 | H13: 1.621737374e+11 | I13: 3706805.572 | J13: 3.706805572 | K13: 0.003706805572 | L13: 0 | N13: 3.706805572 | T13: -722 | V13: -1.72
A14: PL15 | B14: 0.702824 | C14: 0.702831 | D14: 0.107 | E14: 1.000065421 | F14: 48800000000 | G14: 1.420081967e-11 | H14: 1.621737374e+11 | I14: 4607495.221 | J14: 4.607495221 | K14: 0.004607495221 | L14: 0 | N14: 4.607495221 | T14: -865 | V14: -2.27
A15: PL15-leached | B15: 0.702795 | C15: 0.702795 | D15: 0.00479 | E15: 1 | F15: 48800000000 | G15: 1.420081967e-11 | H15: 1.621737374e+11 | I15: 0 | J15: 0 | K15: 0 | L15: 0 | N15: 0 | T15: -1457 | V15: -2.68
A16: PL16 | B16: 0.703339 | C16: 0.703339 | D16: 0.0049 | E16: 1 | F16: 48800000000 | G16: 1.420081967e-11 | H16: 1.621737374e+11 | I16: 0 | J16: 0 | K16: 0 | L16: 0 | N16: 0 | T16: -1548 | V16: -11.06
A17: PL17 | B17: 0.703334 | C17: 0.703335 | D17: 0.0212 | E17: 1.00004717 | F17: 48800000000 | G17: 1.420081967e-11 | H17: 1.621737374e+11 | I17: 3322146.141 | J17: 3.322146141 | K17: 0.003322146141 | L17: 0 | N17: 3.322146141 | T17: -1614
A18: PL17-leached | B18: 0.702914 | C18: 0.702914 | D18: 0.00864 | E18: 1 | F18: 48800000000 | G18: 1.420081967e-11 | H18: 1.621737374e+11 | I18: 0 | J18: 0 | K18: 0 | L18: 0 | N18: 0 | T18: -1779
A19: PL18 | B19: 0.704123 | C19: 0.704127 | D19: 0.0495 | E19: 1.000080808 | F19: 48800000000 | G19: 1.420081967e-11 | H19: 1.621737374e+11 | I19: 5691176.865 | J19: 5.691176865 | K19: 0.005691176865 | L19: 0 | N19: 5.691176865 | T19: -1982
A20: PL19 | B20: 0.703622 | C20: 0.703623 | D20: 0.00539 | E20: 1.000185529 | F20: 48800000000 | G20: 1.420081967e-11 | H20: 1.621737374e+11 | I20: 13065793.42 | J20: 13.06579342 | K20: 0.01306579342 | L20: 0 | N20: 13.06579342 | T20: -2121
A21: PL19-leached-R | B21: 0.70347 | C21: 0.70347 | D21: 0.00133 | E21: 1 | F21: 48800000000 | G21: 1.420081967e-11 | H21: 1.621737374e+11 | I21: 0 | J21: 0 | K21: 0 | L21: 0 | N21: 0 | T21: -2614
A22: PL23 | B22: 0.703644 | C22: 0.703646 | D22: 0.026 | E22: 1.000076923 | F22: 48800000000 | G22: 1.420081967e-11 | H22: 1.621737374e+11 | I22: 5417573.115 | J22: 5.417573115 | K22: 0.005417573115 | L22: 0 | N22: 5.417573115 | T22: -3107
A23: PL23-leached | B23: 0.70359 | C23: 0.70359 | D23: 0.0083 | E23: 1 | F23: 48800000000 | G23: 1.420081967e-11 | H23: 1.621737374e+11 | I23: 0 | J23: 0 | K23: 0 | L23: 0 | N23: 0 | T23: -3255
A24: SW01 | B24: 0.703207 | C24: 0.70322 | D24: 0.0546 | E24: 1.000238095 | F24: 48800000000 | G24: 1.420081967e-11 | H24: 1.621737374e+11 | I24: 16767327.6 | J24: 16.7673276 | K24: 0.0167673276 | L24: 0 | N24: 16.7673276 | T24: -6178
A25: SW01-leached | B25: 0.703053 | C25: 0.703053 | D25: 0.00232 | E25: 1 | F25: 48800000000 | G25: 1.420081967e-11 | H25: 1.621737374e+11 | I25: 0 | J25: 0 | K25: 0 | L25: 0 | N25: 0 | T25: -9369
A26: SW02 | B26: 0.702664 | C26: 0.702676 | D26: 0.05 | E26: 1.00024 | F26: 48800000000 | G26: 1.420081967e-11 | H26: 1.621737374e+11 | I26: 16901450.13 | J26: 16.90145013 | K26: 0.01690145013 | L26: 0 | N26: 16.90145013
A27: SW03-leached | B27: 0.702893 | C27: 0.702895 | D27: 0.00632 | E27: 1.000316456 | F27: 48800000000 | G27: 1.420081967e-11 | H27: 1.621737374e+11 | I27: 22284815.64 | J27: 22.28481564 | K27: 0.02228481564 | L27: 0 | N27: 22.28481564
A28: SW04 | B28: 0.703124 | C28: 0.703135 | D28: 0.0463 | E28: 1.000237581 | F28: 48800000000 | G28: 1.420081967e-11 | H28: 1.621737374e+11 | I28: 16731117.37 | J28: 16.73111737 | K28: 0.01673111737 | L28: 0 | N28: 16.73111737
A29: SW04-leached | B29: 0.70245 | C29: 0.70245 | D29: 0.0011 | E29: 1 | F29: 48800000000 | G29: 1.420081967e-11 | H29: 1.621737374e+11 | I29: 0 | J29: 0 | K29: 0 | L29: 0 | N29: 0
A30: SW05 | B30: 0.703181 | C30: 0.703183 | D30: 0.01 | E30: 1.0002 | F30: 48800000000 | G30: 1.420081967e-11 | H30: 1.621737374e+11 | I30: 14084823.42 | J30: 14.08482342 | K30: 0.01408482342 | L30: 0 | N30: 14.08482342
A31: SW05-leached | B31: 0.703031 | C31: 0.703031 | D31: 0.000938 | E31: 1 | F31: 48800000000 | G31: 1.420081967e-11 | H31: 1.621737374e+11 | I31: 0 | J31: 0 | K31: 0 | L31: 0 | N31: 0
A32: SW07 | B32: 0.703129 | C32: 0.703131 | D32: 0.00896 | E32: 1.000223214 | F32: 48800000000 | G32: 1.420081967e-11 | H32: 1.621737374e+11 | I32: 15719486.56 | J32: 15.71948656 | K32: 0.01571948656 | L32: 0 | N32: 15.71948656
A33: SW08 | B33: 0.703384 | C33: 0.703391 | D33: 0.0294 | E33: 1.000238095 | F33: 48800000000 | G33: 1.420081967e-11 | H33: 1.621737374e+11 | I33: 16767327.6 | J33: 16.7673276 | K33: 0.0167673276 | L33: 0 | N33: 16.7673276
A34: SW09 | B34: 0.703143 | C34: 0.703145 | D34: 0.00863 | E34: 1.00023175 | F34: 48800000000 | G34: 1.420081967e-11 | H34: 1.621737374e+11 | I34: 16320509.69 | J34: 16.32050969 | K34: 0.01632050969 | L34: 0 | N34: 16.32050969
A35: SW10 | B35: 0.70262 | C35: 0.702631 | D35: 0.0464 | E35: 1.000237069 | F35: 48800000000 | G35: 1.420081967e-11 | H35: 1.621737374e+11 | I35: 16695063.2 | J35: 16.6950632 | K35: 0.0166950632 | L35: 0 | N35: 16.6950632
A36: SW11 | B36: 0.703174 | C36: 0.703176 | D36: 0.00845 | E36: 1.000236686 | F36: 48800000000 | G36: 1.420081967e-11 | H36: 1.621737374e+11 | I36: 16668124.38 | J36: 16.66812438 | K36: 0.01666812438 | L36: 0 | N36: 16.66812438
A37: SW11-leached | B37: 0.703158 | C37: 0.703158 | D37: 0.000519 | E37: 1 | F37: 48800000000 | G37: 1.420081967e-11 | H37: 1.621737374e+11 | I37: 0 | J37: 0 | K37: 0 | L37: 0 | N37: 0
A38: SW12 | B38: 0.702579 | C38: 0.70259 | D38: 0.0463 | E38: 1.000237581 | F38: 48800000000 | G38: 1.420081967e-11 | H38: 1.621737374e+11 | I38: 16731117.37 | J38: 16.73111737 | K38: 0.01673111737 | L38: 0 | N38: 16.73111737
A39: SW13 | B39: 0.702654 | C39: 0.702665 | D39: 0.0498 | E39: 1.000220884 | F39: 48800000000 | G39: 1.420081967e-11 | H39: 1.621737374e+11 | I39: 15555365.47 | J39: 15.55536547 | K39: 0.01555536547 | L39: 0 | N39: 15.55536547
A40: SW14 | B40: 0.703129 | C40: 0.703132 | D40: 0.0106 | E40: 1.000283019 | F40: 48800000000 | G40: 1.420081967e-11 | H40: 1.621737374e+11 | I40: 19930526.73 | J40: 19.93052673 | K40: 0.01993052673 | L40: 0 | N40: 19.93052673
A41: SW15 | B41: 0.703257 | C41: 0.703259 | D41: 0.00849 | E41: 1.000235571 | F41: 48800000000 | G41: 1.420081967e-11 | H41: 1.621737374e+11 | I41: 16589603.01 | J41: 16.58960301 | K41: 0.01658960301 | L41: 0 | N41: 16.58960301
A42: SW16 | B42: 0.703522 | C42: 0.703525 | D42: 0.0103 | E42: 1.000291262 | F42: 48800000000 | G42: 1.420081967e-11 | H42: 1.621737374e+11 | I42: 20510942.99 | J42: 20.51094299 | K42: 0.02051094299 | L42: 0 | N42: 20.51094299
A43: SW17 | B43: 0.703132 | C43: 0.703133 | D43: 0.00335 | E43: 1.000298507 | F43: 48800000000 | G43: 1.420081967e-11 | H43: 1.621737374e+11 | I43: 21021089.32 | J43: 21.02108932 | K43: 0.02102108932 | L43: 0 | N43: 21.02108932
A44: SW18 | B44: 0.702268 | C44: 0.702268 | D44: 0.00228 | E44: 1 | F44: 48800000000 | G44: 1.420081967e-11 | H44: 1.621737374e+11 | I44: 0 | J44: 0 | K44: 0 | L44: 0 | N44: 0
A45: SW19 | B45: 0.702904 | C45: 0.702905 | D45: 0.00688 | E45: 1.000145349 | F45: 48800000000 | G45: 1.420081967e-11 | H45: 1.621737374e+11 | I45: 10236343.2 | J45: 10.2363432 | K45: 0.0102363432 | L45: 0 | N45: 10.2363432
A46: SW20 | B46: 0.702493 | C46: 0.702499 | D46: 0.0276 | E46: 1.000217391 | F46: 48800000000 | G46: 1.420081967e-11 | H46: 1.621737374e+11 | I46: 15309457.56 | J46: 15.30945756 | K46: 0.01530945756 | L46: 0 | N46: 15.30945756
A47: SW21 | B47: 0.703097 | C47: 0.7031 | D47: 0.0143 | E47: 1.00020979 | F47: 48800000000 | G47: 1.420081967e-11 | H47: 1.621737374e+11 | I47: 14774217.99 | J47: 14.77421799 | K47: 0.01477421799 | L47: 0 | N47: 14.77421799
A48: SW22-leached | B48: 0.703041 | C48: 0.703041 | D48: 0.00156 | E48: 1 | F48: 48800000000 | G48: 1.420081967e-11 | H48: 1.621737374e+11 | I48: 0 | J48: 0 | K48: 0 | L48: 0 | N48: 0
I49: Average | J49: =AVERAGE(J4:J48) -> 9.43574698
I50: Maximum | J50: =MAX(J4:J49) -> 22.28481564
I51: Minimum | J51: =MIN(J4:J50) -> 0
I52: Difference | J52: =(J50-J51) -> 22.28481564
A54: Table 5 | C54: Table 6 | E54: Table 7
A55: Table 5 | B55: 147Sm/144Nd | C55: Table 6 | D55: 176Lu/176Hf | E55: Table 7 | F55: 187Re/188Os
A57: PL01 | B57: 364 | C57: PL01 | D57: -244 | E57: MY9 | F57: 4.05
A58: PL02 | B58: 347 | C58: PL02 | D58: -423 | E58: MY9-R | F58: 2.81
A59: PL03 | B59: 408 | C59: PL03 | D59: -722 | E59: MY9 | F59: 2.53
A60: PL03-leached | B60: 406 | C60: PL03-leached | D60: -865 | E60: MY10 | F60: 6.44 | H60: Table | I60: 147Sm/144Nd | J60: 176Lu/176Hf | K60: 187Re/188Os | L60: 87Rb/86Sr
A61: PL06 | B61: -457 | C61: PL06 | D61: -153 | E61: MY33 | F61: 1.67 | H61: Summaries | I61: Age | J61: Age | K61: Age | L61: Age
A62: PL07 | B62: 76 | C62: PL07 | D62: -159 | E62: MY34 | F62: 2.95 | H62: Average | I62: 290.6086957 | J62: -220 | K62: 1048.28125 | L62: 9.43574698
A63: PL11 | B63: 601 | C63: PL11 | D63: 1377 | E63: MY35 | F63: -2.68 | H63: Maximum | I63: 3079 | J63: 4192 | K63: 20710 | L63: 22.28481564
A64: PL12 | B64: 128 | C64: PL12 | D64: -1 | E64: PL01 | F64: 0.36 | H64: Minimum | I64: -3742 | J64: -9369 | K64: -11060 | L64: 0
A65: PL13 | B65: 428 | C65: PL13 | D65: 199 | E65: PL02 | F65: 1.34 | H65: Difference | I65: 6821 | J65: 13561 | K65: 31770 | L65: 22.28481564
A66: PL14 | B66: 1794 | C66: PL14 | D66: -1779 | E66: PL02 | F66: 0.96
A67: PL15 | B67: 232 | C67: PL15 | D67: -2614 | E67: PL03 | F67: 0.07
A68: PL15-leached | B68: 362 | C68: PL15-leached | D68: 4192 | E68: PL03-R | F68: 0.39
A69: PL16 | B69: 425 | C69: PL16 | D69: -143 | E69: PL03 | F69: -0.03
A70: PL17 | B70: 881 | C70: PL17 | D70: 2285 | E70: PL06 | F70: 0.32
A71: PL17-leached | B71: 847 | C71: PL17-R | D71: 2694 | E71: PL07 | F71: 0
A72: PL18 | B72: 384 | C72: PL17-leached | D72: 1740 | E72: PL07 | F72: -0.07
A73: PL19 | B73: 162 | C73: PL18 | D73: 0 | E73: PL08 | F73: 1.83
A74: PL19-leached | B74: 14 | C74: PL19 | D74: 1227 | E74: PL08 | F74: 0.98
A75: PL19-leached-R | B75: 42 | C75: PL19-leached | D75: 1345 | E75: PL10 | F75: 0.79
A76: PL23 | B76: 1412 | C76: PL19-leached-R | D76: 1308 | E76: PL11 | F76: 0.36
A77: PL23-leached | B77: 967 | C77: PL23 | D77: 1424 | E77: PL11 | F77: 0.43
A78: SW01 | B78: 878 | C78: PL23-leached | D78: 1895 | E78: PL12 | F78: 1.29
A79: SW01-leached | B79: 766 | C79: SW01 | D79: 492 | E79: PL13 | F79: -0.38
A80: SW02 | B80: 277 | C80: SW02 | D80: 275 | E80: PL14 | F80: -0.12
A81: SW03 | B81: -128 | C81: SW03 | D81: -660 | E81: PL14 | F81: 0.32
A82: SW03-leached | B82: -74 | C82: SW03-leached | D82: -409 | E82: PL15 | F82: 1.1
A83: SW04 | B83: 400 | C83: SW04 | D83: 1011 | E83: PL16 | F83: 0.18
A84: SW04-leached | B84: 396 | C84: SW04-leached | D84: 895 | E84: PL16-R | F84: -2.27
A85: SW05 | B85: 179 | C85: SW05 | D85: -1457 | E85: PL16 | F85: 0.19
C86: SW05-leached | D86: -1548 | E86: PL17 | F86: 0.22
A87: SW07 | B87: 331 | C87: SW07 | D87: -236 | E87: PL17 | F87: 0.31
A88: SW08 | B88: 405 | C88: SW08 | D88: 1028 | E88: PL18 | F88: -1.72
A89: SW09 | B89: 346 | C89: SW09 | D89: -218 | E89: PL18-R | F89: 2.48
A90: SW10 | B90: 334 | C90: SW10 | D90: 380 | E90: PL18 | F90: -0.38
A91: SW11 | B91: -2301 | C91: SW11 | D91: -1982 | E91: PL19 | F91: -0.04
A92: SW11-leached | B92: 3079 | C92: SW11-leached | D92: -3107 | E92: PL19 | F92: 0.38
A93: SW12 | B93: 259 | C93: SW12 | D93: 133 | E93: PL19-R | F93: 0.47
A94: SW13 | B94: 193 | C94: SW13 | D94: 852 | E94: PL23 | F94: 1.13
A95: SW14 | B95: 150 | C95: SW14 | D95: 1097 | E95: PL23 | F95: 1.04
A96: SW15 | B96: 370 | C96: SW15 | D96: -2121 | E96: SW01 | F96: 0.47
A97: SW16 | B97: 123 | C97: SW16 | D97: 1543 | E97: SW02 | F97: 0.37
A98: SW17 | B98: 336 | C98: SW17 | D98: -12 | E98: SW03 | F98: 1.41
A99: SW18 | B99: -3742 | C99: SW18 | D99: -9369 | E99: SW04 | F99: 0.75
A100: SW19 | B100: -281 | C100: SW19 | D100: -1614 | E100: SW05 | F100: 2.12
A101: SW20 | B101: 194 | C101: SW20 | D101: 870 | E101: SW06 | F101: 0.78
A102: SW21 | B102: 815 | C102: SW21 | D102: 447 | E102: SW07 | F102: -0.28
A103: SW22-lea | B103: 240 | C103: SW22 | D103: -3255 | E103: SW07 | F103: 0.78
C104: SW22-leached | D104: -6178 | E104: SW08 | F104: -0.41
A105: Average | B105: =AVERAGE(B57:B104) -> 290.6086957 | C105: Average | D105: =AVERAGE(D57:D104) -> -220 | E105: SW09 | F105: 1.28
A106: Maximum | B106: =MAX(B57:B104) -> 3079 | C106: Maximum | D106: =MAX(D57:D104) -> 4192 | E106: SW09 | F106: 0.85
A107: Minimum | B107: =MIN(B57:B104) -> -3742 | C107: Minimum | D107: =MIN(D57:D104) -> -9369 | E107: SW10 | F107: 2.51
A108: Difference | B108: =B106 +ABS(B107) -> 6821 | C108: Difference | D108: =D106 +ABS(D107) -> 13561 | E108: SW11 | F108: 1.39
E109: SW12 | F109: 0.89
E110: SW13 | F110: 4.02
E111: SW14 | F111: 1.44
E112: SW15 | F112: 2.41
E113: SW16 | F113: 1.63
E114: SW17 | F114: 0.9
E115: SW18 | F115: -11.06
E116: SW18 | F116: 20.71
E117: SW19 | F117: 0.49
E118: SW20 | F118: 2.57
E119: SW21 | F119: -0.02
E120: SW22 | F120: 1.39
E121: Average | F121: =AVERAGE(F57:F120) * 1000 -> 1048.28125
E122: Maximum | F122: =MAX(F57:F120)*1000 -> 20710
E123: Minimum | F123: =MIN(F57:F120)*1000 -> -11060
E124: Difference | F124: =F122 +ABS(F123) -> 31770

Sheet Nd_Sm_12
A1: Strontium | B1: Initial | C1: Today | D1: Today | E1: The Ratio | F1: Half | G1: Decay | H1: 2.303/Delta | I1: Age | J1: Age | K1: Age | L1: Model Age | M1: Model Age | N1: Model Age
A2: Dating | B2: 87Sr/86Sr | C2: 87Sr/86Sr | D2: 87Rb/86Sr | E2: Plus One | F2: Life | G2: Constant | H2: Constant | I2: Years | J2: Million Years | K2: Billion Years | L2: Million Years | M2: % Difference | N2: Difference
B3: 0.70768 | C3: 0.81 | D3: 0.709643 | E3: =1+((C3-B3)/D3) -> 1.144185175 | F3: 48800000000 | G3: =(0.693/F3) -> 1.420081967e-11 | H3: =(2.303/G3) -> 1.621737374e+11 | I3: =(LOG(E3))*(H3) -> 9486566239 | J3: =(I3/1000000) -> 9486.566239 | K3: =(J3/1000) -> 9.486566239 | L3: 0 | M3: =(J3/L3) *100 ->  | N3: =(J3-L3) -> 9486.566239
B4: 0.71275 | C4: 1.11 | D4: 0.715426 | E4: 1.555263577 | F4: 48800000000 | G4: 1.420081967e-11 | H4: 1.621737374e+11 | I4: 3.110557174e+10 | J4: 31105.57174 | K4: 31.10557174 | L4: 0 | M4: =(J4/L4) *100 ->  | N4: =(J4-L4) -> 31105.57174
B5: 0.70737 | C5: 1.21 | D5: 0.710291 | E5: 1.707639545 | F5: 48800000000 | G5: 1.420081967e-11 | H5: 1.621737374e+11 | I5: 3.768856087e+10 | J5: 37688.56087 | K5: 37.68856087 | L5: 0 | N5: 37688.56087
B6: 0.7234 | C6: 0.09 | D6: 0.723619 | E6: 0.1246774891 | F6: 48800000000 | G6: 1.420081967e-11 | H6: 1.621737374e+11 | I6: -1.466394317e+11 | J6: -146639.4317 | K6: -146.6394317 | L6: 0 | N6: -146639.4317
B7: 0.70579 | C7: 1.48 | D7: 0.709362 | E7: 2.091417358 | F7: 48800000000 | G7: 1.420081967e-11 | H7: 1.621737374e+11 | I7: 5.196706726e+10 | J7: 51967.06726 | K7: 51.96706726 | L7: 0 | N7: 51967.06726
B8: 0.70908 | C8: 0.12 | D8: 0.709363 | E8: 0.1695648067 | F8: 48800000000 | G8: 1.420081967e-11 | H8: 1.621737374e+11 | I8: -1.249815067e+11 | J8: -124981.5067 | K8: -124.9815067 | L8: 0 | N8: -124981.5067
B9: 0.70903 | C9: 0.11 | D9: 0.709288 | E9: 0.1554488445 | F9: 48800000000 | G9: 1.420081967e-11 | H9: 1.621737374e+11 | I9: -1.311032768e+11 | J9: -131103.2768 | K9: -131.1032768 | L9: 0 | N9: -131103.2768
B10: 0.7052 | C10: 0.02 | D10: 0.705243 | E10: 0.02841999141 | F10: 48800000000 | G10: 1.420081967e-11 | H10: 1.621737374e+11 | I10: -2.507815847e+11 | J10: -250781.5847 | K10: -250.7815847 | L10: 0 | N10: -250781.5847
B11: 0.70367 | C11: 0.14 | D11: 0.704004 | E11: 0.1993369356 | F11: 48800000000 | G11: 1.420081967e-11 | H11: 1.621737374e+11 | I11: -1.135884678e+11 | J11: -113588.4678 | K11: -113.5884678 | L11: 0 | N11: -113588.4678
B12: 0.70283 | C12: 0.01 | D12: 0.702862 | E12: 0.0142730721 | F12: 48800000000 | G12: 1.420081967e-11 | H12: 1.621737374e+11 | I12: -2.992888008e+11 | J12: -299288.8008 | K12: -299.2888008 | L12: 0 | N12: -299288.8008
B13: 0.70283 | C13: 0.01 | D13: 0.702859 | E13: 0.01426886474 | F13: 48800000000 | G13: 1.420081967e-11 | H13: 1.621737374e+11 | I13: -2.993095653e+11 | J13: -299309.5653 | K13: -299.3095653 | L13: 0 | N13: -299309.5653
B14: 0.70288 | C14: 0.02 | D14: 0.702923 | E14: 0.0285137917 | F14: 48800000000 | G14: 1.420081967e-11 | H14: 1.621737374e+11 | I14: -2.505495091e+11 | J14: -250549.5091 | K14: -250.5495091 | L14: 0 | N14: -250549.5091
B15: 0.70368 | C15: 0.01 | D15: 0.703716 | E15: 0.01426143501 | F15: 48800000000 | G15: 1.420081967e-11 | H15: 1.621737374e+11 | I15: -2.99346248e+11 | J15: -299346.248 | K15: -299.346248 | L15: 0 | N15: -299346.248
B16: 0.70413 | C16: 0.11 | D16: 0.704399 | E16: 0.1565433795 | F16: 48800000000 | G16: 1.420081967e-11 | H16: 1.621737374e+11 | I16: -1.306090998e+11 | J16: -130609.0998 | K16: -130.6090998 | L16: 0 | N16: -130609.0998
B17: 0.70284 | C17: 0.06 | D17: 0.702992 | E17: 0.08556569634 | F17: 48800000000 | G17: 1.420081967e-11 | H17: 1.621737374e+11 | I17: -1.731529498e+11 | J17: -173152.9498 | K17: -173.1529498 | L17: 0 | N17: -173152.9498
B18: 0.70284 | C18: 0.01 | D18: 0.702879 | E18: 0.01428268592 | F18: 48800000000 | G18: 1.420081967e-11 | H18: 1.621737374e+11 | I18: -2.992413769e+11 | J18: -299241.3769 | K18: -299.2413769 | L18: 0 | N18: -299241.3769
B19: 0.7031 | C19: 0.08 | D19: 0.703272 | E19: 0.1139985667 | F19: 48800000000 | G19: 1.420081967e-11 | H19: 1.621737374e+11 | I19: -1.529461505e+11 | J19: -152946.1505 | K19: -152.9461505 | L19: 0 | N19: -152946.1505
I20: Average | J20: =AVERAGE(J2:J19) -> -149487.6589
I21: Maximum | J21: =MAX(J3:J20) -> 51967.06726
I22: Minimum | J22: =MIN(J3:J21) -> -299346.248
I23: Difference | J23: =(J21 +ABS(J22)) -> 351313.3153
G28: 207Pb/206Pb
D29: 206Pb/204Pb | E29: 207Pb/204Pb | F29: 207Pb/206Pb | G29: Age
D30: 19.059 | E30: 15.699 | F30: =(E30/D30) -> 0.8237053361 | G30: =[1]!AgePb76($F$30) -> 4963.287519
D31: 18.922 | E31: 15.7 | F31: =(E31/D31) -> 0.8297220167 | G31: =[1]!AgePb76($F$31) -> 4973.631392 | K31: Dating | L31: 87Rb/86Sr | M31: 207Pb/206Pb
D32: 19.018 | E32: 15.745 | F32: 0.8278998843 | G32: =[1]!AgePb76($F$32) -> 4970.507222 | K32: Summary | L32: Age | M32: Age
D33: 18.903 | E33: 15.699 | F33: 0.8305030947 | G33: =[1]!AgePb76($F$33) -> 4974.968371 | K33: Average | L33: -149487.6589 | M33: 4974.074996
D34: 18.975 | E34: 15.726 | F34: 0.8287747036 | G34: =[1]!AgePb76($F$34) -> 4972.008071 | K34: Maximum | L34: 51967.06726 | M34: 5023.749867
D35: 18.949 | E35: 15.701 | F35: 0.8285925379 | G35: =[1]!AgePb76($F$35) -> 4971.695684 | K35: Minimum | L35: -299346.248 | M35: 4844.542969
D36: 18.951 | E36: 15.695 | F36: 0.8281884861 | G36: =[1]!AgePb76($F$36) -> 4971.002537 | K36: Difference | L36: 351313.3153 | M36: 179.2068972
D37: 18.155 | E37: 15.605 | F37: 0.8595428257 | G37: =[1]!AgePb76($F$37) -> 5023.749867
D38: 18.385 | E38: 15.597 | F38: 0.8483546369 | G38: =[1]!AgePb76($F$38) -> 5005.166042
D39: 18.443 | E39: 15.596 | F39: 0.8456324893 | G39: =[1]!AgePb76($F$39) -> 5000.605121
D40: 18.447 | E40: 15.58 | F40: 0.8445817748 | G40: =[1]!AgePb76($F$40) -> 4998.840491
D41: 19.357 | E41: 15.663 | F41: 0.8091646433 | G41: =[1]!AgePb76($F$41) -> 4937.953804
D42: 20.753 | E42: 15.728 | F42: 0.7578663326 | G42: =[1]!AgePb76($F$42) -> 4844.542969
D43: 18.221 | E43: 15.591 | F43: 0.8556610504 | G43: =[1]!AgePb76($F$43) -> 5017.331404
D44: 19.067 | E44: 15.62 | F44: 0.8192164473 | G44: =[1]!AgePb76($F$44) -> 4955.517769
D45: 18.664 | E45: 15.638 | F45: 0.8378696957 | G45: =[1]!AgePb76($F$45) -> 4987.51251
D46: 18.545 | E46: 15.576 | F46: 0.8399029388 | G46: =[1]!AgePb76($F$46) -> 4990.954165
F47: Average | G47: =AVERAGE(G30:G46) -> 4974.074996
F48: Maximum | G48: =MAX(G30:G47) -> 5023.749867
F49: Minimum | G49: =MIN(G30:G48) -> 4844.542969
F50: Difference | G50: =(G48 - ABS(G49)) -> 179.2068972

Sheet Nd_Sm_13
A1: Rubidium | K1: Rubidium_056.pdf | T1: 207Pb/206Pb | V1: 206Pb/238U | X1: 208Pb/232Th
A2: Strontium | B2: Initial | C2: Today | D2: Today | E2: The Ratio | F2: Half | G2: Decay | H2: 2.303/Delta | I2: Age | J2: Age | K2: Age | L2: Model Age | M2: Model Age | N2: Model Age | T2: 4982.973456 | V2: 7092.627879 | X2: 13430.27783
A3: Dating | B3: 87Sr/86Sr | C3: 87Sr/86Sr | D3: 87Rb/86Sr | E3: Plus One | F3: Life | G3: Constant | H3: Constant | I3: Years | J3: Million Years | K3: Billion Years | L3: Million Years | M3: % Difference | N3: Difference | T3: 4988.252772 | V3: 5324.506251 | X3: 12296.7618
B4: 0.70392 | C4: 0.70403 | D4: 0.173 | E4: =1+((C4-B4)/D4) -> 1.000635838 | F4: 48800000000 | G4: =(0.693/F4) -> 1.420081967e-11 | H4: =(2.303/G4) -> 1.621737374e+11 | I4: =(LOG(E4))*(H4) -> 44768586.74 | J4: =(I4/1000000) -> 44.76858674 | K4: =(J4/1000) -> 0.04476858674 | L4: 0 | M4: =(J4/L4) *100 ->  | N4: =(J4-L4) -> 44.76858674 | T4: 4988.525776 | V4: 5279.184045 | X4: 11101.89021
B5: 0.70378 | C5: 0.703883 | D5: 0.167 | E5: 1.000616766 | F5: 48800000000 | G5: 1.420081967e-11 | H5: 1.621737374e+11 | I5: 43426186.73 | J5: 43.42618673 | K5: 0.04342618673 | L5: 0 | M5: =(J5/L5) *100 ->  | N5: =(J5-L5) -> 43.42618673 | T5: 4956.59603 | V5: 5261.50157 | X5: 11014.70951
B6: 0.70386 | C6: 0.703952 | D6: 0.143 | E6: 1.000643357 | F6: 48800000000 | G6: 1.420081967e-11 | H6: 1.621737374e+11 | I6: 45297784.45 | J6: 45.29778445 | K6: 0.04529778445 | L6: 0 | N6: 45.29778445 | T6: 4964.264349 | V6: 5211.17238 | X6: 10719.56831
B7: 0.70413 | C7: 0.704159 | D7: 0.064 | E7: 1.000453125 | F7: 48800000000 | G7: 1.420081967e-11 | H7: 1.621737374e+11 | I7: 31906890.68 | J7: 31.90689068 | K7: 0.03190689068 | L7: 0 | N7: 31.90689068 | T7: 4966.642335 | V7: 5121.300559 | X7: 10198.09756
B8: 0.70413 | C8: 0.70418 | D8: 0.108 | E8: 1.000462963 | F8: 48800000000 | G8: 1.420081967e-11 | H8: 1.621737374e+11 | I8: 32599472.58 | J8: 32.59947258 | K8: 0.03259947258 | L8: 0 | N8: 32.59947258 | T8: 4959.25476 | V8: 5047.879688 | X8: 9535.270168
B9: 0.7041 | C9: 0.704149 | D9: 0.101 | E9: 1.000485149 | F9: 48800000000 | G9: 1.420081967e-11 | H9: 1.621737374e+11 | I9: 34161286.33 | J9: 34.16128633 | K9: 0.03416128633 | L9: 0 | N9: 34.16128633 | T9: 4962.881917 | V9: 4844.838902 | X9: 9491.487641
B10: 0.70415 | C10: 0.704205 | D10: 0.108 | E10: 1.000509259 | F10: 48800000000 | G10: 1.420081967e-11 | H10: 1.621737374e+11 | I10: 35858590.1 | J10: 35.8585901 | K10: 0.0358585901 | L10: 0 | N10: 35.8585901 | T10: 4963.585059 | V10: 4736.362346 | X10: 9061.966777
B11: 0.70418 | C11: 0.704217 | D11: 0.081 | E11: 1.00045679 | F11: 48800000000 | G11: 1.420081967e-11 | H11: 1.621737374e+11 | I11: 32164912.18 | J11: 32.16491218 | K11: 0.03216491218 | L11: 0 | N11: 32.16491218 | T11: 4961.808769 | X11: 8950.0891
B12: 0.70413 | C12: 0.704146 | D12: 0.026 | E12: 1.000615385 | F12: 48800000000 | G12: 1.420081967e-11 | H12: 1.621737374e+11 | I12: 43328921.24 | J12: 43.32892124 | K12: 0.04332892124 | L12: 0 | N12: 43.32892124 | T12: 4951.886706 | X12: 8562.46542
B13: 0.70414 | C13: 0.704174 | D13: 0.068 | E13: 1.0005 | F13: 48800000000 | G13: 1.420081967e-11 | H13: 1.621737374e+11 | I13: 35206778.66 | J13: 35.20677866 | K13: 0.03520677866 | L13: 0 | N13: 35.20677866 | T13: 4945.729207 | X13: 8555.634197
B14: 0.70397 | C14: 0.704052 | D14: 0.288 | E14: 1.000284722 | F14: 48800000000 | G14: 1.420081967e-11 | H14: 1.621737374e+11 | I14: 20050461.91 | J14: 20.05046191 | K14: 0.02005046191 | L14: 0 | N14: 20.05046191 | T14: 4973.888574 | X14: 8416.113
B15: 0.70402 | C15: 0.704126 | D15: 0.399 | E15: 1.000265664 | F15: 48800000000 | G15: 1.420081967e-11 | H15: 1.621737374e+11 | I15: 18708549.8 | J15: 18.7085498 | K15: 0.0187085498 | L15: 0 | N15: 18.7085498 | T15: 4978.133733 | X15: 8330.877576
A16: Sample | B16: 0.70385 | C16: 0.703927 | D16: 0.104 | E16: 1.000740385 | F16: 48800000000 | G16: 1.420081967e-11 | H16: 1.621737374e+11 | I16: 52126852.17 | J16: 52.12685217 | K16: 0.05212685217 | L16: 0 | N16: 52.12685217 | T16: 4982.401574 | X16: 8156.569596
A17: 782 | B17: 0.7039 | C17: 0.703968 | D17: 0.093 | E17: 1.000731183 | F17: 48800000000 | G17: 1.420081967e-11 | H17: 1.621737374e+11 | I17: 51479233.85 | J17: 51.47923385 | K17: 0.05147923385 | L17: 0 | N17: 51.47923385 | T17: 4941.120221 | X17: 7133.257101
A18: 783 | B18: 0.70389 | C18: 0.703953 | D18: 0.088 | E18: 1.000715909 | F18: 48800000000 | G18: 1.420081967e-11 | H18: 1.621737374e+11 | I18: 50404266.91 | J18: 50.40426691 | K18: 0.05040426691 | L18: 0 | N18: 50.40426691 | T18: 4945.491075 | X18: 6560.487099
A19: 784 | B19: 0.70391 | C19: 0.703948 | D19: 0.06 | E19: 1.000633333 | F19: 48800000000 | G19: 1.420081967e-11 | H19: 1.621737374e+11 | I19: 44592281.46 | J19: 44.59228146 | K19: 0.04459228146 | L19: 0 | N19: 44.59228146 | T19: 4946.023379 | X19: 6018.722642
A20: 785 | B20: 0.70392 | C20: 0.70397 | D20: 0.076 | E20: 1.000657895 | F20: 48800000000 | G20: 1.420081967e-11 | H20: 1.621737374e+11 | I20: 46321053.46 | J20: 46.32105346 | K20: 0.04632105346 | L20: 0 | N20: 46.32105346 | T20: 4948.583488 | X20: 6003.423969
A21: 786 | B21: 0.7039 | C21: 0.703963 | D21: 0.083 | E21: 1.000759036 | F21: 48800000000 | G21: 1.420081967e-11 | H21: 1.621737374e+11 | I21: 53439516.88 | J21: 53.43951688 | K21: 0.05343951688 | L21: 0 | N21: 53.43951688 | T21: 4949.442567 | X21: 5563.313872
A22: 287 | B22: 0.7039 | C22: 0.703921 | D22: 0.032 | E22: 1.00065625 | F22: 48800000000 | G22: 1.420081967e-11 | H22: 1.621737374e+11 | I22: 46205288.81 | J22: 46.20528881 | K22: 0.04620528881 | L22: 0 | N22: 46.20528881 | T22: 4953.878531 | X22: 5286.211982
A23: 289 | B23: 0.70399 | C23: 0.704083 | D23: 0.131 | E23: 1.000709924 | F23: 48800000000 | G23: 1.420081967e-11 | H23: 1.621737374e+11 | I23: 49983006.68 | J23: 49.98300668 | K23: 0.04998300668 | L23: 0 | N23: 49.98300668 | T23: 4965.446999 | X23: 5118.929651
A24: 291 | B24: 0.70405 | C24: 0.704083 | D24: 0.046 | E24: 1.000717391 | F24: 48800000000 | G24: 1.420081967e-11 | H24: 1.621737374e+11 | I24: 50508586.16 | J24: 50.50858616 | K24: 0.05050858616 | L24: 0 | N24: 50.50858616 | T24: 4969.226134
A25: 292 | B25: 0.70408 | C25: 0.704117 | D25: 0.047 | E25: 1.000787234 | F25: 48800000000 | G25: 1.420081967e-11 | H25: 1.621737374e+11 | I25: 55423993.25 | J25: 55.42399325 | K25: 0.05542399325 | L25: 0 | N25: 55.42399325 | T25: 4952.230002
A26: 294 | B26: 0.70399 | C26: 0.704055 | D26: 0.085 | E26: 1.000764706 | F26: 48800000000 | G26: 1.420081967e-11 | H26: 1.621737374e+11 | I26: 53838539.08 | J26: 53.83853908 | K26: 0.05383853908 | L26: 0 | N26: 53.83853908 | T26: 4942.956053
A27: 295 | B27: 0.70435 | C27: 0.704373 | D27: 0.035 | E27: 1.000657143 | F27: 48800000000 | G27: 1.420081967e-11 | H27: 1.621737374e+11 | I27: 46268132.5 | J27: 46.2681325 | K27: 0.0462681325 | L27: 0 | N27: 46.2681325 | T27: 4962.914118
I28: Average | J28: =AVERAGE(J4:J27) -> 42.41954886 | K28: 0.04241954886 | T28: 4920.770776
I29: Maximum | J29: =MAX(J4:J28) -> 55.42399325
I30: Minimum | J30: =MIN(J4:J29) -> 18.7085498
I31: Difference | J31: =(J29-J30) -> 36.71544345
G34: Age | I34: Age | K34: Age | M34: Dating | N34: Age | O34: Age | P34: Age | Q34: Age | R34: Age
A35: 206Pb/2042Pb | B35: 207Pb/204Pb | C35: 208Pb/204Pb | D35: 238U/204Pb | E35: 232Th/204Pb | F35: 207Pb/206Pb | G35: 207Pb/206Pb | H35: 206Pb/238U | I35: 206Pb/238U | J35: 208Pb/232Th | K35: 208Pb/232Th | M35: Summary | N35: 87Rb/86Sr | O35: 147Sm/144Nd | P35: 207Pb/206Pb | Q35: 206Pb/238U | R35: 208Pb/232Th
A36: 18.61 | B36: 15.543 | C36: 38.544 | D36: 33.7 | E36: 55.1 | F36: =(B36/A36) -> 0.8351961311 | G36: =[1]!AgePb76(F36) -> 4982.973456 | H36: =(A36/D36) -> 0.5522255193 | I36: =[1]!AgePb6U8(H36) -> 2834.422047 | J36: =(C36/E36) -> 0.6995281307 | K36: =[1]!AgePb8Th2(J36) -> 10719.56831 | M36: Average | N36: 42.41954886 | O36: 41.4517972 | P36: 4960.181791 | Q36: 4259.758068 | R36: 8372.652102
A37: 18.566 | B37: 15.564 | C37: 38.587 | D37: 18.6 | E37: 58.8 | F37: =(B37/A37) -> 0.8383065819 | G37: =[1]!AgePb76(F37) -> 4988.252772 | H37: =(A37/D37) -> 0.998172043 | I37: =[1]!AgePb6U8(H37) -> 4462.419237 | J37: =(C37/E37) -> 0.6562414966 | K37: =[1]!AgePb8Th2(J37) -> 10198.09756 | M37: Maximum | N37: 55.42399325 | O37: 53.63493856 | P37: 4988.525776 | Q37: 7092.627879 | R37: 13430.27783
A38: 18.535 | B38: 15.541 | C38: 38.523 | D38: 15.6 | E38: 46 | F38: 0.8384677637 | G38: =[1]!AgePb76(F38) -> 4988.525776 | H38: 1.188141026 | I38: =[1]!AgePb6U8(H38) -> 5047.879688 | J38: 0.8374565217 | K38: =[1]!AgePb8Th2(J38) -> 12296.7618 | M38: Minimum | N38: 18.7085498 | O38: 20.47703228 | P38: 4920.770776 | Q38: 1904.491249 | R38: 3064.873338
A39: 18.994 | B39: 15.572 | C39: 39.129 | D39: 33.9 | E39: 130.9 | F39: 0.8198378435 | G39: =[1]!AgePb76(F39) -> 4956.59603 | H39: 0.5602949853 | I39: =[1]!AgePb6U8(H39) -> 2867.847842 | J39: 0.2989228419 | K39: =[1]!AgePb8Th2(J39) -> 5286.211982 | M39: Difference | N39: 36.71544345 | O39: 33.15790628 | P39: 67.75500007 | Q39: 5188.13663 | R39: 10365.40449
A40: 18.944 | B40: 15.615 | C40: 39.155 | F40: 0.8242715372 | G40: =[1]!AgePb76(F40) -> 4964.264349
A41: 18.876 | B41: 15.585 | C41: 39.052 | D41: 14.7 | E41: 53.9 | F41: 0.8256516211 | G41: =[1]!AgePb76(F41) -> 4966.642335 | H41: 1.284081633 | I41: =[1]!AgePb6U8(H41) -> 5324.506251 | J41: 0.7245269017 | K41: =[1]!AgePb8Th2(J41) -> 11014.70951
A42: 19.006 | B42: 15.611 | C42: 39.253 | D42: 27.6 | E42: 113.5 | F42: 0.8213721983 | G42: =[1]!AgePb76(F42) -> 4959.25476 | H42: 0.6886231884 | I42: =[1]!AgePb6U8(H42) -> 3377.363516 | J42: 0.3458414097 | K42: =[1]!AgePb8Th2(J42) -> 6003.423969
A43: 18.926 | B43: 15.585 | C43: 39.077 | D43: 15.6 | E43: 65.2 | F43: 0.8234703582 | G43: =[1]!AgePb76(F43) -> 4962.881917 | H43: 1.213205128 | I43: =[1]!AgePb6U8(H43) -> 5121.300559 | J43: 0.5993404908 | K43: =[1]!AgePb8Th2(J43) -> 9491.487641
A44: 18.913 | B44: 15.582 | C44: 39.062 | D44: 15.2 | E44: 64.8 | F44: 0.823877756 | G44: =[1]!AgePb76(F44) -> 4963.585059 | H44: 1.244276316 | I44: =[1]!AgePb6U8(H44) -> 5211.17238 | J44: 0.602808642 | K44: =[1]!AgePb8Th2(J44) -> 9535.270168
A45: 18.933 | B45: 15.579 | C45: 39.073 | D45: 16.9 | E45: 76.6 | F45: 0.8228489938 | G45: =[1]!AgePb76(F45) -> 4961.808769 | H45: 1.120295858 | I45: =[1]!AgePb6U8(H45) -> 4844.838902 | J45: 0.5100913838 | K45: =[1]!AgePb8Th2(J45) -> 8330.877576
A46: 19.057 | B46: 15.572 | C46: 39.137 | D46: - | E46: - | F46: 0.8171275647 | G46: =[1]!AgePb76(F46) -> 4951.886706
A47: 19.179 | B47: 15.604 | C47: 39.411 | D47: 55.8 | E47: 240.7 | F47: 0.8135982064 | G47: =[1]!AgePb76(F47) -> 4945.729207 | H47: 0.3437096774 | I47: =[1]!AgePb6U8(H47) -> 1904.491249 | J47: 0.1637349398 | K47: =[1]!AgePb8Th2(J47) -> 3064.873338
A48: 18.78 | B48: 15.585 | C48: 38.779 | D48: 23.1 | E48: 111.8 | F48: 0.8298722045 | G48: =[1]!AgePb76(F48) -> 4973.888574 | H48: 0.812987013 | I48: =[1]!AgePb6U8(H48) -> 3835.460232 | J48: 0.3468604651 | K48: =[1]!AgePb8Th2(J48) -> 6018.722642
A49: 18.748 | B49: 15.605 | C49: 38.841 | F49: 0.8323554512 | G49: =[1]!AgePb76(F49) -> 4978.133733
A50: 18.669 | B50: 15.586 | C50: 38.794 | D50: 24.7 | E50: 134.6 | F50: 0.8348599282 | G50: =[1]!AgePb76(F50) -> 4982.401574 | H50: 0.7558299595 | I50: =[1]!AgePb6U8(H50) -> 3628.955078 | J50: 0.2882169391 | K50: =[1]!AgePb8Th2(J50) -> 5118.929651
A51: 19.203 | B51: 15.573 | C51: 39.162 | D51: 17.7 | E51: 70.3 | F51: 0.8109670364 | G51: =[1]!AgePb76(F51) -> 4941.120221 | H51: 1.084915254 | I51: =[1]!AgePb6U8(H51) -> 4736.362346 | J51: 0.5570697013 | K51: =[1]!AgePb8Th2(J51) -> 8950.0891
A52: 19.165 | B52: 15.59 | C52: 39.187 | F52: 0.8134620402 | G52: =[1]!AgePb76(F52) -> 4945.491075
A53: 19.148 | B53: 15.582 | C53: 39.161 | D53: 15.1 | E53: 53.5 | F53: 0.8137664508 | G53: =[1]!AgePb76(F53) -> 4946.023379 | H53: 1.26807947 | I53: =[1]!AgePb6U8(H53) -> 5279.184045 | J53: 0.7319813084 | K53: =[1]!AgePb8Th2(J53) -> 11101.89021
A54: 19.078 | B54: 15.553 | C54: 39.049 | D54: 19.8 | E54: 74.1 | F54: 0.8152322046 | G54: =[1]!AgePb76(F54) -> 4948.583488 | H54: 0.9635353535 | I54: =[1]!AgePb6U8(H54) -> 4349.696053 | J54: 0.526977058 | K54: =[1]!AgePb8Th2(J54) -> 8555.634197
A55: 19.091 | B55: 15.573 | C55: 39.097 | D55: 20.3 | E55: 75.7 | F55: 0.815724687 | G55: =[1]!AgePb76(F55) -> 4949.442567 | H55: 0.9404433498 | I55: =[1]!AgePb6U8(H55) -> 4273.434184 | J55: 0.5164729194 | K55: =[1]!AgePb8Th2(J55) -> 8416.113
A56: 19.001 | B56: 15.548 | C56: 38.929 | D56: 20.5 | E56: 73.8 | F56: 0.8182727225 | G56: =[1]!AgePb76(F56) -> 4953.878531 | H56: 0.9268780488 | I56: =[1]!AgePb6U8(H56) -> 4228.210165 | J56: 0.5274932249 | K56: =[1]!AgePb8Th2(J56) -> 8562.46542
A57: 18.864 | B57: 15.562 | C57: 38.726 | D57: 20.6 | E57: 77.9 | F57: 0.8249575912 | G57: =[1]!AgePb76(F57) -> 4965.446999 | H57: 0.9157281553 | I57: =[1]!AgePb6U8(H57) -> 4190.799601 | J57: 0.4971245186 | K57: =[1]!AgePb8Th2(J57) -> 8156.569596
A58: 18.826 | B58: 15.572 | C58: 38.87 | D58: 9.39 | E58: 41.2 | F58: 0.827153936 | G58: =[1]!AgePb76(F58) -> 4969.226134 | H58: 2.004898829 | I58: =[1]!AgePb6U8(H58) -> 7092.627879 | J58: 0.9434466019 | K58: =[1]!AgePb8Th2(J58) -> 13430.27783
A59: 19.094 | B59: 15.606 | C59: 39.105 | D59: 25.4 | E59: 92.4 | F59: 0.8173248141 | G59: =[1]!AgePb76(F59) -> 4952.230002 | H59: 0.7517322835 | I59: =[1]!AgePb6U8(H59) -> 3613.893148 | J59: 0.4232142857 | K59: =[1]!AgePb8Th2(J59) -> 7133.257101
A60: 19.161 | B60: 15.559 | C60: 39.068 | D60: 33.8 | E60: 123.3 | F60: 0.8120139867 | G60: =[1]!AgePb76(F60) -> 4942.956053 | H60: 0.5668934911 | I60: =[1]!AgePb6U8(H60) -> 2895.05232 | J60: 0.3168532036 | K60: =[1]!AgePb8Th2(J60) -> 5563.313872
A61: 18.928 | B61: 15.587 | C61: 38.921 | D61: 15 | E61: 68.8 | F61: 0.823489011 | G61: =[1]!AgePb76(F61) -> 4962.914118 | H61: 1.261866667 | I61: =[1]!AgePb6U8(H61) -> 5261.50157 | J61: 0.5657122093 | K61: =[1]!AgePb8Th2(J61) -> 9061.966777
A62: 19.547 | B62: 15.627 | C62: 39.572 | D62: 26.2 | E62: 103.2 | F62: 0.7994577173 | G62: =[1]!AgePb76(F62) -> 4920.770776 | H62: 0.7460687023 | I62: =[1]!AgePb6U8(H62) -> 3593.017277 | J62: 0.3834496124 | K62: =[1]!AgePb8Th2(J62) -> 6560.487099
F63: Average | G63: =AVERAGE(G36:G62) -> 4960.181791 | H63: Average | I63: =AVERAGE(I36:I62) -> 4259.758068 | J63: Average | K63: =AVERAGE(K36:K62) -> 8372.652102
F64: Maximum | G64: =MAX(G36:G63) -> 4988.525776 | H64: Maximum | I64: =MAX(I36:I63) -> 7092.627879 | J64: Maximum | K64: =MAX(K36:K63) -> 13430.27783
F65: Minimum | G65: =MIN(G36:G64) -> 4920.770776 | H65: Minimum | I65: =MIN(I36:I64) -> 1904.491249 | J65: Minimum | K65: =MIN(K36:K64) -> 3064.873338
F66: Difference | G66: =(G64-G65) -> 67.75500007 | H66: Difference | I66: =(I64-I65) -> 5188.13663 | J66: Difference | K66: =(K64-K65) -> 10365.40449
B69: Neodymium | L69: Rubidium_040.PDF
B70: Samarium | C70: Initial | D70: Today | E70: Today | F70: The Ratio | G70: Half | H70: Decay | I70: 2.303/Delta | J70: Age | K70: Age | L70: Age
B71: Dating | C71: 143Nd/144Nd | D71: 143Nd/144Nd | E71: 147Sm/144Nd | F71: Plus One | G71: Life | H71: Constant | I71: Constant | J71: Years | K71: Million Years | L71: Billion Years
C72: 0.51293 | D72: 0.512981 | E72: 0.187 | F72: =1+((D72-C72)/E72) -> 1.000272727 | G72: 106000000000 | H72: =(0.693/G72) -> 6.537735849e-12 | I72: =(2.303/H72) -> 3.522626263e+11 | J72: =(LOG(F72))*(I72) -> 41717688.24 | K72: =(J72/1000000) -> 41.71768824 | L72: =(K72/1000) -> 0.04171768824
C73: 0.51294 | D73: 0.512997 | E73: 0.187 | F73: =1+((D73-C73)/E73) -> 1.000304813 | G73: 106000000000 | H73: 6.537735849e-12 | I73: =(2.303/H73) -> 3.522626263e+11 | J73: =(LOG(F73))*(I73) -> 46624903.74 | K73: =(J73/1000000) -> 46.62490374 | L73: =(K73/1000) -> 0.04662490374
C74: 0.51291 | D74: 0.512961 | E74: 0.184 | F74: 1.000277174 | G74: 106000000000 | H74: 6.537735849e-12 | I74: 3.522626263e+11 | J74: 42397773.69 | K74: 42.39777369 | L74: 0.04239777369
C75: 0.51284 | D75: 0.512875 | E75: 0.16 | F75: 1.00021875 | G75: 106000000000 | H75: 6.537735849e-12 | I75: 3.522626263e+11 | J75: 33461965.34 | K75: 33.46196534 | L75: 0.03346196534
C76: 0.51283 | D76: 0.512866 | E76: 0.159 | F76: 1.000226415 | G76: 106000000000 | H76: 6.537735849e-12 | I76: 3.522626263e+11 | J76: 34634354.32 | K76: 34.63435432 | L76: 0.03463435432
C77: 0.51285 | D77: 0.512884 | E77: 0.155 | F77: 1.000219355 | G77: 106000000000 | H77: 6.537735849e-12 | I77: 3.522626263e+11 | J77: 33554476.75 | K77: 33.55447675 | L77: 0.03355447675
C78: 0.51283 | D78: 0.512872 | E78: 0.161 | F78: 1.00026087 | G78: 106000000000 | H78: 6.537735849e-12 | I78: 3.522626263e+11 | J78: 39904112.24 | K78: 39.90411224 | L78: 0.03990411224
C79: 0.51282 | D79: 0.512856 | E79: 0.161 | F79: 1.000223602 | G79: 106000000000 | H79: 6.537735849e-12 | I79: 3.522626263e+11 | J79: 34204161.99 | K79: 34.20416199 | L79: 0.03420416199
C80: 0.51281 | D80: 0.512848 | E80: 0.161 | F80: 1.000236025 | G80: 106000000000 | H80: 6.537735849e-12 | I80: 3.522626263e+11 | J80: 36104169 | K80: 36.104169 | L80: 0.036104169
C81: 0.51282 | D81: 0.512856 | E81: 0.158 | F81: 1.000227848 | G81: 106000000000 | H81: 6.537735849e-12 | I81: 3.522626263e+11 | J81: 34853534.13 | K81: 34.85353413 | L81: 0.03485353413
C82: 0.51284 | D82: 0.512875 | E82: 0.156 | F82: 1.000224359 | G82: 106000000000 | H82: 6.537735849e-12 | I82: 3.522626263e+11 | J82: 34319868.22 | K82: 34.31986822 | L82: 0.03431986822
C83: 0.51288 | D83: 0.5129 | E83: 0.126 | F83: 1.00015873 | G83: 106000000000 | H83: 6.537735849e-12 | I83: 3.522626263e+11 | J83: 24281519.73 | K83: 24.28151973 | L83: 0.02428151973
C84: 0.51289 | D84: 0.512907 | E84: 0.127 | F84: 1.000133858 | G84: 106000000000 | H84: 6.537735849e-12 | I84: 3.522626263e+11 | J84: 20477032.28 | K84: 20.47703228 | L84: 0.02047703228
C85: 0.5128 | D85: 0.512854 | E85: 0.157 | F85: 1.000343949 | G85: 106000000000 | H85: 6.537735849e-12 | I85: 3.522626263e+11 | J85: 52610243.33 | K85: 52.61024333 | L85: 0.05261024333
C86: 0.51282 | D86: 0.512866 | E86: 0.155 | F86: 1.000296774 | G86: 106000000000 | H86: 6.537735849e-12 | I86: 3.522626263e+11 | J86: 45395476.35 | K86: 45.39547635 | L86: 0.04539547635
C87: 0.51281 | D87: 0.512855 | E87: 0.152 | F87: 1.000296053 | G87: 106000000000 | H87: 6.537735849e-12 | I87: 3.522626263e+11 | J87: 45285120.39 | K87: 45.28512039 | L87: 0.04528512039
C88: 0.51282 | D88: 0.512869 | E88: 0.153 | F88: 1.000320261 | G88: 106000000000 | H88: 6.537735849e-12 | I88: 3.522626263e+11 | J88: 48987580.99 | K88: 48.98758099 | L88: 0.04898758099
C89: 0.5128 | D89: 0.51285 | E89: 0.163 | F89: 1.000306748 | G89: 106000000000 | H89: 6.537735849e-12 | I89: 3.522626263e+11 | J89: 46920937.27 | K89: 46.92093727 | L89: 0.04692093727
C90: 0.51281 | D90: 0.512864 | E90: 0.154 | F90: 1.000350649 | G90: 106000000000 | H90: 6.537735849e-12 | I90: 3.522626263e+11 | J90: 53634938.56 | K90: 53.63493856 | L90: 0.05363493856
C91: 0.5129 | D91: 0.512948 | E91: 0.155 | F91: 1.000309677 | G91: 106000000000 | H91: 6.537735849e-12 | I91: 3.522626263e+11 | J91: 47368887.19 | K91: 47.36888719 | L91: 0.04736888719
C92: 0.51286 | D92: 0.512907 | E92: 0.157 | F92: 1.000299363 | G92: 106000000000 | H92: 6.537735849e-12 | I92: 3.522626263e+11 | J92: 45791417.51 | K92: 45.79141751 | L92: 0.04579141751
C93: 0.51284 | D93: 0.512888 | E93: 0.148 | F93: 1.000324324 | G93: 106000000000 | H93: 6.537735849e-12 | I93: 3.522626263e+11 | J93: 49608944.31 | K93: 49.60894431 | L93: 0.04960894431
C94: 0.51286 | D94: 0.512903 | E94: 0.142 | F94: 1.000302817 | G94: 106000000000 | H94: 6.537735849e-12 | I94: 3.522626263e+11 | J94: 46319647.27 | K94: 46.31964727 | L94: 0.04631964727
C95: 0.51282 | D95: 0.512873 | E95: 0.168 | F95: 1.000315476 | G95: 106000000000 | H95: 6.537735849e-12 | I95: 3.522626263e+11 | J95: 48255739.12 | K95: 48.25573912 | L95: 0.04825573912
C96: 0.51278 | D96: 0.512827 | E96: 0.145 | F96: 1.000324138 | G96: 106000000000 | H96: 6.537735849e-12 | I96: 3.522626263e+11 | J96: 49580438.05 | K96: 49.58043805 | L96: 0.04958043805
J97: Average | K97: =AVERAGE(K72:K96) -> 41.4517972
J98: Maximum | K98: =MAX(K72:K97) -> 53.63493856
J99: Minimum | K99: =MIN(K72:K98) -> 20.47703228
J100: Difference | K100: =(K98-K99) -> 33.15790628

Sheet Nd_Sm_14
A1: Rubidium | K1: Neodymium_002.pdf
A2: Strontium | B2: Initial | C2: Today | D2: Today | E2: The Ratio | F2: Half | G2: Decay | H2: 2.303/Delta | I2: Age | J2: Age | K2: Age
A3: Dating | B3: 87Sr/86Sr | C3: 87Sr/86Sr | D3: 87Rb/86Sr | E3: Plus One | F3: Life | G3: Constant | H3: Constant | I3: Years | J3: Million Years | K3: Billion Years
B4: 0.70407 | C4: 0.70416 | D4: 0.0043 | E4: =1+((C4-B4)/D4) -> 1.020930233 | F4: 48800000000 | G4: =(0.693/F4) -> 1.420081967e-11 | H4: =(2.303/G4) -> 1.621737374e+11 | I4: =(LOG(E4))*(H4) -> 1458925428 | J4: =(I4/1000000) -> 1458.925428 | K4: =(J4/1000) -> 1.458925428
B5: 0.7039 | C5: 0.70403 | D5: 0.0062 | E5: 1.020967742 | F5: 48800000000 | G5: 1.420081967e-11 | H5: 1.621737374e+11 | I5: 1461513049 | J5: 1461.513049 | K5: 1.461513049
B6: 0.70404 | C6: 0.70417 | D6: 0.0064 | E6: 1.0203125 | F6: 48800000000 | G6: 1.420081967e-11 | H6: 1.621737374e+11 | I6: 1416296866 | J6: 1416.296866 | K6: 1.416296866
B7: 0.70514 | C7: 0.7053 | D7: 0.0075 | E7: 1.021333333 | F7: 48800000000 | G7: 1.420081967e-11 | H7: 1.621737374e+11 | I7: 1486728749 | J7: 1486.728749 | K7: 1.486728749
B8: 0.70464 | C8: 0.70488 | D8: 0.0116 | E8: =1+((C8-B8)/D8) -> 1.020689655 | F8: 48800000000 | G8: =(0.693/F8) -> 1.420081967e-11 | H8: =(2.303/G8) -> 1.621737374e+11 | I8: =(LOG(E8))*(H8) -> 1442326702 | J8: =(I8/1000000) -> 1442.326702 | K8: =(J8/1000) -> 1.442326702
B9: 0.70491 | C9: 0.70515 | D9: 0.0117 | E9: 1.020512821 | F9: 48800000000 | G9: 1.420081967e-11 | H9: 1.621737374e+11 | I9: 1430123435 | J9: 1430.123435 | K9: 1.430123435
B10: 0.70562 | C10: 0.70585 | D10: 0.0113 | E10: 1.020353982 | F10: 48800000000 | G10: 1.420081967e-11 | H10: 1.621737374e+11 | I10: 1419160290 | J10: 1419.16029 | K10: 1.41916029
B11: 0.70458 | C11: 0.70469 | D11: 0.0051 | E11: 1.021568627 | F11: 48800000000 | G11: 1.420081967e-11 | H11: 1.621737374e+11 | I11: 1502952766 | J11: 1502.952766 | K11: 1.502952766
B12: 0.70508 | C12: 0.70745 | D12: 0.1141 | E12: 1.020771253 | F12: 48800000000 | G12: 1.420081967e-11 | H12: 1.621737374e+11 | I12: 1447957033 | J12: 1447.957033 | K12: 1.447957033
B13: 0.70682 | C13: 0.7085 | D13: 0.0808 | E13: 1.020792079 | F13: 48800000000 | G13: 1.420081967e-11 | H13: 1.621737374e+11 | I13: 1449393965 | J13: 1449.393965 | K13: 1.449393965
B14: 0.7057 | C14: 0.70591 | D14: 0.0101 | E14: 1.020792079 | F14: 48800000000 | G14: 1.420081967e-11 | H14: 1.621737374e+11 | I14: 1449393965 | J14: 1449.393965 | K14: 1.449393965
B15: 0.70555 | C15: 0.70995 | D15: 0.2113 | E15: 1.020823474 | F15: 48800000000 | G15: 1.420081967e-11 | H15: 1.621737374e+11 | I15: 1451560046 | J15: 1451.560046 | K15: 1.451560046
B16: 0.70363 | C16: 0.70678 | D16: 0.1515 | E16: 1.020792079 | F16: 48800000000 | G16: 1.420081967e-11 | H16: 1.621737374e+11 | I16: 1449393965 | J16: 1449.393965 | K16: 1.449393965
B17: 0.70259 | C17: 0.70272 | D17: 0.0062 | E17: 1.020967742 | F17: 48800000000 | G17: 1.420081967e-11 | H17: 1.621737374e+11 | I17: 1461513049 | J17: 1461.513049 | K17: 1.461513049
B18: 0.70329 | C18: 0.70375 | D18: 0.0219 | E18: 1.021004566 | F18: 48800000000 | G18: 1.420081967e-11 | H18: 1.621737374e+11 | I18: 1464053315 | J18: 1464.053315 | K18: 1.464053315
B19: 0.70329 | C19: 0.70447 | D19: 0.0587 | E19: 1.020102215 | F19: 48800000000 | G19: 1.420081967e-11 | H19: 1.621737374e+11 | I19: 1401779581 | J19: 1401.779581 | K19: 1.401779581
B20: 0.70321 | C20: 0.70451 | D20: 0.0649 | E20: 1.020030817 | F20: 48800000000 | G20: 1.420081967e-11 | H20: 1.621737374e+11 | I20: 1396849858 | J20: 1396.849858 | K20: 1.396849858
B21: 0.70327 | C21: 0.70487 | D21: 0.0798 | E21: 1.020050125 | F21: 48800000000 | G21: 1.420081967e-11 | H21: 1.621737374e+11 | I21: 1398183072 | J21: 1398.183072 | K21: 1.398183072
B22: 0.70254 | C22: 0.70945 | D22: 0.344 | E22: 1.020087209 | F22: 48800000000 | G22: 1.420081967e-11 | H22: 1.621737374e+11 | I22: 1400743555 | J22: 1400.743555 | K22: 1.400743555
B23: 0.70275 | C23: 0.70595 | D23: 0.1593 | E23: 1.020087884 | F23: 48800000000 | G23: 1.420081967e-11 | H23: 1.621737374e+11 | I23: 1400790173 | J23: 1400.790173 | K23: 1.400790173
B24: 0.70278 | C24: 0.70402 | D24: 0.062 | E24: 1.02 | F24: 48800000000 | G24: 1.420081967e-11 | H24: 1.621737374e+11 | I24: 1394721997 | J24: 1394.721997 | K24: 1.394721997
I25: Average | J25: =AVERAGE(J4:J24) -> 1437.350517
I26: Maximum | J26: =MAX(J4:J25) -> 1502.952766
I27: Minimum | J27: =MIN(J4:J26) -> 1394.721997
I28: Difference | J28: =(J26-J27) -> 108.2307693
I30: Dating | J30: Age | K30: Age
D31: Age | I31: Summary | J31: 87Rb/86Sr | K31: 207Pb/206Pb
A32: 206Pb/204Pb | B32: 207Pb/204Pb | C32: 207Pb/206Pb | D32: 207Pb/206Pb | I32: Average | J32: 1437.350517 | K32: 5135.004495
A33: 16.313 | B33: 15.302 | C33: =(B33/A33) -> 0.9380248881 | D33: =[1]!AgePb76($C$33) -> 5147.305889 | I33: Maximum | J33: 1502.952766 | K33: 5217.941471
A34: 15.905 | B34: 15.266 | C34: =(B34/A34) -> 0.9598239547 | D34: =[1]!AgePb76($C$34) -> 5179.68533 | I34: Minimum | J34: 1394.721997 | K34: 4931.286988
A35: 17.147 | B35: 15.469 | C35: 0.9021403161 | D35: =[1]!AgePb76($C$35) -> 5092.228238 | I35: Difference | J35: 108.2307693 | K35: 286.6544827
A36: 16.509 | B36: 15.392 | C36: 0.9323399358 | D36: =[1]!AgePb76($C$36) -> 5138.730646
A37: 15.788 | B37: 15.201 | C37: 0.9628198632 | D37: =[1]!AgePb76($C$37) -> 5184.074405
A38: 15.846 | B38: 15.256 | C38: 0.9627666288 | D38: =[1]!AgePb76($C$38) -> 5183.996541
A39: 15.873 | B39: 15.278 | C39: 0.9625149625 | D39: =[1]!AgePb76($C$39) -> 5183.628379
A40: 15.403 | B40: 15.115 | C40: 0.9813023437 | D40: =[1]!AgePb76($C$40) -> 5210.836129
A41: 15.403 | B41: 15.115 | C41: 0.9813023437 | D41: =[1]!AgePb76($C$41) -> 5210.836129
A42: 16.028 | B42: 15.336 | C42: 0.9568255553 | D42: =[1]!AgePb76($C$42) -> 5175.278067
A43: 16.408 | B43: 15.291 | C43: 0.931923452 | D43: =[1]!AgePb76($C$43) -> 5138.100242
A44: 15.762 | B44: 15.209 | C44: 0.9649156198 | D44: =[1]!AgePb76($C$44) -> 5187.136154
A45: 15.079 | B45: 14.872 | C45: 0.9862722992 | D45: =[1]!AgePb76($C$45) -> 5217.941471
A46: 15.389 | B46: 14.9 | C46: 0.9682240561 | D46: =[1]!AgePb76($C$46) -> 5191.95525
A47: 16.509 | B47: 15.373 | C47: 0.9311890484 | D47: =[1]!AgePb76($C$47) -> 5136.987896
A48: 17.505 | B48: 15.491 | C48: 0.884947158 | D48: =[1]!AgePb76($C$48) -> 5065.010583
A49: 17.001 | B49: 15.417 | C49: 0.9068290101 | D49: =[1]!AgePb76($C$49) -> 5099.555291
A50: 16.549 | B50: 15.385 | C50: 0.9296634238 | D50: =[1]!AgePb76($C$50) -> 5134.674173
A51: 17.012 | B51: 15.436 | C51: 0.9073595109 | D51: =[1]!AgePb76($C$51) -> 5100.381778
A52: 16.293 | B52: 15.376 | C52: 0.9437181612 | D52: =[1]!AgePb76($C$52) -> 5155.838706
A53: 17.976 | B53: 15.5 | C53: 0.8622607922 | D53: =[1]!AgePb76($C$53) -> 5028.225696
A54: 19.392 | B54: 15.618 | C54: 0.8053836634 | D54: =[1]!AgePb76($C$54) -> 4931.286988
A55: 18.201 | B55: 15.509 | C55: 0.8520960387 | D55: =[1]!AgePb76($C$55) -> 5011.40941
C56: Average | D56: =AVERAGE(D33:D55) -> 5135.004495
C57: Maximum | D57: =MAX(D33:D56) -> 5217.941471
C58: Minimum | D58: =MIN(D33:D57) -> 4931.286988
C59: Difference | D59: =(D57-D58) -> 286.6544827

Sheet Nd_Sm_15
A1: Rubidium | K1: Neodymium_006.pdf
A2: Strontium | B2: Initial | C2: Today | D2: Today | E2: The Ratio | F2: Half | G2: Decay | H2: 2.303/Delta | I2: Age | J2: Age | K2: Age
A3: Dating | B3: 87Sr/86Sr | C3: 87Sr/86Sr | D3: 87Rb/86Sr | E3: Plus One | F3: Life | G3: Constant | H3: Constant | I3: Years | J3: Million Years | K3: Billion Years
B4: 0.698989 | C4: 0.699032 | D4: 0.000649 | E4: =1+((C4-B4)/D4) -> 1.066255778 | F4: 48800000000 | G4: =(0.693/F4) -> 1.420081967e-11 | H4: =(2.303/G4) -> 1.621737374e+11 | I4: =(LOG(E4))*(H4) -> 4518386986 | J4: =(I4/1000000) -> 4518.386986 | K4: =(J4/1000) -> 4.518386986
B5: 0.699031 | C5: 0.699149 | D5: 0.00177 | E5: 1.066666667 | F5: 48800000000 | G5: 1.420081967e-11 | H5: 1.621737374e+11 | I5: 4545522860 | J5: 4545.52286 | K5: 4.54552286
B6: 0.698957 | C6: 0.699131 | D6: 0.0026 | E6: 1.066923077 | F6: 48800000000 | G6: 1.420081967e-11 | H6: 1.621737374e+11 | I6: 4562451393 | J6: 4562.451393 | K6: 4.562451393
B7: 0.698979 | C7: 0.699002 | D7: 0.00034 | E7: 1.067647059 | F7: 48800000000 | G7: 1.420081967e-11 | H7: 1.621737374e+11 | I7: 4610227650 | J7: 4610.22765 | K7: 4.61022765
B8: 0.698974 | C8: 0.698992 | D8: 0.00027 | E8: 1.066666667 | F8: 48800000000 | G8: 1.420081967e-11 | H8: 1.621737374e+11 | I8: 4545522860 | J8: 4545.52286 | K8: 4.54552286
B9: 0.698955 | C9: 0.698997 | D9: 0.00063 | E9: 1.066666667 | F9: 48800000000 | G9: 1.420081967e-11 | H9: 1.621737374e+11 | I9: 4545522860 | J9: 4545.52286 | K9: 4.54552286
B10: 0.698963 | C10: 0.698991 | D10: 0.00042 | E10: 1.066666667 | F10: 48800000000 | G10: 1.420081967e-11 | H10: 1.621737374e+11 | I10: 4545522860 | J10: 4545.52286 | K10: 4.54552286
B11: 0.698986 | C11: 0.699082 | D11: 0.00143 | E11: 1.067132867 | F11: 48800000000 | G11: 1.420081967e-11 | H11: 1.621737374e+11 | I11: 4576298984 | J11: 4576.298984 | K11: 4.576298984
I12: Average | J12: =AVERAGE(J4:J11) -> 4556.182057
I13: Maximum | J13: =MAX(J4:J12) -> 4610.22765
I14: Minimum | J14: =MIN(J4:J13) -> 4518.386986
I15: Difference | J15: =(J13-J14) -> 91.84066394
B18: Age | D18: Age
A19: 207Pb/206Pb | B19: 207Pb/206Pb | C19: 207Pb/206Pb | D19: 207Pb/206Pb | F19: Dating | G19: Age | H19: Age | I19: Age | J19: Age | K19: Age
A20: 0.84539 | B20: =[1]!AgePb76($A$20) -> 5000.198078 | C20: 0.85203 | D20: =[1]!AgePb76($C$20) -> 5011.299462 | F20: Summary | G20: 87Rb/86Sr | H20: 207Pb/206Pb | I20: 207Pb/206Pb | J20: 147Sm/144Nd | K20: 147Sm/144Nd
A21: 0.8464 | B21: =[1]!AgePb76($A$21) -> 5001.892652 | C21: 0.85306 | D21: =[1]!AgePb76($C$21) -> 5013.013279 | F21: Average | G21: 4556.182057 | H21: 4706.645469 | I21: 5007.011862 | J21: 4452.236634 | K21: 902.3728986
A22: 0.73493 | B22: =[1]!AgePb76($A$22) -> 4800.574208 | C22: 0.85147 | D22: =[1]!AgePb76($C$22) -> 5010.366755 | F22: Maximum | G22: 4610.22765 | H22: 5001.892652 | I22: 5110.158567 | J22: 4497.241631 | K22: 1427.607076
A23: 0.73581 | B23: =[1]!AgePb76($A$23) -> 4802.288012 | C23: 0.85249 | D23: =[1]!AgePb76($C$23) -> 5012.065128 | F23: Minimum | G23: 4518.386986 | H23: 4558.081485 | I23: 4959.891302 | J23: 4396.717987 | K23: 536.2413018
A24: 0.73562 | B24: =[1]!AgePb76($A$24) -> 4801.918171 | C24: 0.84838 | D24: =[1]!AgePb76($C$24) -> 5005.208465 | F24: Difference | G24: 91.84066394 | H24: 443.8111673 | I24: 150.2672644 | J24: 100.5236445 | K24: 891.3657739
A25: 0.83079 | B25: =[1]!AgePb76($A$25) -> 4975.459134 | C25: 0.8494 | D25: =[1]!AgePb76($C$25) -> 5006.913404
A26: 0.83179 | B26: =[1]!AgePb76($A$26) -> 4977.168267 | C26: 0.84883 | D26: =[1]!AgePb76($C$26) -> 5005.960912
A27: 0.65401 | B27: =[1]!AgePb76($A$27) -> 4632.835443 | C27: 0.84985 | D27: =[1]!AgePb76($C$27) -> 5007.664892
A28: 0.6548 | B28: =[1]!AgePb76($A$28) -> 4634.578344 | C28: 0.82174 | D28: =[1]!AgePb76($C$28) -> 4959.891302
A29: 0.6533 | B29: =[1]!AgePb76($A$29) -> 4631.267112 | C29: 0.82258 | D29: =[1]!AgePb76($C$29) -> 4961.343927
A30: 0.63494 | B30: =[1]!AgePb76($A$30) -> 4590.064442 | C30: 0.8336 | D30: =[1]!AgePb76($C$30) -> 4980.256253
A31: 0.6357 | B31: =[1]!AgePb76($A$31) -> 4591.795214 | C31: 0.91366 | D31: =[1]!AgePb76($C$31) -> 5110.158567
A32: 0.63528 | B32: =[1]!AgePb76($A$32) -> 4590.839009 | C32: Average | D32: =AVERAGE(D20:D31) -> 5007.011862
A33: 0.62689 | B33: =[1]!AgePb76($A$33) -> 4571.594296 | C33: Maximum | D33: =MAX(D20:D32) -> 5110.158567
A34: 0.62764 | B34: =[1]!AgePb76($A$34) -> 4573.325838 | C34: Minimum | D34: =MIN(D20:D33) -> 4959.891302
A35: 0.62749 | B35: =[1]!AgePb76($A$35) -> 4572.979707 | C35: Difference | D35: =(D33-D34) -> 150.2672644
A36: 0.62107 | B36: =[1]!AgePb76($A$36) -> 4558.081485
A37: 0.62182 | B37: =[1]!AgePb76($A$37) -> 4559.830438
A38: 0.62171 | B38: =[1]!AgePb76($A$38) -> 4559.574067
A39: Average | B39: =AVERAGE(B20:B38) -> 4706.645469
A40: Maximum | B40: =MAX(B20:B39) -> 5001.892652
A41: Minimum | B41: =MIN(B20:B40) -> 4558.081485
A42: Difference | B42: =(B40-B41) -> 443.8111673
A45: Neodymium | K45: Neodymium_006.pdf
A46: Samarium | B46: Initial | C46: Today | D46: Today | E46: The Ratio | F46: Half | G46: Decay | H46: 2.303/Delta | I46: Age | J46: Age | K46: Age
A47: Dating | B47: 143Nd/144Nd | C47: 143Nd/144Nd | D47: 147Sm/144Nd | E47: Plus One | F47: Life | G47: Constant | H47: Constant | I47: Years | J47: Million Years | K47: Billion Years
B48: 0.50682 | C48: 0.512664 | D48: 0.1979 | E48: =1+((C48-B48)/D48) -> 1.029530066 | F48: 106000000000 | G48: =(0.693/F48) -> 6.537735849e-12 | H48: =(2.303/G48) -> 3.522626263e+11 | I48: =(LOG(E48))*(H48) -> 4452259302 | J48: =(I48/1000000) -> 4452.259302 | K48: =(J48/1000) -> 4.452259302
B49: 0.50682 | C49: 0.510829 | D49: 0.1375 | E49: =1+((C49-B49)/D49) -> 1.029156364 | F49: 106000000000 | G49: 6.537735849e-12 | H49: =(2.303/G49) -> 3.522626263e+11 | I49: =(LOG(E49))*(H49) -> 4396717987 | J49: =(I49/1000000) -> 4396.717987 | K49: =(J49/1000) -> 4.396717987
B50: 0.50682 | C50: 0.517527 | D50: 0.3589 | E50: 1.029832823 | F50: 106000000000 | G50: 6.537735849e-12 | H50: 3.522626263e+11 | I50: 4497241631 | J50: 4497.241631 | K50: 4.497241631
B51: 0.50682 | C51: 0.513602 | D51: 0.2297 | E51: 1.029525468 | F51: 106000000000 | G51: 6.537735849e-12 | H51: 3.522626263e+11 | I51: 4451576095 | J51: 4451.576095 | K51: 4.451576095
B52: 0.50682 | C52: 0.513265 | D52: 0.2177 | E52: 1.029604961 | F52: 106000000000 | G52: 6.537735849e-12 | H52: 3.522626263e+11 | I52: 4463388156 | J52: 4463.388156 | K52: 4.463388156
I53: Average | J53: =AVERAGE(J48:J52) -> 4452.236634
I54: Maximum | J54: =MAX(J48:J53) -> 4497.241631
I55: Minimum | J55: =MIN(J48:J54) -> 4396.717987
I56: Difference | J56: =(J54-J55) -> 100.5236445
A59: Neodymium | K59: Neodymium_006.pdf
A60: Samarium | B60: Initial | C60: Today | D60: Today | E60: The Ratio | F60: Half | G60: Decay | H60: 2.303/Delta | I60: Age | J60: Age | K60: Age
A61: Dating | B61: 143Nd/144Nd | C61: 143Nd/144Nd | D61: 147Sm/144Nd | E61: Plus One | F61: Life | G61: Constant | H61: Constant | I61: Years | J61: Million Years | K61: Billion Years
B62: 0.50682 | C62: 0.512664 | D62: 1.141834 | E62: =1+((C62-B62)/D62) -> 1.005118082 | F62: 106000000000 | G62: =(0.693/F62) -> 6.537735849e-12 | H62: =(2.303/G62) -> 3.522626263e+11 | I62: =(LOG(E62))*(H62) -> 780996525.7 | J62: =(I62/1000000) -> 780.9965257 | K62: =(J62/1000) -> 0.7809965257
B63: 0.50682 | C63: 0.510829 | D63: 1.141735 | E63: =1+((C63-B63)/D63) -> 1.003511323 | F63: 106000000000 | G63: 6.537735849e-12 | H63: =(2.303/G63) -> 3.522626263e+11 | I63: =(LOG(E63))*(H63) -> 536241301.8 | J63: =(I63/1000000) -> 536.2413018 | K63: =(J63/1000) -> 0.5362413018
B64: 0.50682 | C64: 0.517527 | D64: 1.142042 | E64: 1.009375312 | F64: 106000000000 | G64: 6.537735849e-12 | H64: 3.522626263e+11 | I64: 1427607076 | J64: 1427.607076 | K64: 1.427607076
B65: 0.50682 | C65: 0.513602 | D65: 1.141874 | E65: 1.005939359 | F65: 106000000000 | G65: 6.537735849e-12 | H65: 3.522626263e+11 | I65: 905949408.7 | J65: 905.9494087 | K65: 0.9059494087
B66: 0.50682 | C66: 0.513265 | D66: 1.141859 | E66: 1.005644305 | F66: 106000000000 | G66: 6.537735849e-12 | H66: 3.522626263e+11 | I66: 861070181.1 | J66: 861.0701811 | K66: 0.8610701811
I67: Average | J67: =AVERAGE(J62:J66) -> 902.3728986
I68: Maximum | J68: =MAX(J62:J67) -> 1427.607076
I69: Minimum | J69: =MIN(J62:J68) -> 536.2413018
I70: Difference | J70: =(J68-J69) -> 891.3657739

Sheet Nd_Sm_16
A1: Osmium | G1: Neodymium_011.pdf
A2: Osmium | B2: Today | C2: The | D2: Step | E2: Age | F2: Age | G2: Age
A3: Dating | B3: 187Os/186Os | C3: Ratio | D3: Two | E3: Years | F3: Million Years | G3: Billion Years
B4: 19.05 | C4: =(1.04-B4) -> -18.01 | D4: =(C4/0.050768) -> -354.7510243 | E4: =(D4 * 1000000000) -> -3.547510243e+11 | F4: =(E4/1000000) -> -354751.0243 | G4: =(F4/1000) -> -354.7510243
B5: 19.1 | C5: =(1.04-B5) -> -18.06 | D5: =(C5/0.050768) -> -355.7358966 | E5: =(D5 * 1000000000) -> -3.557358966e+11 | F5: =(E5/1000000) -> -355735.8966 | G5: =(F5/1000) -> -355.7358966
B6: 19.41 | C6: -18.37 | D6: -361.8421053 | E6: -3.618421053e+11 | F6: -361842.1053 | G6: -361.8421053
B7: 9.42 | C7: -8.38 | D7: -165.0646076 | E7: -1.650646076e+11 | F7: -165064.6076 | G7: -165.0646076
B8: 7.38 | C8: -6.34 | D8: -124.8818153 | E8: -1.248818153e+11 | F8: -124881.8153 | G8: -124.8818153
E9: Average | F9: =AVERAGE(F4:F8) -> -272455.0898 | G9: =AVERAGE(G4:G8) -> -272.4550898
E10: Maximum | F10: =MAX(F4:F9) -> -124881.8153 | G10: =MAX(G4:G9) -> -124.8818153
E11: Minimum | F11: =MIN(F4:F10) -> -361842.1053 | G11: =MIN(G4:G10) -> -361.8421053
E12: Difference | F12: =(ABS(F11)-ABS(F10)) -> 236960.2899 | G12: =(G10+ABS(G11)) -> 236.9602899

Sheet Nd_Sm_17
A1: Neodymium_008.pdf | D1: Age
A2: 206Pb/204Pb | B2: 207Pb/204Pb | C2: 207Pb/206Pb | D2: 207Pb/206Pb
A3: 18.806 | B3: 15.653 | C3: =(B3/A3) -> 0.8323407423 | D3: =[1]!AgePb76($C$3) -> 4978.108627
A4: 18.834 | B4: 15.661 | C4: =(B4/A4) -> 0.8315280875 | D4: =[1]!AgePb76($C$4) -> 4976.720835
A5: 18.784 | B5: 15.654 | C5: 0.8333688245 | D5: =[1]!AgePb76($C$5) -> 4979.862249
A6: 18.645 | B6: 15.655 | C6: 0.839635291 | D6: =[1]!AgePb76($C$6) -> 4990.501626
A7: 18.775 | B7: 15.673 | C7: 0.8347802929 | D7: =[1]!AgePb76($C$7) -> 4982.266078
A8: 18.728 | B8: 15.649 | C8: 0.8355937633 | D8: =[1]!AgePb76($C$8) -> 4983.649514
A9: 18.81 | B9: 15.656 | C9: 0.8323232323 | D9: =[1]!AgePb76($C$9) -> 4978.07874
A10: 18.765 | B10: 15.646 | C10: 0.8337863043 | D10: =[1]!AgePb76($C$10) -> 4980.573696
A11: 18.781 | B11: 15.659 | C11: 0.83376817 | D11: =[1]!AgePb76($C$11) -> 4980.5428
A12: 18.903 | B12: 15.679 | C12: 0.8294450616 | D12: =[1]!AgePb76($C$12) -> 4973.157004
A13: 19.012 | B13: 15.668 | C13: 0.8241110877 | D13: =[1]!AgePb76($C$13) -> 4963.987609
A14: 18.884 | B14: 15.671 | C14: 0.8298559627 | D14: =[1]!AgePb76($C$14) -> 4973.860764
A15: 18.865 | B15: 15.663 | C15: 0.8302676915 | D15: =[1]!AgePb76($C$15) -> 4974.56557
A16: 18.896 | B16: 15.67 | C16: 0.8292760373 | D16: =[1]!AgePb76($C$16) -> 4972.867405
A17: 18.912 | B17: 15.672 | C17: 0.828680203 | D17: =[1]!AgePb76($C$17) -> 4971.846026
A18: 18.881 | B18: 15.689 | C18: 0.8309411578 | D18: =[1]!AgePb76($C$18) -> 4975.717623
A19: 19.091 | B19: 15.729 | C19: 0.8238960767 | D19: =[1]!AgePb76($C$19) -> 4963.616671
A20: 19.076 | B20: 15.709 | C20: 0.8234954917 | D20: =[1]!AgePb76($C$20) -> 4962.925306
A21: 18.932 | B21: 15.68 | C21: 0.82822734 | D21: =[1]!AgePb76($C$21) -> 4971.069206
A22: 18.931 | B22: 15.683 | C22: 0.82842956 | D22: =[1]!AgePb76($C$22) -> 4971.41614
A23: 18.948 | B23: 15.684 | C23: 0.8277390754 | D23: =[1]!AgePb76($C$23) -> 4970.231154
A24: 19.113 | B24: 15.705 | C24: 0.8216920421 | D24: =[1]!AgePb76($C$24) -> 4959.80832
A25: 19.573 | B25: 15.786 | C25: 0.8065191846 | D25: =[1]!AgePb76($C$25) -> 4933.292689
A26: 18.99 | B26: 15.709 | C26: 0.8272248552 | D26: =[1]!AgePb76($C$26) -> 4969.347983
A27: 18.95 | B27: 15.712 | C27: 0.8291292876 | D27: =[1]!AgePb76($C$27) -> 4972.615919
A28: 19.16 | B28: 15.731 | C28: 0.8210334029 | D28: =[1]!AgePb76($C$28) -> 4958.66815
A29: 19.237 | B29: 15.727 | C29: 0.8175391173 | D29: =[1]!AgePb76($C$29) -> 4952.60288
A30: 19.229 | B30: 15.722 | C30: 0.817619221 | D30: =[1]!AgePb76($C$30) -> 4952.74223
C31: Average | D31: =AVERAGE(D3:D30) -> 4970.522958
C32: Maximum | D32: =MAX(D3:D31) -> 4990.501626
C33: Minimum | D33: =MIN(D3:D32) -> 4933.292689
C34: Difference | D34: =(D32-ABS(D33)) -> 57.2089371

Sheet Nd_Sm_18
A1: Neodymium_015.pdf | B1: Table 1 | D1: Age | F1: Rubidium | G1: Table 1 | P1: Neodymium_015.pdf | V1: 6471
A2: 206Pb/204Pb | B2: 207Pb/204Pb | C2: 207Pb/206Pb | D2: 207Pb/206Pb | F2: Strontium | G2: Initial | H2: Today | I2: Today | J2: The Ratio | K2: Half | L2: Decay | M2: 2.303/Delta | N2: Age | O2: Age | P2: Age | V2: 6466
A3: 18.166 | B3: 15.578 | C3: =(B3/A3) -> 0.8575360564 | D3: =[1]!AgePb76($C$3) -> 5020.435552 | F3: Dating | G3: 87Sr/86Sr | H3: 87Sr/86Sr | I3: 87Rb/86Sr | J3: Plus One | K3: Life | L3: Constant | M3: Constant | N3: Years | O3: Million Years | P3: Billion Years | V3: 5097
A4: 18.13 | B4: 15.418 | C4: =(B4/A4) -> 0.850413679 | D4: =[1]!AgePb76($C$4) -> 5008.605625 | G4: 0.70593 | H4: 0.707786 | I4: 0.5193 | J4: =1+((H4-G4)/I4) -> 1.003574042 | K4: 48800000000 | L4: =(0.693/K4) -> 1.420081967e-11 | M4: =(2.303/L4) -> 1.621737374e+11 | N4: =(LOG(J4))*(M4) -> 251275152.9 | O4: =(N4/1000000) -> 251.2751529 | P4: =(O4/1000) -> 0.2512751529 | V4: 5085
A5: 18.409 | B5: 15.473 | C5: 0.8405127927 | D5: =[1]!AgePb76($C$5) -> 4991.984735 | G5: 0.70593 | H5: 0.706845 | I5: 0.0861 | J5: 1.010627178 | K5: 48800000000 | L5: 1.420081967e-11 | M5: 1.621737374e+11 | N5: 744535260.9 | O5: 744.5352609 | P5: 0.7445352609 | V5: 5081
A6: 18.141 | B6: 15.652 | C6: 0.8627969792 | D6: =[1]!AgePb76($C$6) -> 5029.106896 | G6: 0.70593 | H6: 0.707049 | I6: 0.337 | J6: 1.003320475 | K6: 48800000000 | L6: 1.420081967e-11 | M6: 1.621737374e+11 | N6: 233477474 | O6: 233.477474 | P6: 0.233477474 | V6: 5075
A7: 18.422 | B7: 15.654 | C7: 0.8497448703 | D7: =[1]!AgePb76($C$7) -> 5007.489366 | G7: 0.70593 | H7: 0.707655 | I7: 0.4233 | J7: 1.004075124 | K7: 48800000000 | L7: 1.420081967e-11 | M7: 1.621737374e+11 | N7: 286432480.9 | O7: 286.4324809 | P7: 0.2864324809 | V7: 5070
A8: 18.41 | B8: 15.768 | C8: 0.8564910375 | D8: =[1]!AgePb76($C$8) -> 5018.706371 | G8: 0.70593 | H8: 0.707054 | I8: 0.3271 | J8: 1.003436258 | K8: 48800000000 | L8: 1.420081967e-11 | M8: 1.621737374e+11 | N8: 241604765.4 | O8: 241.6047654 | P8: 0.2416047654 | V8: 5068
A9: 18.349 | B9: 15.639 | C9: 0.8523080277 | D9: =[1]!AgePb76($C$9) -> 5011.762289 | G9: 0.70593 | H9: 0.714761 | I9: 2.185 | J9: 1.004041648 | K9: 48800000000 | L9: 1.420081967e-11 | M9: 1.621737374e+11 | N9: 284084227.3 | O9: 284.0842273 | P9: 0.2840842273 | V9: 5067
A10: 18.11 | B10: 15.419 | C10: 0.8514080618 | D10: =[1]!AgePb76($C$10) -> 5010.263554 | G10: 0.70593 | H10: 0.711571 | I10: 1.309 | J10: 1.004309396 | K10: 48800000000 | L10: 1.420081967e-11 | M10: 1.621737374e+11 | N10: 302863678 | O10: 302.863678 | P10: 0.302863678 | V10: 5066
A11: 18.2 | B11: 15.548 | C11: 0.8542857143 | D11: =[1]!AgePb76($C$11) -> 5015.049884 | G11: 0.70593 | H11: 0.709468 | I11: 0.9184 | J11: 1.003852352 | K11: 48800000000 | L11: 1.420081967e-11 | M11: 1.621737374e+11 | N11: 270804328.8 | O11: 270.8043288 | P11: 0.2708043288 | V11: 5066
A12: 18.454 | B12: 15.649 | C12: 0.8480004335 | D12: =[1]!AgePb76($C$12) -> 5004.57346 | G12: 0.70593 | H12: 0.708159 | I12: 0.0366 | J12: 1.060901639 | K12: 48800000000 | L12: 1.420081967e-11 | M12: 1.621737374e+11 | N12: 4163830249 | O12: 4163.830249 | P12: 4.163830249 | V12: 5065
A13: 18.274 | B13: 15.545 | C13: 0.8506621429 | D13: =[1]!AgePb76($C$13) -> 5009.020081 | G13: 0.70593 | H13: 0.708632 | I13: 0.5788 | J13: 1.004668279 | K13: 48800000000 | L13: 1.420081967e-11 | M13: 1.621737374e+11 | N13: 328027248.6 | O13: 328.0272486 | P13: 0.3280272486 | V13: 5063
A14: 18.241 | B14: 15.635 | C14: 0.8571350255 | D14: =[1]!AgePb76($C$14) -> 5019.772236 | G14: 0.70593 | H14: 0.707893 | I14: 0.5 | J14: 1.003926 | K14: 48800000000 | L14: 1.420081967e-11 | M14: 1.621737374e+11 | N14: 275971353.2 | O14: 275.9713532 | P14: 0.2759713532 | V14: 5062
A15: 18.564 | B15: 15.606 | C15: 0.8406593407 | D15: =[1]!AgePb76($C$15) -> 4992.232263 | G15: 0.70593 | H15: 0.709736 | I15: 0.8606 | J15: 1.004422496 | K15: 48800000000 | L15: 1.420081967e-11 | M15: 1.621737374e+11 | N15: 310794776.5 | O15: 310.7947765 | P15: 0.3107947765 | V15: 5062
A16: 18.675 | B16: 15.585 | C16: 0.8345381526 | D16: =[1]!AgePb76($C$16) -> 4981.854003 | G16: 0.70593 | H16: 0.709368 | I16: 0.0082 | J16: 1.419268293 | K16: 48800000000 | L16: 1.420081967e-11 | M16: 1.621737374e+11 | N16: 2.466086836e+10 | O16: 24660.86836 | P16: 24.66086836 | V16: 5061
A17: 18.347 | B17: 15.661 | C17: 0.8536000436 | D17: =[1]!AgePb76($C$17) -> 5013.91098 | G17: 0.70593 | H17: 0.712159 | I17: 1.607 | J17: 1.003876167 | K17: 48800000000 | L17: 1.420081967e-11 | M17: 1.621737374e+11 | N17: 272475180 | O17: 272.47518 | P17: 0.27247518 | V17: 5061
A18: 18.31 | B18: 15.391 | C18: 0.8405789186 | D18: =[1]!AgePb76($C$18) -> 4992.096431 | G18: 0.70593 | H18: 0.70743 | I18: 0.3809 | J18: 1.003938041 | K18: 48800000000 | L18: 1.420081967e-11 | M18: 1.621737374e+11 | N18: 276816127 | O18: 276.816127 | P18: 0.276816127 | V18: 5061
A19: 18.125 | B19: 15.516 | C19: 0.8560551724 | D19: =[1]!AgePb76($C$19) -> 5017.984488 | G19: 0.70593 | H19: 0.706426 | I19: 0.1922 | J19: 1.002580645 | K19: 48800000000 | L19: 1.420081967e-11 | M19: 1.621737374e+11 | N19: 181523706.8 | O19: 181.5237068 | P19: 0.1815237068 | V19: 5060
A20: 18.325 | B20: 15.667 | C20: 0.854952251 | D20: =[1]!AgePb76($C$20) -> 5016.156076 | N20: Average | O20: =AVERAGE(O13:O19) -> 3758.068108 | V20: 5060
C21: Average | D21: =AVERAGE(D3:D20) -> 5008.944683 | G21: Table 1 | H21: 207Pb/206Pb | I21: 87Rb/86Sr | N21: Maximum | O21: =MAX(O13:O20) -> 24660.86836 | V21: 5060
C22: Maximum | D22: =MAX(D3:D21) -> 5029.106896 | G22: Dating Summary | H22: Age | I22: Age | N22: Minimum | O22: =MIN(O13:O21) -> 181.5237068 | V22: 5060
C23: Minimum | D23: =MIN(D3:D22) -> 4981.854003 | G23: Average | H23: 5008.944683 | I23: 3758.068108 | N23: Difference | O23: =(O21-O22) -> 24479.34466 | V23: 5060
C24: Difference | D24: =(D22-ABS(D23)) -> 47.25289289 | G24: Maximum | H24: 5029.106896 | I24: 24660.86836 | V24: 5060
G25: Minimum | H25: 4981.854003 | I25: 181.5237068 | V25: 5060
G26: Difference | H26: 47.25289289 | I26: 24479.34466 | V26: 5060
V27: 5060
A28: Neodymium_015.pdf | V28: 5059
A29: Table 2 | F29: Rubidium | G29: Table 2 | P29: Neodymium_015.pdf | V29: 5059
A30: 206Pb/204Pb | B30: 207Pb/204Pb | C30: 207Pb/206Pb | D30: Age | F30: Strontium | G30: Initial | H30: Today | I30: Today | J30: The Ratio | K30: Half | L30: Decay | M30: 2.303/Delta | N30: Age | O30: Age | P30: Age | V30: 5059
A31: 17.53 | B31: 15.517 | C31: =(B31/A31) -> 0.8851682829 | D31: =[1]!AgePb76($C$31) -> 5065.364184 | F31: Dating | G31: 87Sr/86Sr | H31: 87Sr/86Sr | I31: 87Rb/86Sr | J31: Plus One | K31: Life | L31: Constant | M31: Constant | N31: Years | O31: Million Years | P31: Billion Years | V31: 5059
A32: 17.476 | B32: 15.476 | C32: 0.8855573358 | D32: =[1]!AgePb76($C$32) -> 5065.986091 | G32: 0.70593 | H32: 0.726822 | I32: 2.345 | J32: =1+((H32-G32)/I32) -> 1.008909168 | K32: 48800000000 | L32: =(0.693/K32) -> 1.420081967e-11 | M32: =(2.303/L32) -> 1.621737374e+11 | N32: =(LOG(J32))*(M32) -> 624704376.9 | O32: =(N32/1000000) -> 624.7043769 | P32: =(O32/1000) -> 0.6247043769 | V32: 5058
A33: 17.434 | B33: 15.488 | C33: 0.8883790295 | D33: =[1]!AgePb76($C$33) -> 5070.487956 | G33: 0.70593 | H33: 0.728085 | I33: 2.226 | J33: 1.00995283 | K33: 48800000000 | L33: 1.420081967e-11 | M33: 1.621737374e+11 | N33: 697523928.9 | O33: 697.5239289 | P33: 0.6975239289 | V33: 5058
A34: 17.349 | B34: 15.466 | C34: 0.8914634849 | D34: =[1]!AgePb76($C$34) -> 5075.391727 | G34: 0.70593 | H34: 0.72595 | I34: 2.069 | J34: 1.009676172 | K34: 48800000000 | L34: 1.420081967e-11 | M34: 1.621737374e+11 | N34: 678227956.7 | O34: 678.2279567 | P34: 0.6782279567 | V34: 5058
A35: 17.997 | B35: 15.623 | C35: 0.868089126 | D35: =[1]!AgePb76($C$35) -> 5037.773259 | G35: 0.70593 | H35: 0.723182 | I35: 1.722 | J35: 1.010018583 | K35: 48800000000 | L35: 1.420081967e-11 | M35: 1.621737374e+11 | N35: 702109191.6 | O35: 702.1091916 | P35: 0.7021091916 | V35: 5058
A36: 18.235 | B36: 15.652 | C36: 0.8583493282 | D36: =[1]!AgePb76($C$36) -> 5021.779717 | G36: 0.70593 | H36: 0.725125 | I36: 2.385 | J36: 1.008048218 | K36: 48800000000 | L36: 1.420081967e-11 | M36: 1.621737374e+11 | N36: 564576443.8 | O36: 564.5764438 | P36: 0.5645764438 | V36: 5058
A37: 17.083 | B37: 15.467 | C37: 0.9054030323 | D37: =[1]!AgePb76($C$37) -> 5097.331163 | G37: 0.70593 | H37: 0.723253 | I37: 1.831 | J37: 1.00946095 | K37: 48800000000 | L37: 1.420081967e-11 | M37: 1.621737374e+11 | N37: 663213306.9 | O37: 663.2133069 | P37: 0.6632133069 | V37: 5057
A38: 18.292 | B38: 15.633 | C38: 0.8546359064 | D38: =[1]!AgePb76($C$38) -> 5015.631181 | G38: 0.70593 | H38: 0.720568 | I38: 1.63 | J38: 1.008980368 | K38: 48800000000 | L38: 1.420081967e-11 | M38: 1.621737374e+11 | N38: 629674593.7 | O38: 629.6745937 | P38: 0.6296745937 | V38: 5057
A39: 18.202 | B39: 15.629 | C39: 0.8586419075 | D39: =[1]!AgePb76($C$39) -> 5022.262957 | G39: 0.70593 | H39: 0.722467 | I39: 1.9 | J39: 1.008703684 | K39: 48800000000 | L39: 1.420081967e-11 | M39: 1.621737374e+11 | N39: 610358222.5 | O39: 610.3582225 | P39: 0.6103582225 | V39: 5057
A40: 18.218 | B40: 15.636 | C40: 0.8582720386 | D40: =[1]!AgePb76($C$40) -> 5021.652032 | N40: Average | O40: =AVERAGE(O32:O39) -> 646.2985026 | V40: 5057
A41: 18.376 | B41: 15.632 | C41: 0.8506747932 | D41: =[1]!AgePb76($C$41) -> 5009.041179 | N41: Maximum | O41: =MAX(O32:O40) -> 702.1091916 | V41: 5057
A42: 17.953 | B42: 15.636 | C42: 0.8709407898 | D42: =[1]!AgePb76($C$42) -> 5042.419893 | F42: Table 2 | G42: 207Pb/206Pb | H42: 87Rb/86Sr | N42: Minimum | O42: =MIN(O32:O41) -> 564.5764438 | V42: 5056
A43: 18.587 | B43: 15.551 | C43: 0.8366600312 | D43: =[1]!AgePb76($C$43) -> 4985.460707 | F43: Dating Summary | G43: Age | H43: Age | N43: Difference | O43: =(O41-O42) -> 137.5327478 | V43: 5056
A44: 18.446 | B44: 15.547 | C44: 0.8428385558 | D44: =[1]!AgePb76($C$44) -> 4995.907677 | F44: Average | G44: 4995.263126 | H44: 646.2985026 | V44: 5056
A45: 17.658 | B45: 15.498 | C45: 0.877675841 | D45: =[1]!AgePb76($C$45) -> 5053.33051 | F45: Maximum | G45: 5097.331163 | H45: 702.1091916 | V45: 5056
A46: 18.115 | B46: 15.608 | C46: 0.8616064035 | D46: =[1]!AgePb76($C$46) -> 5027.149447 | F46: Minimum | G46: 4845.394163 | H46: 564.5764438 | V46: 5056
A47: 18.055 | B47: 15.592 | C47: 0.8635834949 | D47: =[1]!AgePb76($C$47) -> 5030.39845 | F47: Difference | G47: 251.9370003 | H47: 137.5327478 | V47: 5054
A48: 19.309 | B48: 15.788 | C48: 0.8176498006 | D48: =[1]!AgePb76($C$48) -> 4952.795423 | V48: 5054
A49: 19.492 | B49: 15.809 | C49: 0.8110506875 | D49: =[1]!AgePb76($C$49) -> 4941.266996 | V49: 5054
A50: 20.11 | B50: 15.776 | C50: 0.7844853307 | D50: =[1]!AgePb76($C$50) -> 4893.826715 | V50: 5054
A51: 20.264 | B51: 15.791 | C51: 0.7792637189 | D51: =[1]!AgePb76($C$51) -> 4884.301017 | V51: 5053
A52: 18.371 | B52: 15.733 | C52: 0.8564041152 | D52: =[1]!AgePb76($C$52) -> 5018.562441 | V52: 5053
A53: 20.949 | B53: 15.886 | C53: 0.7583178195 | D53: =[1]!AgePb76($C$53) -> 4845.394163 | V53: 5053
A54: 19.848 | B54: 15.754 | C54: 0.793732366 | D54: =[1]!AgePb76($C$54) -> 4910.531456 | V54: 5052
A55: 19.649 | B55: 15.803 | C55: 0.8042648481 | D55: =[1]!AgePb76($C$55) -> 4929.307851 | V55: 5051
A56: 20.03 | B56: 15.833 | C56: 0.7904643035 | D56: =[1]!AgePb76($C$56) -> 4904.651493 | V56: 5051
A57: 19.218 | B57: 15.728 | C57: 0.8183994172 | D57: =[1]!AgePb76($C$57) -> 4954.098715 | V57: 5050
C58: Average | D58: =AVERAGE(D31:D57) -> 4995.263126 | V58: 5050
C59: Maximum | D59: =MAX(D31:D58) -> 5097.331163 | V59: 5050
C60: Minimum | D60: =MIN(D31:D59) -> 4845.394163 | V60: 5050
C61: Difference | D61: =(D59-D60) -> 251.9370003 | V61: 5049
V62: 5049
F63: 207Pb/206Pb | G63: TABLE 3 | H63: TABLE 4 | I63: TABLE 5 | J63: TABLE 6 | V63: 5049
A64: TABLE 3 | F64: Dating Summary | G64: Age | H64: Age | I64: Age | J64: Age | V64: 5046
A65: 206Pb/204Pb | B65: 207Pb/204Pb | C65: 207Pb/206Pb | D65: Age | F65: Average | G65: 4150.663093 | H65: 5060.216228 | I65: 5027.376382 | J65: 5079.349079 | V65: 5046
A66: 19.699 | B66: 15.75 | C66: =(B66/A66) -> 0.7995329712 | D66: =[1]!AgePb76($C$66) -> 4920.904841 | F66: Maximum | G66: 5018.492281 | H66: 5062.567823 | I66: 5065.959666 | J66: 6471.262123 | V66: 5045
A67: 19.014 | B67: 15.769 | C67: 0.8293362785 | D67: =[1]!AgePb76($C$67) -> 4972.970627 | F67: Minimum | G67: 1776.149738 | H67: 5053.149693 | I67: 4987.015875 | J67: 4977.879559 | V67: 5045
A68: 19.137 | B68: 15.779 | C68: 0.8245284005 | D68: =[1]!AgePb76($C$68) -> 4964.707264 | F68: Difference | G68: 3242.342543 | H68: 9.418130073 | I68: 78.9437915 | J68: 1493.382564 | V68: 5045
A69: 18.966 | B69: 15.765 | C69: 0.8312242961 | D69: =[1]!AgePb76($C$69) -> 4976.201673 | V69: 5045
A70: 19.186 | B70: 15.786 | C70: 0.8227874492 | D70: =[1]!AgePb76($C$70) -> 4961.70243 | V70: 5043
A71: 18.289 | B71: 15.662 | C71: 0.8563617475 | D71: =[1]!AgePb76($C$71) -> 5018.492281 | V71: 5043
A72: 34.622 | B72: 16.517 | C72: 0.477066605 | D72: =[1]!AgePb76($C$72) -> 4171.863771 | V72: 5043
A73: 285.226 | B73: 30.977 | C73: 0.1086051061 | D73: =[1]!AgePb76($C$73) -> 1776.149738 | V73: 5043
A74: 42.951 | B74: 16.997 | C74: 0.3957300179 | D74: =[1]!AgePb76($C$74) -> 3892.933702 | V74: 5043
A75: 38.097 | B75: 16.87 | C75: 0.4428170197 | D75: =[1]!AgePb76($C$75) -> 4061.256499 | V75: 5043
A76: 44.687 | B76: 17.284 | C76: 0.3867791528 | D76: =[1]!AgePb76($C$76) -> 3858.462346 | V76: 5042
A77: 50.498 | B77: 17.422 | C77: 0.3450037625 | D77: =[1]!AgePb76($C$77) -> 3685.07765 | V77: 5041
A78: 23.485 | B78: 15.996 | C78: 0.6811156057 | D78: =[1]!AgePb76($C$78) -> 4691.383429 | V78: 5040
A79: 139.066 | B79: 22.879 | C79: 0.1645190054 | D79: =[1]!AgePb76($C$79) -> 2502.641885 | V79: 5040
A80: 53.989 | B80: 17.851 | C80: 0.330641427 | D80: =[1]!AgePb76($C$80) -> 3620.057533 | V80: 5039
A81: 76.932 | B81: 19.178 | C81: 0.2492850829 | D81: =[1]!AgePb76($C$81) -> 3180.231653 | V81: 5039
A82: 27.062 | B82: 16.463 | C82: 0.6083438031 | D82: =[1]!AgePb76($C$82) -> 4528.054122 | V82: 5038
A83: 19.985 | B83: 16.068 | C83: 0.8040030023 | D83: =[1]!AgePb76($C$83) -> 4928.844234 | V83: 5038
C84: Average | D84: =AVERAGE(D66:D83) -> 4150.663093 | V84: 5038
C85: Maximum | D85: =MAX(D66:D84) -> 5018.492281 | V85: 5038
C86: Minimum | D86: =MIN(D66:D85) -> 1776.149738 | V86: 5038
C87: Difference | D87: =(D85-D86) -> 3242.342543 | V87: 5038
V88: 5037
V89: 5037
A90: TABLE 4 | V90: 5034
A91: 206Pb/204Pb | B91: 207Pb/204Pb | C91: 207Pb/206Pb | D91: Age | V91: 5032
A92: 17.459 | B92: 15.418 | C92: =(B92/A92) -> 0.8830975428 | D92: =[1]!AgePb76($C$92) -> 5062.049188 | V92: 5032
A93: 17.601 | B93: 15.446 | C93: =(B93/A93) -> 0.8775637748 | D93: =[1]!AgePb76($C$93) -> 5053.149693 | V93: 5031
A94: 17.424 | B94: 15.376 | C94: 0.8824609734 | D94: =[1]!AgePb76($C$94) -> 5061.028463 | V94: 5031
A95: 17.448 | B95: 15.384 | C95: 0.8817056396 | D95: =[1]!AgePb76($C$95) -> 5059.816287 | V95: 5031
A96: 17.514 | B96: 15.438 | C96: 0.8814662556 | D96: =[1]!AgePb76($C$96) -> 5059.431889 | V96: 5031
A97: 17.488 | B97: 15.426 | C97: 0.8820905764 | D97: =[1]!AgePb76($C$97) -> 5060.434179 | V97: 5030
A98: 17.449 | B98: 15.388 | C98: 0.8818843487 | D98: =[1]!AgePb76($C$98) -> 5060.103183 | V98: 5029
A99: 17.456 | B99: 15.421 | C99: 0.8834211732 | D99: =[1]!AgePb76($C$99) -> 5062.567823 | V99: 5029
A100: 17.448 | B100: 15.399 | C100: 0.882565337 | D100: =[1]!AgePb76($C$100) -> 5061.195861 | V100: 5027
A101: 17.475 | B101: 15.407 | C101: 0.8816595136 | D101: =[1]!AgePb76($C$101) -> 5059.742228 | V101: 5027
A102: 17.431 | B102: 15.378 | C102: 0.8822213298 | D102: =[1]!AgePb76($C$102) -> 5060.643997 | V102: 5026
A103: 17.449 | B103: 15.39 | C103: 0.8819989684 | D103: =[1]!AgePb76($C$103) -> 5060.287158 | V103: 5025
A104: 17.489 | B104: 15.448 | C104: 0.8832980731 | D104: =[1]!AgePb76($C$104) -> 5062.370572 | V104: 5025
A105: 17.467 | B105: 15.405 | C105: 0.8819488178 | D105: =[1]!AgePb76($C$105) -> 5060.206665 | V105: 5025
C106: Average | D106: =AVERAGE(D92:D105) -> 5060.216228 | V106: 5024
C107: Maximum | D107: =MAX(D92:D106) -> 5062.567823 | V107: 5023
C108: Minimum | D108: =MIN(D92:D107) -> 5053.149693 | V108: 5022
C109: Difference | D109: =(D107-D108) -> 9.418130073 | V109: 5022
V110: 5022
V111: 5022
A112: TABLE 5 | V112: 5022
A113: 206Pb/204Pb | B113: 207Pb/204Pb | C113: 207Pb/206Pb | D113: Age | V113: 5022
A114: 18.05 | B114: 15.573 | C114: =(B114/A114) -> 0.8627700831 | D114: =[1]!AgePb76($C$114) -> 5029.062708 | V114: 5021
A115: 18.201 | B115: 15.654 | C115: =(B115/A115) -> 0.8600626339 | D115: =[1]!AgePb76($C$115) -> 5024.607025 | V115: 5021
A116: 17.977 | B116: 15.529 | C116: 0.8638259999 | D116: =[1]!AgePb76($C$116) -> 5030.796421 | V116: 5020
A117: 18.656 | B117: 15.661 | C117: 0.8394618353 | D117: =[1]!AgePb76($C$117) -> 4990.208265 | V117: 5020
A118: 17.935 | B118: 15.557 | C118: 0.867410092 | D118: =[1]!AgePb76($C$118) -> 5036.664421 | V118: 5020
A119: 18.735 | B119: 15.692 | C119: 0.837576728 | D119: =[1]!AgePb76($C$119) -> 4987.015875 | V119: 5019
A120: 17.974 | B120: 15.469 | C120: 0.860632024 | D120: =[1]!AgePb76($C$120) -> 5025.545313 | V120: 5019
A121: 18.253 | B121: 15.672 | C121: 0.8585985865 | D121: =[1]!AgePb76($C$121) -> 5022.191417 | V121: 5019
A122: 17.796 | B122: 15.506 | C122: 0.8713193976 | D122: =[1]!AgePb76($C$122) -> 5043.0356 | V122: 5018
A123: 17.903 | B123: 15.547 | C123: 0.8684019438 | D123: =[1]!AgePb76($C$123) -> 5038.283769 | V123: 5018
A124: 18.167 | B124: 15.569 | C124: 0.8569934497 | D124: =[1]!AgePb76($C$124) -> 5019.537987 | V124: 5018
A125: 17.591 | B125: 15.486 | C125: 0.8803365357 | D125: =[1]!AgePb76($C$125) -> 5057.616311 | V125: 5016
A126: 17.901 | B126: 15.593 | C126: 0.8710686554 | D126: =[1]!AgePb76($C$126) -> 5042.627865 | V126: 5016
A127: 17.488 | B127: 15.388 | C127: 0.8799176578 | D127: =[1]!AgePb76($C$127) -> 5056.942502 | V127: 5015
A128: 17.497 | B128: 15.407 | C128: 0.8805509516 | D128: =[1]!AgePb76($C$128) -> 5057.961089 | V128: 5014
A129: 17.911 | B129: 15.511 | C129: 0.8660041315 | D129: =[1]!AgePb76($C$129) -> 5034.365607 | V129: 5013
A130: 18.403 | B130: 15.596 | C130: 0.8474705211 | D130: =[1]!AgePb76($C$130) -> 5003.686425 | V130: 5012
A131: 18.626 | B131: 15.695 | C131: 0.8426393214 | D131: =[1]!AgePb76($C$131) -> 4995.572073 | V131: 5010
A132: 18.31 | B132: 15.616 | C132: 0.8528672856 | D132: =[1]!AgePb76($C$132) -> 5012.692789 | V132: 5010
A133: 18.525 | B133: 15.678 | C133: 0.8463157895 | D133: =[1]!AgePb76($C$133) -> 5001.751446 | V133: 5010
A134: 17.972 | B134: 15.488 | C134: 0.8617849989 | D134: =[1]!AgePb76($C$134) -> 5027.443262 | V134: 5009
A135: 18.001 | B135: 15.55 | C135: 0.8638408977 | D135: =[1]!AgePb76($C$135) -> 5030.820866 | V135: 5009
A136: 18.083 | B136: 15.531 | C136: 0.8588729746 | D136: =[1]!AgePb76($C$136) -> 5022.644477 | V136: 5009
A137: 17.622 | B137: 15.605 | C137: 0.8855408013 | D137: =[1]!AgePb76($C$137) -> 5065.959666 | V137: 5007
C138: Average | D138: =AVERAGE(D114:D137) -> 5027.376382 | V138: 5005
C139: Maximum | D139: =MAX(D114:D138) -> 5065.959666 | V139: 5005
C140: Minimum | D140: =MIN(D114:D139) -> 4987.015875 | V140: 5004
C141: Difference | D141: =(D139-D140) -> 78.9437915 | V141: 5002
V142: 5001
V143: 4996
A144: TABLE 6 | V144: 4996
A145: 206Pb/204Pb | B145: 207Pb/204Pb | C145: 207Pb/206Pb | D145: Age | V145: 4992
A146: 17.551 | B146: 15.437 | C146: =(B146/A146) -> 0.8795510227 | D146: =[1]!AgePb76($C$146) -> 5056.352451 | V146: 4992
A147: 17.649 | B147: 15.477 | C147: =(B147/A147) -> 0.8769335373 | D147: =[1]!AgePb76($C$147) -> 5052.13236 | V147: 4992
A148: 18.01 | B148: 15.64 | C148: 0.8684064409 | D148: =[1]!AgePb76($C$148) -> 5038.291107 | V148: 4990
A149: 17.603 | B149: 15.456 | C149: 0.8780321536 | D149: =[1]!AgePb76($C$149) -> 5053.905251 | V149: 4987
A150: 17.848 | B150: 15.577 | C150: 0.8727588525 | D150: =[1]!AgePb76($C$150) -> 5045.373909 | V150: 4985
A151: 17.837 | B151: 15.546 | C151: 0.8715591187 | D151: =[1]!AgePb76($C$151) -> 5043.425297 | V151: 4982
A152: 18.184 | B152: 15.611 | C152: 0.8585019798 | D152: =[1]!AgePb76($C$152) -> 5022.031866 | V152: 4981
A153: 17.465 | B153: 15.405 | C153: 0.8820498139 | D153: =[1]!AgePb76($C$153) -> 5060.368762 | V153: 4978
A154: 17.478 | B154: 15.417 | C154: 0.8820803296 | D154: =[1]!AgePb76($C$154) -> 5060.417735 | V154: 4976
A155: 15.518 | B155: 38.081 | C155: 2.453988916 | D155: =[1]!AgePb76($C$155) -> 6471.262123 | V155: 4973
A156: 18.769 | B156: 15.652 | C156: 0.833928286 | D156: =[1]!AgePb76($C$156) -> 4980.815568 | V156: 4965
A157: 17.78 | B157: 15.491 | C157: 0.8712598425 | D157: =[1]!AgePb76($C$157) -> 5042.938768 | V157: 4962
A158: 18.214 | B158: 15.593 | C158: 0.8560997035 | D158: =[1]!AgePb76($C$158) -> 5018.058259 | V158: 4954
A159: 18.098 | B159: 15.642 | C159: 0.8642943972 | D159: =[1]!AgePb76($C$159) -> 5031.564764 | V159: 4953
A160: 18.173 | B160: 15.629 | C160: 0.8600121059 | D160: =[1]!AgePb76($C$160) -> 5024.523729 | V160: 4941
A161: 17.86 | B161: 15.532 | C161: 0.8696528555 | D161: =[1]!AgePb76($C$161) -> 5040.323276 | V161: 4929
A162: 18.16 | B162: 15.626 | C162: 0.8604625551 | D162: =[1]!AgePb76($C$162) -> 5025.266117 | V162: 4929
A163: 17.906 | B163: 15.626 | C163: 0.8726683793 | D163: =[1]!AgePb76($C$163) -> 5045.227061 | V163: 4921
A164: 17.504 | B164: 15.408 | C164: 0.8802559415 | D164: =[1]!AgePb76($C$164) -> 5057.486693 | V164: 4911
A165: 15.552 | B165: 38.015 | C165: 2.444380144 | D165: =[1]!AgePb76($C$165) -> 6465.972031 | V165: 4905
A166: 18.05 | B166: 15.482 | C166: 0.8577285319 | D166: =[1]!AgePb76($C$166) -> 5020.753795 | V166: 4894
A167: 18.417 | B167: 15.672 | C167: 0.8509529239 | D167: =[1]!AgePb76($C$167) -> 5009.50496 | V167: 4884
A168: 17.968 | B168: 15.609 | C168: 0.8687110419 | D168: =[1]!AgePb76($C$168) -> 5038.788018 | V168: 4845
A169: 17.489 | B169: 15.496 | C169: 0.8860426554 | D169: =[1]!AgePb76($C$169) -> 5066.761476
A170: 17.975 | B170: 15.532 | C170: 0.8640890125 | D170: =[1]!AgePb76($C$170) -> 5031.227912
A171: 17.878 | B171: 15.524 | C171: 0.8683297908 | D171: =[1]!AgePb76($C$171) -> 5038.166035
A172: 17.868 | B172: 15.564 | C172: 0.8710543989 | D172: =[1]!AgePb76($C$172) -> 5042.604679
A173: 17.544 | B173: 15.43 | C173: 0.879502964 | D173: =[1]!AgePb76($C$173) -> 5056.275088
A174: 17.87 | B174: 15.545 | C174: 0.8698936766 | D174: =[1]!AgePb76($C$174) -> 5040.715557
A175: 17.727 | B175: 15.52 | C175: 0.8755006487 | D175: =[1]!AgePb76($C$175) -> 5049.816494
A176: 17.446 | B176: 15.377 | C176: 0.8814054798 | D176: =[1]!AgePb76($C$176) -> 5059.334279
A177: 17.846 | B177: 15.432 | C177: 0.8647315925 | D177: =[1]!AgePb76($C$177) -> 5032.281525
A178: 17.448 | B178: 15.375 | C178: 0.8811898212 | D178: =[1]!AgePb76($C$178) -> 5058.987858
A179: 17.659 | B179: 15.422 | C179: 0.8733223852 | D179: =[1]!AgePb76($C$179) -> 5046.28822
A180: 18.186 | B180: 15.617 | C180: 0.8587374904 | D180: =[1]!AgePb76($C$180) -> 5022.420789
A181: 18.061 | B181: 15.606 | C181: 0.8640717568 | D181: =[1]!AgePb76($C$181) -> 5031.199607
A182: 18.446 | B182: 15.6 | C182: 0.8457118074 | D182: =[1]!AgePb76($C$182) -> 5000.738238
A183: 17.582 | B183: 15.444 | C183: 0.878398362 | D183: =[1]!AgePb76($C$183) -> 5054.495696
A184: 18.085 | B184: 15.544 | C184: 0.8594968206 | D184: =[1]!AgePb76($C$184) -> 5023.673978
A185: 17.633 | B185: 15.456 | C185: 0.8765383089 | D185: =[1]!AgePb76($C$185) -> 5051.493984
A186: 17.898 | B186: 15.534 | C186: 0.8679182032 | D186: =[1]!AgePb76($C$186) -> 5037.494235
A187: 17.251 | B187: 15.486 | C187: 0.8976870906 | D187: =[1]!AgePb76($C$187) -> 5085.231676
A188: 17.537 | B188: 15.441 | C188: 0.8804812682 | D188: =[1]!AgePb76($C$188) -> 5057.849049
A189: 18.053 | B189: 15.669 | C189: 0.867944386 | D189: =[1]!AgePb76($C$189) -> 5037.536981
A190: 17.522 | B190: 15.425 | C190: 0.8803218811 | D190: =[1]!AgePb76($C$190) -> 5057.592743
A191: 17.729 | B191: 15.525 | C191: 0.8756839077 | D191: =[1]!AgePb76($C$191) -> 5050.112905
A192: 17.615 | B192: 15.498 | C192: 0.8798183366 | D192: =[1]!AgePb76($C$192) -> 5056.782683
A193: 17.502 | B193: 15.416 | C193: 0.8808136213 | D193: =[1]!AgePb76($C$193) -> 5058.383339
A194: 17.508 | B194: 15.442 | C194: 0.8819968015 | D194: =[1]!AgePb76($C$194) -> 5060.28368
A195: 17.512 | B195: 15.399 | C195: 0.8793398812 | D195: =[1]!AgePb76($C$195) -> 5056.012529
A196: 17.928 | B196: 15.592 | C196: 0.8697010263 | D196: =[1]!AgePb76($C$196) -> 5040.401752
A197: 17.481 | B197: 15.379 | C197: 0.8797551627 | D197: =[1]!AgePb76($C$197) -> 5056.68102
A198: 17.894 | B198: 15.586 | C198: 0.8710182184 | D198: =[1]!AgePb76($C$198) -> 5042.545834
A199: 17.638 | B199: 15.539 | C199: 0.8809955777 | D199: =[1]!AgePb76($C$199) -> 5058.675761
A200: 18.785 | B200: 15.633 | C200: 0.8322065478 | D200: =[1]!AgePb76($C$200) -> 4977.879559
... 27 more rows

Sheet Nd_Sm_19
A1: Neodymium_021.pdf | B1: Carbon 14 Age | C1: Calibrated Age | G1: 207Pb/206Pb | H1: Carbon 14 Age | I1: Calibrated Age | K1: Dating | L1: Carbon 14 Age | M1: Calibrated Age | N1: 207Pb/206Pb | O1: Carbon 14 Age | P1: Calibrated Age | R1: 5390
A2: Table 1. | B2: Years | C2: Years | D2: 206Pb/204Pb | E2: 207Pb/204Pb | F2: 207Pb/206Pb | G2: Million Years | H2: Ratio | I2: Ratio | K2: Summary | L2: Years | M2: Years | N2: Million Years | O2: Dating Ratio | P2: Dating Ratio | R2: 5375
A3: 243–244 | B3: 7837 | C3: 8635 | D3: 18.966 | E3: 15.564 | F3: =(E3/D3) -> 0.8206263841 | G3: =[1]!AgePb76($F$3) -> 4957.963073 | H3: =(G3 * 1000000)/B3 -> 632635.329 | I3: =(G3 * 1000000)/C3 -> 574170.5933 | K3: Average | L3: 11656.41667 | M3: 13113.66667 | N3: 4966.782943 | O3: 456448.329 | P3: 408945.3218 | R3: 5333
A4: 256–257 | B4: 7972 | C4: 8758 | D4: 19.039 | E4: 15.55 | F4: =(E4/D4) -> 0.8167445769 | G4: =[1]!AgePb76($F$4) -> 4951.219895 | H4: =(G4 * 1000000)/B4 -> 621076.2538 | I4: =(G4 * 1000000)/C4 -> 565336.8229 | K4: Maximum | L4: 22190 | M4: 26064 | N4: 4982.352008 | O4: 636960.8418 | P4: 584937.994 | R4: 5327
A5: 271–272 | B5: 8128 | C5: 8905 | D5: 18.978 | E5: 15.566 | F5: 0.8202128781 | G5: =[1]!AgePb76($F$5) -> 4957.246378 | H5: 609897.4382 | I5: 556681.2328 | K5: Minimum | L5: 7792 | M5: 8485 | N5: 4944.023821 | O5: 223721.5593 | P5: 190468.8997 | R5: 5270
A6: 282–283 | B6: 8243 | C6: 9017 | D6: 18.836 | E6: 15.483 | F6: 0.8219898068 | G6: =[1]!AgePb76($F$6) -> 4960.323462 | H6: 601761.9146 | I6: 550107.9585 | K6: Difference | L6: 14398 | M6: 17579 | N6: 38.32818694 | O6: 413239.2825 | P6: 394469.0944 | R6: 5221
A7: 296–297 | B7: 8388 | C7: 9169 | D7: 18.547 | E7: 15.417 | F7: 0.8312395536 | G7: =[1]!AgePb76($F$7) -> 4976.227752 | H7: 593255.5736 | I7: 542723.0616 | R7: 5187
A8: 309–310 | B8: 8523 | C8: 9324 | D8: 18.596 | E8: 15.432 | F8: 0.829855883 | G8: =[1]!AgePb76($F$8) -> 4973.860627 | H8: 583580.9723 | I8: 533447.0857 | R8: 5138
A9: 325–326 | B9: 8689 | C9: 9549 | D9: 18.634 | E9: 15.467 | F9: 0.830041859 | G9: =[1]!AgePb76($F$9) -> 4974.179031 | H9: 572468.527 | I9: 520910.9887 | R9: 5117
A10: 329–330 | B10: 8731 | C10: 9612 | D10: 18.559 | E10: 15.459 | F10: 0.8329651382 | G10: =[1]!AgePb76($F$10) -> 4979.173947 | H10: 570286.7881 | I10: 518016.4322 | R10: 5111
A11: 333–334 | B11: 8773 | C11: 9680 | D11: 18.723 | E11: 15.493 | F11: 0.8274849116 | G11: =[1]!AgePb76($F$11) -> 4969.794702 | H11: 566487.4845 | I11: 513408.5436 | R11: 5105
A12: 339–340 | B12: 8840 | C12: 9797 | D12: 18.648 | E12: 15.471 | F12: 0.8296332046 | G12: =[1]!AgePb76($F$12) -> 4973.479287 | H12: 562610.7791 | I12: 507653.2905 | R12: 5081
A13: 343–344 | B13: 8920 | C13: 9879 | D13: 18.732 | E13: 15.512 | F13: 0.8281016442 | G13: =[1]!AgePb76($F$13) -> 4970.853513 | H13: 557270.5732 | I13: 503173.7537 | R13: 5033
A14: 347–348 | B14: 9020 | C14: 9961 | D14: 18.712 | E14: 15.507 | F14: 0.8287195383 | G14: =[1]!AgePb76($F$14) -> 4971.913478 | H14: 551209.92 | I14: 499137.986 | R14: 5013
A15: 352–353 | B15: 9160 | C15: 10064 | D15: 18.811 | E15: 15.495 | F15: 0.8237201637 | G15: =[1]!AgePb76($F$15) -> 4963.313109 | H15: 541846.4093 | I15: 493174.991 | R15: 5005
A16: 356–357 | B16: 9200 | C16: 10151 | D16: 18.899 | E16: 15.499 | F16: 0.8200963014 | G16: =[1]!AgePb76($F$16) -> 4957.044256 | H16: 538809.1583 | I16: 488330.633 | R16: 5003
A17: 360–361 | B17: 9390 | C17: 10343 | D17: 18.974 | E17: 15.534 | F17: 0.8186992727 | G17: =[1]!AgePb76($F$17) -> 4954.619692 | H17: 527648.5295 | I17: 479031.1991 | R17: 5001
A18: 364–365 | B18: 9710 | C18: 10779 | D18: 18.966 | E18: 15.573 | F18: 0.8211009174 | G18: =[1]!AgePb76($F$18) -> 4958.785069 | H18: 510688.4726 | I18: 460041.2904 | R18: 4994
A19: 371–372 | B19: 10098 | C19: 11428 | D19: 18.915 | E19: 15.56 | F19: 0.8226275443 | G19: =[1]!AgePb76($F$19) -> 4961.426099 | H19: 491327.5994 | I19: 434146.491 | R19: 4989
A20: 374–375 | B20: 10157 | C20: 11574 | D20: 19.003 | E20: 15.527 | F20: 0.8170815134 | G20: =[1]!AgePb76($F$20) -> 4951.806545 | H20: 487526.4886 | I20: 427838.8236 | R20: 4988
A21: 382–383 | B21: 10313 | C21: 11819 | D21: 18.779 | E21: 15.514 | F21: 0.826135577 | G21: =[1]!AgePb76($F$21) -> 4967.475225 | H21: 481671.2136 | I21: 420295.7294 | R21: 4982
A22: 387–388 | B22: 10410 | C22: 11915 | D22: 18.899 | E22: 15.54 | F22: 0.8222657283 | G22: =[1]!AgePb76($F$22) -> 4960.800637 | H22: 476541.8479 | I22: 416349.1932 | R22: 4981
A23: 392–393 | B23: 10546 | C23: 11969 | D23: 18.819 | E23: 15.522 | F23: 0.8248047186 | G23: =[1]!AgePb76($F$23) -> 4965.183561 | H23: 470812.0198 | I23: 414836.9589 | R23: 4980
A24: 397–398 | B24: 10691 | C24: 11996 | D24: 18.637 | E24: 15.454 | F24: 0.8292107099 | G24: =[1]!AgePb76($F$24) -> 4972.755458 | H24: 465134.7356 | I24: 414534.4664 | R24: 4980
A25: 401–402 | B25: 10910 | C25: 12169 | D25: 18.764 | E25: 15.487 | F25: 0.8253570667 | G25: =[1]!AgePb76($F$25) -> 4966.135151 | H25: 455191.1229 | I25: 408097.2266 | R25: 4979
A26: 406–407 | B26: 11228 | C26: 12562 | D26: 18.831 | E26: 15.492 | F26: 0.8226859965 | G26: =[1]!AgePb76($F$26) -> 4961.527117 | H26: 441888.7706 | I26: 394963.1521 | R26: 4978
A27: 410–411 | B27: 11482 | C27: 12888 | D27: 18.775 | E27: 15.493 | F27: 0.8251930759 | G27: =[1]!AgePb76($F$27) -> 4965.852697 | H27: 432490.2192 | I27: 385308.2477 | R27: 4978
A28: 414–415 | B28: 11736 | C28: 13193 | D28: 18.732 | E28: 15.483 | F28: 0.8265534914 | G28: =[1]!AgePb76($F$28) -> 4968.194041 | H28: 423329.4173 | I28: 376578.0369 | R28: 4977
A29: 418–419 | B29: 11990 | C29: 13465 | D29: 18.639 | E29: 15.497 | F29: 0.8314287247 | G29: =[1]!AgePb76($F$29) -> 4976.551052 | H29: 415058.4697 | I29: 369591.6117 | R29: 4977
A30: 424–425 | B30: 12266 | C30: 13830 | D30: 18.717 | E30: 15.419 | F30: 0.8237965486 | G30: =[1]!AgePb76($F$30) -> 4963.44493 | H30: 404650.6547 | I30: 358889.7274 | R30: 4977
A31: 428–429 | B31: 12450 | C31: 14040 | D31: 18.662 | E31: 15.517 | F31: 0.8314757261 | G31: =[1]!AgePb76($F$31) -> 4976.631367 | H31: 399729.4271 | I31: 354460.9236 | R31: 4976
A32: 434–435 | B32: 12516 | C32: 14148 | D32: 18.727 | E32: 15.485 | F32: 0.826880974 | G32: =[1]!AgePb76($F$32) -> 4968.757044 | H32: 396992.4132 | I32: 351198.5471 | R32: 4976
A33: 439–440 | B33: 12560 | C33: 14297 | D33: 18.75 | E33: 15.517 | F33: 0.8275733333 | G33: =[1]!AgePb76($F$33) -> 4969.946556 | H33: 395696.3819 | I33: 347621.6379 | R33: 4974
A34: 443–444 | B34: 13355 | C34: 15132 | D34: 18.874 | E34: 15.516 | F34: 0.8220832892 | G34: =[1]!AgePb76($F$34) -> 4960.485148 | H34: 371432.8078 | I34: 327814.2445 | R34: 4974
A35: 448–449 | B35: 14150 | C35: 16137 | D35: 18.822 | E35: 15.493 | F35: 0.8231325045 | G35: =[1]!AgePb76($F$35) -> 4962.298522 | H35: 350692.4751 | I35: 307510.5981 | R35: 4973
A36: 466–467 | B36: 15254 | C36: 18220 | D36: 18.537 | E36: 15.447 | F36: 0.8333063603 | G36: =[1]!AgePb76($F$36) -> 4979.755768 | H36: 326455.7341 | I36: 273312.6107 | R36: 4973
A37: 479–480 | B37: 17122 | C37: 19796 | D37: 18.544 | E37: 15.469 | F37: 0.8341781708 | G37: =[1]!AgePb76($F$37) -> 4981.241151 | H37: 290926.3609 | I37: 251628.67 | R37: 4972
A38: 490–491 | B38: 18574 | C38: 21338 | D38: 18.687 | E38: 15.481 | F38: 0.8284368813 | G38: =[1]!AgePb76($F$38) -> 4971.428699 | H38: 267655.2546 | I38: 232984.7549 | R38: 4971
A39: 497–498 | B39: 19489 | C39: 22395 | D39: 18.59 | E39: 15.462 | F39: 0.8317374933 | G39: =[1]!AgePb76($F$39) -> 4977.078581 | H39: 255378.8589 | I39: 222240.6154 | R39: 4971
A40: 529–530 | B40: 22190 | C40: 26064 | D40: 18.809 | E40: 15.505 | F40: 0.824339412 | G40: =[1]!AgePb76($F$40) -> 4964.381401 | H40: 223721.5593 | I40: 190468.8997 | R40: 4971
A41: 109–110 | B41: 7792 | C41: 8485 | D41: 18.889 | E41: 15.558 | F41: 0.8236539785 | G41: =[1]!AgePb76($F$41) -> 4963.198879 | H41: 636960.8418 | I41: 584937.994 | R41: 4970
A42: 129–130 | B42: 8573 | C42: 9591 | D42: 18.823 | E42: 15.535 | F42: 0.8253200871 | G42: =[1]!AgePb76($F$42) -> 4966.071463 | H42: 579268.8048 | I42: 517784.5337 | R42: 4970
A43: 179–180 | B43: 11395 | C43: 12314 | D43: 19.218 | E43: 15.617 | F43: 0.8126235821 | G43: =[1]!AgePb76($F$43) -> 4944.023821 | H43: 433876.5969 | I43: 401496.1687 | R43: 4969
A44: 206–207 | B44: 12850 | C44: 13797 | D44: 18.977 | E44: 15.536 | F44: 0.8186752384 | G44: =[1]!AgePb76($F$44) -> 4954.577942 | H44: 385570.2679 | I44: 359105.4535 | R44: 4969
A45: 232–233 | B45: 13249 | C45: 15248 | D45: 18.831 | E45: 15.57 | F45: 0.8268281026 | G45: =[1]!AgePb76($F$45) -> 4968.666164 | H45: 375021.9763 | I45: 325856.91 | R45: 4969
A46: 239–240 | B46: 14000 | C46: 15644 | D46: 18.676 | E46: 15.518 | F46: 0.8309059756 | G46: =[1]!AgePb76($F$46) -> 4975.657464 | H46: 355404.1046 | I46: 318055.3224 | R46: 4969
A47: 246–247 | B47: 14235 | C47: 16040 | D47: 18.755 | E47: 15.498 | F47: 0.8263396428 | G47: =[1]!AgePb76($F$47) -> 4967.826268 | H47: 348986.7417 | I47: 309714.8546 | R47: 4968
A48: 259–260 | B48: 14745 | C48: 16782 | D48: 18.773 | E48: 15.525 | F48: 0.8269855644 | G48: =[1]!AgePb76($F$48) -> 4968.936804 | H48: 336991.3058 | I48: 296087.2842 | R48: 4968
A49: 286–287 | B49: 16548 | C49: 18341 | D49: 18.772 | E49: 15.548 | F49: 0.8282548476 | G49: =[1]!AgePb76($F$49) -> 4971.116404 | H49: 300405.8741 | I49: 271038.4605 | R49: 4967
A50: 301–302 | B50: 17110 | C50: 19216 | D50: 18.587 | E50: 15.517 | F50: 0.8348307957 | G50: =[1]!AgePb76($F$50) -> 4982.352008 | H50: 291195.3248 | I50: 259281.4326 | R50: 4967
A51: Average | B51: =AVERAGE(B3:B50) -> 11656.41667 | C51: =AVERAGE(C3:C50) -> 13113.66667 | G51: =AVERAGE(G3:G50) -> 4966.782943 | H51: =AVERAGE(H3:H50) -> 456448.329 | I51: =AVERAGE(I3:I50) -> 408945.3218 | R51: 4966
A52: Maximum | B52: =MAX(B3:B51) -> 22190 | C52: =MAX(C3:C51) -> 26064 | G52: =MAX(G3:G51) -> 4982.352008 | H52: =MAX(H3:H51) -> 636960.8418 | I52: =MAX(I3:I51) -> 584937.994 | R52: 4966
A53: Minimum | B53: =MIN(B3:B52) -> 7792 | C53: =MIN(C3:C52) -> 8485 | G53: =MIN(G3:G52) -> 4944.023821 | H53: =MIN(H3:H52) -> 223721.5593 | I53: =MIN(I3:I52) -> 190468.8997 | R53: 4966
A54: Difference | B54: =(B52-ABS(B53)) -> 14398 | C54: =(C52-ABS(C53)) -> 17579 | G54: =(G52-ABS(G53)) -> 38.32818694 | H54: =(H52-ABS(H53)) -> 413239.2825 | I54: =(I52-ABS(I53)) -> 394469.0944 | R54: 4965
R55: 4964
R56: 4963
E57: 207Pb/206Pb | R57: 4963
A58: Table 2 | B58: 206Pb/204Pb | C58: 207Pb/204Pb | D58: 207Pb/206Pb | E58: Million Years | R58: 4963
A59: Mean | B59: 18.641 | C59: 15.515 | D59: =(C59/B59) -> 0.8323051338 | E59: =[1]!AgePb76($D$59) -> 4978.047848 | R59: 4962
A60: Median | B60: 18.49 | C60: 15.495 | D60: =(C60/B60) -> 0.8380205516 | E60: =[1]!AgePb76($D$60) -> 4987.768167 | R60: 4962
A61: Mean | B61: 18.84 | C61: 15.702 | D61: 0.8334394904 | E61: =[1]!AgePb76($D$61) -> 4979.9827 | R61: 4961
A62: Median | B62: 18.891 | C62: 15.723 | D62: 0.8323010958 | E62: =[1]!AgePb76($D$62) -> 4978.040955 | R62: 4961
A63: Mean | B63: 18.95 | C63: 15.549 | D63: 0.8205277045 | E63: =[1]!AgePb76($D$63) -> 4957.792075 | R63: 4960
A64: Median | B64: 18.772 | C64: 15.529 | D64: 0.8272427019 | E64: =[1]!AgePb76($D$64) -> 4969.378645 | R64: 4960
A65: Mean | B65: 18.925 | C65: 15.633 | D65: 0.8260501982 | E65: =[1]!AgePb76($D$65) -> 4967.328326 | R65: 4959
A66: Median | B66: 17.981 | C66: 15.556 | D66: 0.8651354207 | E66: =[1]!AgePb76($D$66) -> 5032.943241 | R66: 4958
A67: Mean | B67: 18.451 | C67: 15.604 | D67: 0.8456994201 | E67: =[1]!AgePb76($D$67) -> 5000.71745 | R67: 4958
A68: Median | B68: 18.419 | C68: 15.602 | D68: 0.847060101 | E68: =[1]!AgePb76($D$68) -> 5002.999007 | R68: 4957
A69: Mean | B69: 18.596 | C69: 15.594 | D69: 0.8385674339 | E69: =[1]!AgePb76($D$69) -> 4988.694565 | R69: 4957
A70: Median | B70: 18.388 | C70: 15.598 | D70: 0.8482706113 | E70: =[1]!AgePb76($D$70) -> 5005.025491 | R70: 4955
A71: Mean | B71: 21.236 | C71: 15.624 | D71: 0.7357317762 | E71: =[1]!AgePb76($D$71) -> 4802.135759 | R71: 4955
A72: Median | B72: 20.816 | C72: 15.653 | D72: 0.7519696387 | E72: =[1]!AgePb76($D$72) -> 4833.37596 | R72: 4952
A73: Mean | B73: 16.673 | C73: 14.92 | D73: 0.8948599532 | E73: =[1]!AgePb76($D$73) -> 5080.770774 | R73: 4951
A74: Median | B74: 15.227 | C74: 14.692 | D74: 0.9648650424 | E74: =[1]!AgePb76($D$74) -> 5187.062347 | R74: 4944
A75: Mean | B75: 14.914 | C75: 14.738 | D75: 0.9881990076 | E75: =[1]!AgePb76($D$75) -> 5220.685828 | R75: 4940
A76: Median | B76: 14.417 | C76: 14.755 | D76: 1.023444545 | E76: =[1]!AgePb76($D$76) -> 5269.914128
A77: Mean | B77: 12.6 | C77: 13.902 | D77: 1.103333333 | E77: =[1]!AgePb76($D$77) -> 5375.170105
A78: Median | B78: 12.366 | C78: 13.785 | D78: 1.114750121 | E78: =[1]!AgePb76($D$78) -> 5389.552502
A79: Mean | B79: 13.2 | C79: 14.07 | D79: 1.065909091 | E79: =[1]!AgePb76($D$79) -> 5326.899923
A80: Median | B80: 13.115 | C80: 14.045 | D80: 1.07091117 | E80: =[1]!AgePb76($D$80) -> 5333.454266
A81: Mean | B81: 15.684 | C81: 14.618 | D81: 0.9320326447 | E81: =[1]!AgePb76($D$81) -> 5138.265548
A82: Median | B82: 15.986 | C82: 14.548 | D82: 0.9100462905 | E82: =[1]!AgePb76($D$82) -> 5104.559762
A83: Mean | B83: 16.805 | C83: 15.428 | D83: 0.9180601012 | E83: =[1]!AgePb76($D$83) -> 5116.944148
A84: Median | B84: 16.867 | C84: 15.416 | D84: 0.9139740321 | E84: =[1]!AgePb76($D$84) -> 5110.643995
A85: Mean | B85: 19.263 | C85: 15.61 | D85: 0.8103618336 | E85: =[1]!AgePb76($D$85) -> 4940.057845
A86: Median | B86: 18.44 | C86: 15.52 | D86: 0.84164859 | E86: =[1]!AgePb76($D$86) -> 4993.901961
A87: Mean | B87: 25.526 | C87: 16.657 | D87: 0.6525503408 | E87: =[1]!AgePb76($D$87) -> 4629.609193
A88: Median | B88: 22.719 | C88: 16.226 | D88: 0.7142039702 | E88: =[1]!AgePb76($D$88) -> 4759.564376
A89: Mean | B89: 17.265 | C89: 14.733 | D89: 0.8533449175 | E89: =[1]!AgePb76($D$89) -> 5013.486965
D90: Average | E90: =AVERAGE(E59:E89) -> 5047.57335
D91: Maximum | E91: =MAX(E59:E90) -> 5389.552502
D92: Minimum | E92: =MIN(E59:E91) -> 4629.609193
D93: Difference | E93: =(E91-ABS(E92)) -> 759.9433083

Sheet Nd_Sm_20
A1: Rubidium | B1: Table 1 | K1: Neodymium_020.pdf
A2: Strontium | B2: Initial | C2: Today | D2: Today | E2: The Ratio | F2: Half | G2: Decay | H2: 2.303/Delta | I2: Age | J2: Age
A3: Dating | B3: 87Sr/86Sr | C3: 87Sr/86Sr | D3: 87Rb/86Sr | E3: Plus One | F3: Life | G3: Constant | H3: Constant | I3: Years | J3: Million Years
B4: 0.71026 | C4: 0.710724 | D4: 0.1852 | E4: =1+((C4-B4)/D4) -> 1.0025054 | F4: 48800000000 | G4: =(0.693/F4) -> 1.420081967e-11 | H4: =(2.303/G4) -> 1.621737374e+11 | I4: =(LOG(E4))*(H4) -> 176237515.3 | J4: =(I4/1000000) -> 176.2375153
B5: 0.71026 | C5: 0.710625 | D5: 0.1376 | E5: 1.002652616 | F5: 48800000000 | G5: 1.420081967e-11 | H5: 1.621737374e+11 | I5: 186579486.9 | J5: 186.5794869
B6: 0.71026 | C6: 0.710664 | D6: 0.0525 | E6: 1.007695238 | F6: 48800000000 | G6: 1.420081967e-11 | H6: 1.621737374e+11 | I6: 539909826.5 | J6: 539.9098265
B7: 0.71026 | C7: 0.710769 | D7: 0.1868 | E7: 1.002724839 | F7: 48800000000 | G7: 1.420081967e-11 | H7: 1.621737374e+11 | I7: 191652604.9 | J7: 191.6526049
B8: 0.71026 | C8: 0.710742 | D8: 0.1992 | E8: 1.002419679 | F8: 48800000000 | G8: 1.420081967e-11 | H8: 1.621737374e+11 | I8: 170214927.1 | J8: 170.2149271
B9: 0.71026 | C9: 0.71077 | D9: 0.0643 | E9: 1.007931571 | F9: 48800000000 | G9: 1.420081967e-11 | H9: 1.621737374e+11 | I9: 556425963 | J9: 556.425963
B10: 0.71026 | C10: 0.710548 | D10: 0.1024 | E10: 1.0028125 | F10: 48800000000 | G10: 1.420081967e-11 | H10: 1.621737374e+11 | I10: 197809595.9 | J10: 197.8095959
B11: 0.71026 | C11: 0.710649 | D11: 0.065 | E11: 1.005984615 | F11: 48800000000 | G11: 1.420081967e-11 | H11: 1.621737374e+11 | I11: 420247141 | J11: 420.247141
B12: 0.71026 | C12: 0.710672 | D12: 0.1531 | E12: 1.002691052 | F12: 48800000000 | G12: 1.420081967e-11 | H12: 1.621737374e+11 | I12: 189279317.7 | J12: 189.2793177
B13: 0.71026 | C13: 0.710735 | D13: 0.08 | E13: 1.0059375 | F13: 48800000000 | G13: 1.420081967e-11 | H13: 1.621737374e+11 | I13: 416948413.7 | J13: 416.9484137
B14: 0.71026 | C14: 0.710586 | D14: 0.1153 | E14: 1.002827407 | F14: 48800000000 | G14: 1.420081967e-11 | H14: 1.621737374e+11 | I14: 198856544.2 | J14: 198.8565442
B15: 0.71026 | C15: 0.170743 | D15: 0.1916 | E15: -1.815850731 | F15: 48800000000 | G15: 1.420081967e-11 | H15: 1.621737374e+11
B16: 0.71026 | C16: 0.71118 | D16: 0.0619 | E16: 1.014862682 | F16: 48800000000 | G16: 1.420081967e-11 | H16: 1.621737374e+11 | I16: 1039093037 | J16: 1039.093037
B17: 0.71026 | C17: 0.710867 | D17: 0.219 | E17: 1.002771689 | F17: 48800000000 | G17: 1.420081967e-11 | H17: 1.621737374e+11 | I17: 194943267.9 | J17: 194.9432679
B18: 0.71026 | C18: 0.710939 | D18: 0.0543 | E18: 1.012504604 | F18: 48800000000 | G18: 1.420081967e-11 | H18: 1.621737374e+11 | I18: 875252749 | J18: 875.252749
B19: 0.71026 | C19: 0.710843 | D19: 0.1982 | E19: 1.002941473 | F19: 48800000000 | G19: 1.420081967e-11 | H19: 1.621737374e+11 | I19: 206867273.2 | J19: 206.8672732
B20: 0.71026 | C20: 0.711202 | D20: 0.3567 | E20: =1+((C20-B20)/D20) -> 1.002640875 | F20: 48800000000 | G20: =(0.693/F20) -> 1.420081967e-11 | H20: =(2.303/G20) -> 1.621737374e+11 | I20: =(LOG(E20))*(H20) -> 185754695.9 | J20: =(I20/1000000) -> 185.7546959
B21: 0.71026 | C21: 0.712369 | D21: 0.0449 | E21: 1.046971047 | F21: 48800000000 | G21: 1.420081967e-11 | H21: 1.621737374e+11 | I21: 3232880220 | J21: 3232.88022
B22: 0.71026 | C22: 0.71073 | D22: 0.0451 | E22: 1.010421286 | F22: 48800000000 | G22: 1.420081967e-11 | H22: 1.621737374e+11 | I22: 730185096.3 | J22: 730.1850963
B23: 0.71026 | C23: 0.710971 | D23: 0.1898 | E23: 1.003746048 | F23: 48800000000 | G23: 1.420081967e-11 | H23: 1.621737374e+11 | I23: 263345591.2 | J23: 263.3455912
B24: 0.71026 | C24: 0.710789 | D24: 0.077 | E24: 1.00687013 | F24: 48800000000 | G24: 1.420081967e-11 | H24: 1.621737374e+11 | I24: 482216655.6 | J24: 482.2166556
B25: 0.71026 | C25: 0.711473 | D25: 0.4811 | E25: 1.002521305 | F25: 48800000000 | G25: 1.420081967e-11 | H25: 1.621737374e+11 | I25: 177354968.9 | J25: 177.3549689
B26: 0.71026 | C26: 0.71132 | D26: 0.0411 | E26: 1.025790754 | F26: 48800000000 | G26: 1.420081967e-11 | H26: 1.621737374e+11 | I26: 1793443737 | J26: 1793.443737
B27: 0.71026 | C27: 0.71083 | D27: 0.2029 | E27: 1.002809266 | F27: 48800000000 | G27: 1.420081967e-11 | H27: 1.621737374e+11 | I27: 197582435.2 | J27: 197.5824352
B28: 0.71026 | C28: 0.71144 | D28: 0.073 | E28: 1.016164384 | F28: 48800000000 | G28: 1.420081967e-11 | H28: 1.621737374e+11 | I28: 1129372859 | J28: 1129.372859
B29: 0.71026 | C29: 0.0711099 | D29: 0.2816 | E29: -1.269709162 | F29: 48800000000 | G29: 1.420081967e-11 | H29: 1.621737374e+11
B30: 0.71026 | C30: 0.711529 | D30: 0.482 | E30: 1.00263278 | F30: 48800000000 | G30: 1.420081967e-11 | H30: 1.621737374e+11 | I30: 185186083 | J30: 185.186083
B31: 0.71026 | C31: 0.711288 | D31: 0.0639 | E31: 1.016087637 | F31: 48800000000 | G31: 1.420081967e-11 | H31: 1.621737374e+11 | I31: 1124053288 | J31: 1124.053288
I32: Average | J32: =AVERAGE(J4:J31) -> 579.2958959
I33: Maximum | J33: =MAX(J4:J32) -> 3232.88022
I34: Minimum | J34: =MIN(J4:J33) -> 170.2149271
I35: Difference | J35: =(J33-J34) -> 3062.665293
A38: Rubidium | B38: Table 2 | K38: Neodymium_020.pdf
A39: Strontium | B39: Initial | C39: Today | D39: Today | E39: The Ratio | F39: Half | G39: Decay | H39: 2.303/Delta | I39: Age | J39: Age
A40: Dating | B40: 87Sr/86Sr | C40: 87Sr/86Sr | D40: 87Rb/86Sr | E40: Plus One | F40: Life | G40: Constant | H40: Constant | I40: Years | J40: Million Years
B41: 0.71052 | C41: 0.710915 | D41: 0.1473 | E41: =1+((C41-B41)/D41) -> 1.002681602 | F41: 48800000000 | G41: =(0.693/F41) -> 1.420081967e-11 | H41: =(2.303/G41) -> 1.621737374e+11 | I41: =(LOG(E41))*(H41) -> 188615566.6 | J41: =(I41/1000000) -> 188.6155666
B42: 0.71052 | C42: 0.711212 | D42: 0.3014 | E42: 1.002295952 | F42: 48800000000 | G42: 1.420081967e-11 | H42: 1.621737374e+11 | I42: 161521225 | J42: 161.521225
B43: 0.71052 | C43: 0.710916 | D43: 0.0637 | E43: 1.006216641 | F43: 48800000000 | G43: 1.420081967e-11 | H43: 1.621737374e+11 | I43: 436489848.4 | J43: 436.4898484
B44: 0.71052 | C44: 0.711141 | D44: 0.2446 | E44: 1.002538839 | F44: 48800000000 | G44: 1.420081967e-11 | H44: 1.621737374e+11 | I44: 178586762.6 | J44: 178.5867626
B45: 0.71052 | C45: 0.710672 | D45: 0.0513 | E45: 1.002962963 | F45: 48800000000 | G45: 1.420081967e-11 | H45: 1.621737374e+11 | I45: 208376362.8 | J45: 208.3763628
B46: 0.71052 | C46: 0.710719 | D46: 0.0574 | E46: 1.003466899 | F46: 48800000000 | G46: 1.420081967e-11 | H46: 1.621737374e+11 | I46: 243755418.4 | J46: 243.7554184
B47: 0.71052 | C47: 0.710929 | D47: 0.1509 | E47: 1.002710404 | F47: 48800000000 | G47: 1.420081967e-11 | H47: 1.621737374e+11 | I47: 190638675.4 | J47: 190.6386754
B48: 0.71052 | C48: 0.710797 | D48: 0.2647 | E48: 1.001046468 | F48: 48800000000 | G48: 1.420081967e-11 | H48: 1.621737374e+11 | I48: 73665395.67 | J48: 73.66539567
B49: 0.71052 | C49: 0.710703 | D49: 0.0639 | E49: =1+((C49-B49)/D49) -> 1.00286385 | F49: 48800000000 | G49: =(0.693/F49) -> 1.420081967e-11 | H49: =(2.303/G49) -> 1.621737374e+11 | I49: =(LOG(E49))*(H49) -> 201415983.8 | J49: =(I49/1000000) -> 201.4159838
B50: 0.71052 | C50: 0.712265 | D50: 0.687 | E50: 1.002540029 | F50: 48800000000 | G50: 1.420081967e-11 | H50: 1.621737374e+11 | I50: 178670376.9 | J50: 178.6703769
B51: 0.71052 | C51: 0.711533 | D51: 0.1018 | E51: 1.009950884 | F51: 48800000000 | G51: 1.420081967e-11 | H51: 1.621737374e+11 | I51: 697388213.3 | J51: 697.3882133
B52: 0.71052 | C52: 0.711134 | D52: 0.2388 | E52: 1.002571189 | F52: 48800000000 | G52: 1.420081967e-11 | H52: 1.621737374e+11 | I52: 180859429.2 | J52: 180.8594292
B53: 0.71052 | C53: 0.711528 | D53: 0.1469 | E53: 1.006861811 | F53: 48800000000 | G53: 1.420081967e-11 | H53: 1.621737374e+11 | I53: 481634726.2 | J53: 481.6347262
B54: 0.71052 | C54: 0.711464 | D54: 0.3392 | E54: 1.002783019 | F54: 48800000000 | G54: 1.420081967e-11 | H54: 1.621737374e+11 | I54: 195738998.6 | J54: 195.7389986
B55: 0.71052 | C55: 0.712918 | D55: 0.8901 | E55: 1.002694079 | F55: 48800000000 | G55: 1.420081967e-11 | H55: 1.621737374e+11 | I55: 189491990.6 | J55: 189.4919906
B56: 0.71052 | C56: 0.711997 | D56: 0.1804 | E56: 1.008187361 | F56: 48800000000 | G56: 1.420081967e-11 | H56: 1.621737374e+11 | I56: 574297560.1 | J56: 574.2975601
B57: 0.71052 | C57: 0.710868 | D57: 0.1364 | E57: 1.00255132 | F57: 48800000000 | G57: 1.420081967e-11 | H57: 1.621737374e+11 | I57: 179463563.2 | J57: 179.4635632
B58: 0.71052 | C58: 0.712022 | D58: 0.5327 | E58: 1.002819598 | F58: 48800000000 | G58: 1.420081967e-11 | H58: 1.621737374e+11 | I58: 198308131.5 | J58: 198.3081315
B59: 0.71052 | C59: 0.711015 | D59: 0.1858 | E59: 1.002664155 | F59: 48800000000 | G59: 1.420081967e-11 | H59: 1.621737374e+11 | I59: 187390018.1 | J59: 187.3900181
B60: 0.71052 | C60: 0.712449 | D60: 0.7556 | E60: 1.002552938 | F60: 48800000000 | G60: 1.420081967e-11 | H60: 1.621737374e+11 | I60: 179577259.8 | J60: 179.5772598
B61: 0.71052 | C61: 0.710766 | D61: 0.1567 | E61: 1.001569879 | F61: 48800000000 | G61: 1.420081967e-11 | H61: 1.621737374e+11 | I61: 110481681.4 | J61: 110.4816814
B62: 0.71052 | C62: 0.711186 | D62: 0.2646 | E62: 1.002517007 | F62: 48800000000 | G62: 1.420081967e-11 | H62: 1.621737374e+11 | I62: 177052978.5 | J62: 177.0529785
B63: 0.71052 | C63: 0.710896 | D63: 0.097 | E63: 1.003876289 | F63: 48800000000 | G63: 1.420081967e-11 | H63: 1.621737374e+11 | I63: 272483731.6 | J63: 272.4837316
B64: 0.71052 | C64: 0.711335 | D64: 0.3187 | E64: 1.002557264 | F64: 48800000000 | G64: 1.420081967e-11 | H64: 1.621737374e+11 | I64: 179881156 | J64: 179.881156
B65: 0.71052 | C65: 0.711659 | D65: 0.4717 | E65: 1.00241467 | F65: 48800000000 | G65: 1.420081967e-11 | H65: 1.621737374e+11 | I65: 169863032.2 | J65: 169.8630322
B66: 0.71052 | C66: 0.711213 | D66: 0.107 | E66: 1.006476636 | F66: 48800000000 | G66: 1.420081967e-11 | H66: 1.621737374e+11 | I66: 454686113.4 | J66: 454.6861134
B67: 0.71052 | C67: 0.711222 | D67: 0.2915 | E67: 1.002408233 | F67: 48800000000 | G67: 1.420081967e-11 | H67: 1.621737374e+11 | I67: 169410752.9 | J67: 169.4107529
B68: 0.71052 | C68: 0.711059 | D68: 0.2953 | E68: 1.001825262 | F68: 48800000000 | G68: 1.420081967e-11 | H68: 1.621737374e+11 | I68: 128438168.9 | J68: 128.4381689
B69: 0.71052 | C69: 0.711466 | D69: 0.3731 | E69: 1.002535513 | F69: 48800000000 | G69: 1.420081967e-11 | H69: 1.621737374e+11 | I69: 178353125.8 | J69: 178.3531258
I70: Average | J70: =AVERAGE(J41:J69) -> 240.2253878
B71: Dating | C71: 87Rb/86Sr | D71: 87Rb/86Sr | I71: Maximum | J71: =MAX(J41:J70) -> 697.3882133
B72: Summary | C72: Table 1 | D72: Table 2 | I72: Minimum | J72: =MIN(J41:J71) -> 73.66539567
B73: Average | C73: 579.2958959 | D73: 240.2253878 | I73: Difference | J73: =(J71-J72) -> 623.7228176
B74: Maximum | C74: 3232.88022 | D74: 697.3882133
B75: Minimum | C75: 170.2149271 | D75: 73.66539567
B76: Difference | C76: 3062.665293 | D76: 623.7228176
